Organisation Name,Organisation Code,Unique Ref No,Effective Date,Directorate  where expenditure incurred,Supplier Name,Payment Date,Net Amount,Procurement Classification (Higher Level),Purpose of Spend,Procurement Classification (Lower Level),Capital/Revenue
Walsall Council,http://opendatacommunities.org/id/metropolitan-district-council/walsall,WC107-01,31/08/2019,Economy & Environment,1974 RAPPORT LTD,15/08/2019,"3,600.00",30030-EXTERNAL TRAINING,Employees,Training,Revenue
Walsall Council,http://opendatacommunities.org/id/metropolitan-district-council/walsall,WC107-02,31/08/2019,Childrens,247 CARS (WILLENHALL) LIMITED,07/08/2019,"5,085.00",52000-WITH DRIVER-HIRE OF VEHICLES,Transport,Hire,Revenue
Walsall Council,http://opendatacommunities.org/id/metropolitan-district-council/walsall,WC107-03,31/08/2019,Adult Social Care,5 CARE SERVICES LTD,15/08/2019,4.64,73507-DOMICILIARY CARE,Third Party Payments,Private Contractor Fees,Revenue
Walsall Council,http://opendatacommunities.org/id/metropolitan-district-council/walsall,WC107-04,31/08/2019,Adult Social Care,5 CARE SERVICES LTD,19/08/2019,268.95,73507-DOMICILIARY CARE,Third Party Payments,Private Contractor Fees,Revenue
Walsall Council,http://opendatacommunities.org/id/metropolitan-district-council/walsall,WC107-05,31/08/2019,Adult Social Care,5 CARE SERVICES LTD,19/08/2019,271.27,73507-DOMICILIARY CARE,Third Party Payments,Private Contractor Fees,Revenue
Walsall Council,http://opendatacommunities.org/id/metropolitan-district-council/walsall,WC107-06,31/08/2019,Adult Social Care,5 CARE SERVICES LTD,19/08/2019,280.87,73507-DOMICILIARY CARE,Third Party Payments,Private Contractor Fees,Revenue
Walsall Council,http://opendatacommunities.org/id/metropolitan-district-council/walsall,WC107-07,31/08/2019,Adult Social Care,5 CARE SERVICES LTD,19/08/2019,284.48,73507-DOMICILIARY CARE,Third Party Payments,Private Contractor Fees,Revenue
Walsall Council,http://opendatacommunities.org/id/metropolitan-district-council/walsall,WC107-08,31/08/2019,Adult Social Care,5 CARE SERVICES LTD,19/08/2019,311.73,73507-DOMICILIARY CARE,Third Party Payments,Private Contractor Fees,Revenue
Walsall Council,http://opendatacommunities.org/id/metropolitan-district-council/walsall,WC107-09,31/08/2019,Adult Social Care,5 CARE SERVICES LTD,19/08/2019,313.12,73507-DOMICILIARY CARE,Third Party Payments,Private Contractor Fees,Revenue
Walsall Council,http://opendatacommunities.org/id/metropolitan-district-council/walsall,WC107-10,31/08/2019,Adult Social Care,5 CARE SERVICES LTD,19/08/2019,317.8,73507-DOMICILIARY CARE,Third Party Payments,Private Contractor Fees,Revenue
Walsall Council,http://opendatacommunities.org/id/metropolitan-district-council/walsall,WC107-11,31/08/2019,Adult Social Care,5 CARE SERVICES LTD,19/08/2019,327.44,73507-DOMICILIARY CARE,Third Party Payments,Private Contractor Fees,Revenue
Walsall Council,http://opendatacommunities.org/id/metropolitan-district-council/walsall,WC107-12,31/08/2019,Adult Social Care,5 CARE SERVICES LTD,19/08/2019,336.9,73507-DOMICILIARY CARE,Third Party Payments,Private Contractor Fees,Revenue
Walsall Council,http://opendatacommunities.org/id/metropolitan-district-council/walsall,WC107-13,31/08/2019,Adult Social Care,5 CARE SERVICES LTD,19/08/2019,387.2,73507-DOMICILIARY CARE,Third Party Payments,Private Contractor Fees,Revenue
Walsall Council,http://opendatacommunities.org/id/metropolitan-district-council/walsall,WC107-14,31/08/2019,Adult Social Care,5 CARE SERVICES LTD,19/08/2019,397.94,73507-DOMICILIARY CARE,Third Party Payments,Private Contractor Fees,Revenue
Walsall Council,http://opendatacommunities.org/id/metropolitan-district-council/walsall,WC107-15,31/08/2019,Adult Social Care,5 CARE SERVICES LTD,19/08/2019,405.11,73507-DOMICILIARY CARE,Third Party Payments,Private Contractor Fees,Revenue
Walsall Council,http://opendatacommunities.org/id/metropolitan-district-council/walsall,WC107-16,31/08/2019,Adult Social Care,5 CARE SERVICES LTD,19/08/2019,444.59,73507-DOMICILIARY CARE,Third Party Payments,Private Contractor Fees,Revenue
Walsall Council,http://opendatacommunities.org/id/metropolitan-district-council/walsall,WC107-17,31/08/2019,Adult Social Care,5 CARE SERVICES LTD,19/08/2019,451.76,73507-DOMICILIARY CARE,Third Party Payments,Private Contractor Fees,Revenue
Walsall Council,http://opendatacommunities.org/id/metropolitan-district-council/walsall,WC107-18,31/08/2019,Adult Social Care,5 CARE SERVICES LTD,19/08/2019,460.1,73507-DOMICILIARY CARE,Third Party Payments,Private Contractor Fees,Revenue
Walsall Council,http://opendatacommunities.org/id/metropolitan-district-council/walsall,WC107-19,31/08/2019,Adult Social Care,5 CARE SERVICES LTD,19/08/2019,462.54,73507-DOMICILIARY CARE,Third Party Payments,Private Contractor Fees,Revenue
Walsall Council,http://opendatacommunities.org/id/metropolitan-district-council/walsall,WC107-20,31/08/2019,Adult Social Care,5 CARE SERVICES LTD,19/08/2019,466.07,73507-DOMICILIARY CARE,Third Party Payments,Private Contractor Fees,Revenue
Walsall Council,http://opendatacommunities.org/id/metropolitan-district-council/walsall,WC107-21,31/08/2019,Adult Social Care,5 CARE SERVICES LTD,19/08/2019,469.64,73507-DOMICILIARY CARE,Third Party Payments,Private Contractor Fees,Revenue
Walsall Council,http://opendatacommunities.org/id/metropolitan-district-council/walsall,WC107-22,31/08/2019,Adult Social Care,5 CARE SERVICES LTD,19/08/2019,483.85,73507-DOMICILIARY CARE,Third Party Payments,Private Contractor Fees,Revenue
Walsall Council,http://opendatacommunities.org/id/metropolitan-district-council/walsall,WC107-23,31/08/2019,Adult Social Care,5 CARE SERVICES LTD,19/08/2019,494.39,73507-DOMICILIARY CARE,Third Party Payments,Private Contractor Fees,Revenue
Walsall Council,http://opendatacommunities.org/id/metropolitan-district-council/walsall,WC107-24,31/08/2019,Adult Social Care,5 CARE SERVICES LTD,19/08/2019,519.68,73507-DOMICILIARY CARE,Third Party Payments,Private Contractor Fees,Revenue
Walsall Council,http://opendatacommunities.org/id/metropolitan-district-council/walsall,WC107-25,31/08/2019,Adult Social Care,5 CARE SERVICES LTD,19/08/2019,545.28,73507-DOMICILIARY CARE,Third Party Payments,Private Contractor Fees,Revenue
Walsall Council,http://opendatacommunities.org/id/metropolitan-district-council/walsall,WC107-26,31/08/2019,Adult Social Care,5 CARE SERVICES LTD,19/08/2019,552.12,73507-DOMICILIARY CARE,Third Party Payments,Private Contractor Fees,Revenue
Walsall Council,http://opendatacommunities.org/id/metropolitan-district-council/walsall,WC107-27,31/08/2019,Adult Social Care,5 CARE SERVICES LTD,15/08/2019,590.32,73507-DOMICILIARY CARE,Third Party Payments,Private Contractor Fees,Revenue
Walsall Council,http://opendatacommunities.org/id/metropolitan-district-council/walsall,WC107-28,31/08/2019,Adult Social Care,5 CARE SERVICES LTD,19/08/2019,596.31,73507-DOMICILIARY CARE,Third Party Payments,Private Contractor Fees,Revenue
Walsall Council,http://opendatacommunities.org/id/metropolitan-district-council/walsall,WC107-29,31/08/2019,Adult Social Care,5 CARE SERVICES LTD,19/08/2019,641.71,73507-DOMICILIARY CARE,Third Party Payments,Private Contractor Fees,Revenue
Walsall Council,http://opendatacommunities.org/id/metropolitan-district-council/walsall,WC107-30,31/08/2019,Adult Social Care,5 CARE SERVICES LTD,19/08/2019,677.72,73507-DOMICILIARY CARE,Third Party Payments,Private Contractor Fees,Revenue
Walsall Council,http://opendatacommunities.org/id/metropolitan-district-council/walsall,WC107-31,31/08/2019,Adult Social Care,5 CARE SERVICES LTD,19/08/2019,688.46,73507-DOMICILIARY CARE,Third Party Payments,Private Contractor Fees,Revenue
Walsall Council,http://opendatacommunities.org/id/metropolitan-district-council/walsall,WC107-32,31/08/2019,Adult Social Care,5 CARE SERVICES LTD,19/08/2019,691.95,73507-DOMICILIARY CARE,Third Party Payments,Private Contractor Fees,Revenue
Walsall Council,http://opendatacommunities.org/id/metropolitan-district-council/walsall,WC107-33,31/08/2019,Adult Social Care,5 CARE SERVICES LTD,19/08/2019,731.13,73507-DOMICILIARY CARE,Third Party Payments,Private Contractor Fees,Revenue
Walsall Council,http://opendatacommunities.org/id/metropolitan-district-council/walsall,WC107-34,31/08/2019,Adult Social Care,5 CARE SERVICES LTD,19/08/2019,731.47,73507-DOMICILIARY CARE,Third Party Payments,Private Contractor Fees,Revenue
Walsall Council,http://opendatacommunities.org/id/metropolitan-district-council/walsall,WC107-35,31/08/2019,Adult Social Care,5 CARE SERVICES LTD,19/08/2019,745.54,73507-DOMICILIARY CARE,Third Party Payments,Private Contractor Fees,Revenue
Walsall Council,http://opendatacommunities.org/id/metropolitan-district-council/walsall,WC107-36,31/08/2019,Adult Social Care,5 CARE SERVICES LTD,19/08/2019,777.88,73507-DOMICILIARY CARE,Third Party Payments,Private Contractor Fees,Revenue
Walsall Council,http://opendatacommunities.org/id/metropolitan-district-council/walsall,WC107-37,31/08/2019,Adult Social Care,5 CARE SERVICES LTD,19/08/2019,788.75,73507-DOMICILIARY CARE,Third Party Payments,Private Contractor Fees,Revenue
Walsall Council,http://opendatacommunities.org/id/metropolitan-district-council/walsall,WC107-38,31/08/2019,Adult Social Care,5 CARE SERVICES LTD,19/08/2019,795.9,73507-DOMICILIARY CARE,Third Party Payments,Private Contractor Fees,Revenue
Walsall Council,http://opendatacommunities.org/id/metropolitan-district-council/walsall,WC107-39,31/08/2019,Adult Social Care,5 CARE SERVICES LTD,19/08/2019,824.28,73507-DOMICILIARY CARE,Third Party Payments,Private Contractor Fees,Revenue
Walsall Council,http://opendatacommunities.org/id/metropolitan-district-council/walsall,WC107-40,31/08/2019,Adult Social Care,5 CARE SERVICES LTD,19/08/2019,833.92,73507-DOMICILIARY CARE,Third Party Payments,Private Contractor Fees,Revenue
Walsall Council,http://opendatacommunities.org/id/metropolitan-district-council/walsall,WC107-41,31/08/2019,Adult Social Care,5 CARE SERVICES LTD,14/08/2019,845.94,73025-PROFESSIONAL SERVICES-PRIV CONTRACTOR & OTHER AGENCIES,Third Party Payments,Private Contractor Fees,Revenue
Walsall Council,http://opendatacommunities.org/id/metropolitan-district-council/walsall,WC107-42,31/08/2019,Adult Social Care,5 CARE SERVICES LTD,19/08/2019,863.91,73507-DOMICILIARY CARE,Third Party Payments,Private Contractor Fees,Revenue
Walsall Council,http://opendatacommunities.org/id/metropolitan-district-council/walsall,WC107-43,31/08/2019,Adult Social Care,5 CARE SERVICES LTD,19/08/2019,896.14,73507-DOMICILIARY CARE,Third Party Payments,Private Contractor Fees,Revenue
Walsall Council,http://opendatacommunities.org/id/metropolitan-district-council/walsall,WC107-44,31/08/2019,Adult Social Care,5 CARE SERVICES LTD,19/08/2019,924.34,73507-DOMICILIARY CARE,Third Party Payments,Private Contractor Fees,Revenue
Walsall Council,http://opendatacommunities.org/id/metropolitan-district-council/walsall,WC107-45,31/08/2019,Adult Social Care,5 CARE SERVICES LTD,19/08/2019,982.06,73507-DOMICILIARY CARE,Third Party Payments,Private Contractor Fees,Revenue
Walsall Council,http://opendatacommunities.org/id/metropolitan-district-council/walsall,WC107-46,31/08/2019,Adult Social Care,5 CARE SERVICES LTD,19/08/2019,"1,147.12",73507-DOMICILIARY CARE,Third Party Payments,Private Contractor Fees,Revenue
Walsall Council,http://opendatacommunities.org/id/metropolitan-district-council/walsall,WC107-47,31/08/2019,Adult Social Care,5 CARE SERVICES LTD,19/08/2019,"1,227.06",73507-DOMICILIARY CARE,Third Party Payments,Private Contractor Fees,Revenue
Walsall Council,http://opendatacommunities.org/id/metropolitan-district-council/walsall,WC107-48,31/08/2019,Adult Social Care,5 CARE SERVICES LTD,19/08/2019,"1,354.18",73507-DOMICILIARY CARE,Third Party Payments,Private Contractor Fees,Revenue
Walsall Council,http://opendatacommunities.org/id/metropolitan-district-council/walsall,WC107-49,31/08/2019,Adult Social Care,5 CARE SERVICES LTD,19/08/2019,"1,419.38",73507-DOMICILIARY CARE,Third Party Payments,Private Contractor Fees,Revenue
Walsall Council,http://opendatacommunities.org/id/metropolitan-district-council/walsall,WC107-50,31/08/2019,Adult Social Care,5 CARE SERVICES LTD,19/08/2019,"1,430.13",73507-DOMICILIARY CARE,Third Party Payments,Private Contractor Fees,Revenue
Walsall Council,http://opendatacommunities.org/id/metropolitan-district-council/walsall,WC107-51,31/08/2019,Adult Social Care,5 CARE SERVICES LTD,19/08/2019,"1,606.10",73507-DOMICILIARY CARE,Third Party Payments,Private Contractor Fees,Revenue
Walsall Council,http://opendatacommunities.org/id/metropolitan-district-council/walsall,WC107-52,31/08/2019,Adult Social Care,5 CARE SERVICES LTD,19/08/2019,"1,759.98",73507-DOMICILIARY CARE,Third Party Payments,Private Contractor Fees,Revenue
Walsall Council,http://opendatacommunities.org/id/metropolitan-district-council/walsall,WC107-53,31/08/2019,Adult Social Care,5 CARE SERVICES LTD,19/08/2019,"1,921.12",73507-DOMICILIARY CARE,Third Party Payments,Private Contractor Fees,Revenue
Walsall Council,http://opendatacommunities.org/id/metropolitan-district-council/walsall,WC107-54,31/08/2019,Adult Social Care,5 CARE SERVICES LTD,19/08/2019,"1,924.51",73507-DOMICILIARY CARE,Third Party Payments,Private Contractor Fees,Revenue
Walsall Council,http://opendatacommunities.org/id/metropolitan-district-council/walsall,WC107-55,31/08/2019,Adult Social Care,5 CARE SERVICES LTD,19/08/2019,"2,217.36",73507-DOMICILIARY CARE,Third Party Payments,Private Contractor Fees,Revenue
Walsall Council,http://opendatacommunities.org/id/metropolitan-district-council/walsall,WC107-56,31/08/2019,Economy & Environment,A ASHTON,12/08/2019,375,60500-GENERAL MATERIALS,Supplies & Services,"Equip,Furniture & Materials",Revenue
Walsall Council,http://opendatacommunities.org/id/metropolitan-district-council/walsall,WC107-57,31/08/2019,Resources and Transformation,A D T FIRE AND SECURITY PLC,02/08/2019,215.72,73002-SECURITY-PRIV CONTRACTOR FEES,Third Party Payments,Private Contractor Fees,Revenue
Walsall Council,http://opendatacommunities.org/id/metropolitan-district-council/walsall,WC107-58,31/08/2019,Resources and Transformation,A D T FIRE AND SECURITY PLC,27/08/2019,279.42,73002-SECURITY-PRIV CONTRACTOR FEES,Third Party Payments,Private Contractor Fees,Revenue
Walsall Council,http://opendatacommunities.org/id/metropolitan-district-council/walsall,WC107-59,31/08/2019,Economy & Environment,A D T FIRE AND SECURITY PLC,01/08/2019,299,60500-GENERAL MATERIALS,Supplies & Services,"Equip,Furniture & Materials",Revenue
Walsall Council,http://opendatacommunities.org/id/metropolitan-district-council/walsall,WC107-60,31/08/2019,Resources and Transformation,A D T FIRE AND SECURITY PLC,27/08/2019,903.61,73002-SECURITY-PRIV CONTRACTOR FEES,Third Party Payments,Private Contractor Fees,Revenue
Walsall Council,http://opendatacommunities.org/id/metropolitan-district-council/walsall,WC107-61,31/08/2019,Resources and Transformation,A D T FIRE AND SECURITY PLC,27/08/2019,975.3,73002-SECURITY-PRIV CONTRACTOR FEES,Third Party Payments,Private Contractor Fees,Revenue
Walsall Council,http://opendatacommunities.org/id/metropolitan-district-council/walsall,WC107-62,31/08/2019,Resources and Transformation,A D T FIRE AND SECURITY PLC,01/08/2019,"1,175.06",73002-SECURITY-PRIV CONTRACTOR FEES,Third Party Payments,Private Contractor Fees,Revenue
Walsall Council,http://opendatacommunities.org/id/metropolitan-district-council/walsall,WC107-63,31/08/2019,Economy & Environment,A F BLAKEMORE & SON LTD,02/08/2019,255.61,61008-CONFECTIONERY/SNACKS-PROVISIONS,Supplies & Services,Provisions,Revenue
Walsall Council,http://opendatacommunities.org/id/metropolitan-district-council/walsall,WC107-64,31/08/2019,Economy & Environment,A F BLAKEMORE & SON LTD,12/08/2019,297.16,61008-CONFECTIONERY/SNACKS-PROVISIONS,Supplies & Services,Provisions,Revenue
Walsall Council,http://opendatacommunities.org/id/metropolitan-district-council/walsall,WC107-65,31/08/2019,Economy & Environment,A F BLAKEMORE & SON LTD,20/08/2019,338.44,61018-DRINKS-PROVISIONS,Supplies & Services,Provisions,Revenue
Walsall Council,http://opendatacommunities.org/id/metropolitan-district-council/walsall,WC107-66,31/08/2019,Adult Social Care,A F BLAKEMORE & SON LTD,06/08/2019,371.66,61016-FOOD AND BEVERAGES-PROVISIONS,Supplies & Services,Provisions,Revenue
Walsall Council,http://opendatacommunities.org/id/metropolitan-district-council/walsall,WC107-67,31/08/2019,Economy & Environment,A F BLAKEMORE & SON LTD,02/08/2019,392.95,61018-DRINKS-PROVISIONS,Supplies & Services,Provisions,Revenue
Walsall Council,http://opendatacommunities.org/id/metropolitan-district-council/walsall,WC107-68,31/08/2019,Economy & Environment,A F BLAKEMORE & SON LTD,27/08/2019,395.85,61008-CONFECTIONERY/SNACKS-PROVISIONS,Supplies & Services,Provisions,Revenue
Walsall Council,http://opendatacommunities.org/id/metropolitan-district-council/walsall,WC107-69,31/08/2019,Economy & Environment,A F BLAKEMORE & SON LTD,07/08/2019,424.39,61016-FOOD AND BEVERAGES-PROVISIONS,Supplies & Services,Provisions,Revenue
Walsall Council,http://opendatacommunities.org/id/metropolitan-district-council/walsall,WC107-70,31/08/2019,Economy & Environment,A F BLAKEMORE & SON LTD,08/08/2019,445.74,61008-CONFECTIONERY/SNACKS-PROVISIONS,Supplies & Services,Provisions,Revenue
Walsall Council,http://opendatacommunities.org/id/metropolitan-district-council/walsall,WC107-71,31/08/2019,Adult Social Care,A F BLAKEMORE & SON LTD,27/08/2019,456.98,61016-FOOD AND BEVERAGES-PROVISIONS,Supplies & Services,Provisions,Revenue
Walsall Council,http://opendatacommunities.org/id/metropolitan-district-council/walsall,WC107-72,31/08/2019,Economy & Environment,A F BLAKEMORE & SON LTD,09/08/2019,673.29,61016-FOOD AND BEVERAGES-PROVISIONS,Supplies & Services,Provisions,Revenue
Walsall Council,http://opendatacommunities.org/id/metropolitan-district-council/walsall,WC107-73,31/08/2019,Economy & Environment,A F BLAKEMORE & SON LTD,20/08/2019,720.16,61000-FOOD & DRINK SUPPLIES,Supplies & Services,Provisions,Revenue
Walsall Council,http://opendatacommunities.org/id/metropolitan-district-council/walsall,WC107-74,31/08/2019,Economy & Environment,A F BLAKEMORE & SON LTD,22/08/2019,"1,038.06",61008-CONFECTIONERY/SNACKS-PROVISIONS,Supplies & Services,Provisions,Revenue
Walsall Council,http://opendatacommunities.org/id/metropolitan-district-council/walsall,WC107-75,31/08/2019,Economy & Environment,A M PRODUCTIONS (NORTHWEST) LTD,08/08/2019,"1,348.40",63000-PROFESSIONAL FEES AND SERVICES,Supplies & Services,Services,Revenue
Walsall Council,http://opendatacommunities.org/id/metropolitan-district-council/walsall,WC107-76,31/08/2019,Resources and Transformation,AAINA COMMUNITY HUB,02/08/2019,"23,092.00",73025-PROFESSIONAL SERVICES-PRIV CONTRACTOR & OTHER AGENCIES,Third Party Payments,Private Contractor Fees,Revenue
Walsall Council,http://opendatacommunities.org/id/metropolitan-district-council/walsall,WC107-77,31/08/2019,Adult Social Care,ABBEY COURT NURSING & RESIDEN,20/08/2019,"1,814.96",73500-RESIDENTIAL,Third Party Payments,Private Contractor Fees,Revenue
Walsall Council,http://opendatacommunities.org/id/metropolitan-district-council/walsall,WC107-78,31/08/2019,Adult Social Care,ABBEY COURT NURSING & RESIDEN,20/08/2019,"1,972.24",73501-RESIDENTIAL EMI,Third Party Payments,Private Contractor Fees,Revenue
Walsall Council,http://opendatacommunities.org/id/metropolitan-district-council/walsall,WC107-79,31/08/2019,Adult Social Care,ABBEY COURT NURSING & RESIDEN,20/08/2019,"1,972.24",73501-RESIDENTIAL EMI,Third Party Payments,Private Contractor Fees,Revenue
Walsall Council,http://opendatacommunities.org/id/metropolitan-district-council/walsall,WC107-80,31/08/2019,Adult Social Care,ABBEY COURT NURSING & RESIDEN,20/08/2019,"1,972.24",73501-RESIDENTIAL EMI,Third Party Payments,Private Contractor Fees,Revenue
Walsall Council,http://opendatacommunities.org/id/metropolitan-district-council/walsall,WC107-81,31/08/2019,Adult Social Care,ABBEY COURT NURSING & RESIDEN,20/08/2019,"2,358.08",73503-NURSING EMI,Third Party Payments,Private Contractor Fees,Revenue
Walsall Council,http://opendatacommunities.org/id/metropolitan-district-council/walsall,WC107-82,31/08/2019,Adult Social Care,ABBEY COURT NURSING & RESIDEN,20/08/2019,"2,383.72",73502-NURSING,Third Party Payments,Private Contractor Fees,Revenue
Walsall Council,http://opendatacommunities.org/id/metropolitan-district-council/walsall,WC107-83,31/08/2019,Adult Social Care,ABBEY HEALTHCARE HOMES LTD,20/08/2019,"2,317.04",73500-RESIDENTIAL,Third Party Payments,Private Contractor Fees,Revenue
Walsall Council,http://opendatacommunities.org/id/metropolitan-district-council/walsall,WC107-84,31/08/2019,Adult Social Care,ABBEY HEALTHCARE HOMES LTD,20/08/2019,"3,030.00",73500-RESIDENTIAL,Third Party Payments,Private Contractor Fees,Revenue
Walsall Council,http://opendatacommunities.org/id/metropolitan-district-council/walsall,WC107-85,31/08/2019,Adult Social Care,ABBEY HEALTHCARE HOMES LTD,20/08/2019,"3,030.00",73500-RESIDENTIAL,Third Party Payments,Private Contractor Fees,Revenue
Walsall Council,http://opendatacommunities.org/id/metropolitan-district-council/walsall,WC107-86,31/08/2019,Adult Social Care,ABBEY HEALTHCARE HOMES LTD,20/08/2019,"3,030.00",73500-RESIDENTIAL,Third Party Payments,Private Contractor Fees,Revenue
Walsall Council,http://opendatacommunities.org/id/metropolitan-district-council/walsall,WC107-87,31/08/2019,Adult Social Care,ABBEY HEALTHCARE HOMES LTD,20/08/2019,"3,030.00",73500-RESIDENTIAL,Third Party Payments,Private Contractor Fees,Revenue
Walsall Council,http://opendatacommunities.org/id/metropolitan-district-council/walsall,WC107-88,31/08/2019,Adult Social Care,ABBEY HEALTHCARE HOMES LTD,20/08/2019,"3,434.00",73500-RESIDENTIAL,Third Party Payments,Private Contractor Fees,Revenue
Walsall Council,http://opendatacommunities.org/id/metropolitan-district-council/walsall,WC107-89,31/08/2019,Adult Social Care,ABBEY HEALTHCARE HOMES LTD,20/08/2019,"3,514.44",73503-NURSING EMI,Third Party Payments,Private Contractor Fees,Revenue
Walsall Council,http://opendatacommunities.org/id/metropolitan-district-council/walsall,WC107-90,31/08/2019,Childrens,ABC DAY NURSERY (WILLENHALL) LIMITED,12/08/2019,280,63120-CRECHE FACILITIES-SERVICES-FEES,Supplies & Services,Other Supplies & Services,Revenue
Walsall Council,http://opendatacommunities.org/id/metropolitan-district-council/walsall,WC107-91,31/08/2019,Childrens,ABC DAY NURSERY (WILLENHALL) LIMITED,08/08/2019,516.75,77300-ISB-FORMULA ALLOCATION,Transfer Payments,Transfer Payments,Revenue
Walsall Council,http://opendatacommunities.org/id/metropolitan-district-council/walsall,WC107-92,31/08/2019,Adult Social Care,REDACTED,06/08/2019,"1,999.20",73506-DIRECT PAYMENT,Third Party Payments,Private Contractor Fees,Revenue
Walsall Council,http://opendatacommunities.org/id/metropolitan-district-council/walsall,WC107-93,31/08/2019,Childrens,ABLEWELL CARS,07/08/2019,"3,769.80",52000-WITH DRIVER-HIRE OF VEHICLES,Transport,Hire,Revenue
Walsall Council,http://opendatacommunities.org/id/metropolitan-district-council/walsall,WC107-94,31/08/2019,Childrens,ABS TAXIS (ALDRIDGE),07/08/2019,"1,400.00",52000-WITH DRIVER-HIRE OF VEHICLES,Transport,Hire,Revenue
Walsall Council,http://opendatacommunities.org/id/metropolitan-district-council/walsall,WC107-95,31/08/2019,Childrens,ABU BAKR NURSERY,08/08/2019,310.05,77300-ISB-FORMULA ALLOCATION,Transfer Payments,Transfer Payments,Revenue
Walsall Council,http://opendatacommunities.org/id/metropolitan-district-council/walsall,WC107-96,31/08/2019,Childrens,ABU BAKR NURSERY,06/08/2019,"1,168.82",66502-TOP UP FUNDING -GRANTS TO SCHOOLS,Third Party Payments,Grants to Other Orgs,Revenue
Walsall Council,http://opendatacommunities.org/id/metropolitan-district-council/walsall,WC107-97,31/08/2019,Adult Social Care,ACCORD HOUSING ASSOCIATION LTD#135,20/08/2019,-0.56,73508-COMMUNITY SUPPORTED LIVING/SUPPORTED ACCOMMODATION,Third Party Payments,Private Contractor Fees,Revenue
Walsall Council,http://opendatacommunities.org/id/metropolitan-district-council/walsall,WC107-98,31/08/2019,Adult Social Care,ACCORD HOUSING ASSOCIATION LTD#135,20/08/2019,267.68,73507-DOMICILIARY CARE,Third Party Payments,Private Contractor Fees,Revenue
Walsall Council,http://opendatacommunities.org/id/metropolitan-district-council/walsall,WC107-99,31/08/2019,Adult Social Care,ACCORD HOUSING ASSOCIATION LTD#135,20/08/2019,317.31,73507-DOMICILIARY CARE,Third Party Payments,Private Contractor Fees,Revenue
Walsall Council,http://opendatacommunities.org/id/metropolitan-district-council/walsall,WC107-100,31/08/2019,Adult Social Care,ACCORD HOUSING ASSOCIATION LTD#135,20/08/2019,319.98,73508-COMMUNITY SUPPORTED LIVING/SUPPORTED ACCOMMODATION,Third Party Payments,Private Contractor Fees,Revenue
Walsall Council,http://opendatacommunities.org/id/metropolitan-district-council/walsall,WC107-101,31/08/2019,Adult Social Care,ACCORD HOUSING ASSOCIATION LTD#135,20/08/2019,334.32,73507-DOMICILIARY CARE,Third Party Payments,Private Contractor Fees,Revenue
Walsall Council,http://opendatacommunities.org/id/metropolitan-district-council/walsall,WC107-102,31/08/2019,Adult Social Care,ACCORD HOUSING ASSOCIATION LTD#135,20/08/2019,334.32,73507-DOMICILIARY CARE,Third Party Payments,Private Contractor Fees,Revenue
Walsall Council,http://opendatacommunities.org/id/metropolitan-district-council/walsall,WC107-103,31/08/2019,Adult Social Care,ACCORD HOUSING ASSOCIATION LTD#135,20/08/2019,334.32,73507-DOMICILIARY CARE,Third Party Payments,Private Contractor Fees,Revenue
Walsall Council,http://opendatacommunities.org/id/metropolitan-district-council/walsall,WC107-104,31/08/2019,Adult Social Care,ACCORD HOUSING ASSOCIATION LTD#135,20/08/2019,400.68,73507-DOMICILIARY CARE,Third Party Payments,Private Contractor Fees,Revenue
Walsall Council,http://opendatacommunities.org/id/metropolitan-district-council/walsall,WC107-105,31/08/2019,Adult Social Care,ACCORD HOUSING ASSOCIATION LTD#135,20/08/2019,400.68,73507-DOMICILIARY CARE,Third Party Payments,Private Contractor Fees,Revenue
Walsall Council,http://opendatacommunities.org/id/metropolitan-district-council/walsall,WC107-106,31/08/2019,Adult Social Care,ACCORD HOUSING ASSOCIATION LTD#135,05/08/2019,400.69,73507-DOMICILIARY CARE,Third Party Payments,Private Contractor Fees,Revenue
Walsall Council,http://opendatacommunities.org/id/metropolitan-district-council/walsall,WC107-107,31/08/2019,Adult Social Care,ACCORD HOUSING ASSOCIATION LTD#135,05/08/2019,402.53,73507-DOMICILIARY CARE,Third Party Payments,Private Contractor Fees,Revenue
Walsall Council,http://opendatacommunities.org/id/metropolitan-district-council/walsall,WC107-108,31/08/2019,Adult Social Care,ACCORD HOUSING ASSOCIATION LTD#135,20/08/2019,434.49,73507-DOMICILIARY CARE,Third Party Payments,Private Contractor Fees,Revenue
Walsall Council,http://opendatacommunities.org/id/metropolitan-district-council/walsall,WC107-109,31/08/2019,Adult Social Care,ACCORD HOUSING ASSOCIATION LTD#135,20/08/2019,434.7,73507-DOMICILIARY CARE,Third Party Payments,Private Contractor Fees,Revenue
Walsall Council,http://opendatacommunities.org/id/metropolitan-district-council/walsall,WC107-110,31/08/2019,Adult Social Care,ACCORD HOUSING ASSOCIATION LTD#135,20/08/2019,458.34,73507-DOMICILIARY CARE,Third Party Payments,Private Contractor Fees,Revenue
Walsall Council,http://opendatacommunities.org/id/metropolitan-district-council/walsall,WC107-111,31/08/2019,Adult Social Care,ACCORD HOUSING ASSOCIATION LTD#135,20/08/2019,481.89,73507-DOMICILIARY CARE,Third Party Payments,Private Contractor Fees,Revenue
Walsall Council,http://opendatacommunities.org/id/metropolitan-district-council/walsall,WC107-112,31/08/2019,Adult Social Care,ACCORD HOUSING ASSOCIATION LTD#135,20/08/2019,482.46,73507-DOMICILIARY CARE,Third Party Payments,Private Contractor Fees,Revenue
Walsall Council,http://opendatacommunities.org/id/metropolitan-district-council/walsall,WC107-113,31/08/2019,Adult Social Care,ACCORD HOUSING ASSOCIATION LTD#135,20/08/2019,501.76,73507-DOMICILIARY CARE,Third Party Payments,Private Contractor Fees,Revenue
Walsall Council,http://opendatacommunities.org/id/metropolitan-district-council/walsall,WC107-114,31/08/2019,Adult Social Care,ACCORD HOUSING ASSOCIATION LTD#135,20/08/2019,515.58,73507-DOMICILIARY CARE,Third Party Payments,Private Contractor Fees,Revenue
Walsall Council,http://opendatacommunities.org/id/metropolitan-district-council/walsall,WC107-115,31/08/2019,Adult Social Care,ACCORD HOUSING ASSOCIATION LTD#135,20/08/2019,534.24,73507-DOMICILIARY CARE,Third Party Payments,Private Contractor Fees,Revenue
Walsall Council,http://opendatacommunities.org/id/metropolitan-district-council/walsall,WC107-116,31/08/2019,Adult Social Care,ACCORD HOUSING ASSOCIATION LTD#135,20/08/2019,568.12,73507-DOMICILIARY CARE,Third Party Payments,Private Contractor Fees,Revenue
Walsall Council,http://opendatacommunities.org/id/metropolitan-district-council/walsall,WC107-117,31/08/2019,Adult Social Care,ACCORD HOUSING ASSOCIATION LTD#135,20/08/2019,573.6,73507-DOMICILIARY CARE,Third Party Payments,Private Contractor Fees,Revenue
Walsall Council,http://opendatacommunities.org/id/metropolitan-district-council/walsall,WC107-118,31/08/2019,Adult Social Care,ACCORD HOUSING ASSOCIATION LTD#135,20/08/2019,642.24,73507-DOMICILIARY CARE,Third Party Payments,Private Contractor Fees,Revenue
Walsall Council,http://opendatacommunities.org/id/metropolitan-district-council/walsall,WC107-119,31/08/2019,Adult Social Care,ACCORD HOUSING ASSOCIATION LTD#135,20/08/2019,668.64,73507-DOMICILIARY CARE,Third Party Payments,Private Contractor Fees,Revenue
Walsall Council,http://opendatacommunities.org/id/metropolitan-district-council/walsall,WC107-120,31/08/2019,Adult Social Care,ACCORD HOUSING ASSOCIATION LTD#135,20/08/2019,680.04,73508-COMMUNITY SUPPORTED LIVING/SUPPORTED ACCOMMODATION,Third Party Payments,Private Contractor Fees,Revenue
Walsall Council,http://opendatacommunities.org/id/metropolitan-district-council/walsall,WC107-121,31/08/2019,Adult Social Care,ACCORD HOUSING ASSOCIATION LTD#135,20/08/2019,688.19,73508-COMMUNITY SUPPORTED LIVING/SUPPORTED ACCOMMODATION,Third Party Payments,Private Contractor Fees,Revenue
Walsall Council,http://opendatacommunities.org/id/metropolitan-district-council/walsall,WC107-122,31/08/2019,Adult Social Care,ACCORD HOUSING ASSOCIATION LTD#135,20/08/2019,717.8,73508-COMMUNITY SUPPORTED LIVING/SUPPORTED ACCOMMODATION,Third Party Payments,Private Contractor Fees,Revenue
Walsall Council,http://opendatacommunities.org/id/metropolitan-district-council/walsall,WC107-123,31/08/2019,Adult Social Care,ACCORD HOUSING ASSOCIATION LTD#135,20/08/2019,717.8,73508-COMMUNITY SUPPORTED LIVING/SUPPORTED ACCOMMODATION,Third Party Payments,Private Contractor Fees,Revenue
Walsall Council,http://opendatacommunities.org/id/metropolitan-district-council/walsall,WC107-124,31/08/2019,Adult Social Care,ACCORD HOUSING ASSOCIATION LTD#135,20/08/2019,717.8,73508-COMMUNITY SUPPORTED LIVING/SUPPORTED ACCOMMODATION,Third Party Payments,Private Contractor Fees,Revenue
Walsall Council,http://opendatacommunities.org/id/metropolitan-district-council/walsall,WC107-125,31/08/2019,Adult Social Care,ACCORD HOUSING ASSOCIATION LTD#135,20/08/2019,717.8,73508-COMMUNITY SUPPORTED LIVING/SUPPORTED ACCOMMODATION,Third Party Payments,Private Contractor Fees,Revenue
Walsall Council,http://opendatacommunities.org/id/metropolitan-district-council/walsall,WC107-126,31/08/2019,Adult Social Care,ACCORD HOUSING ASSOCIATION LTD#135,20/08/2019,717.8,73508-COMMUNITY SUPPORTED LIVING/SUPPORTED ACCOMMODATION,Third Party Payments,Private Contractor Fees,Revenue
Walsall Council,http://opendatacommunities.org/id/metropolitan-district-council/walsall,WC107-127,31/08/2019,Adult Social Care,ACCORD HOUSING ASSOCIATION LTD#135,20/08/2019,755.6,73508-COMMUNITY SUPPORTED LIVING/SUPPORTED ACCOMMODATION,Third Party Payments,Private Contractor Fees,Revenue
Walsall Council,http://opendatacommunities.org/id/metropolitan-district-council/walsall,WC107-128,31/08/2019,Adult Social Care,ACCORD HOUSING ASSOCIATION LTD#135,20/08/2019,768.88,73507-DOMICILIARY CARE,Third Party Payments,Private Contractor Fees,Revenue
Walsall Council,http://opendatacommunities.org/id/metropolitan-district-council/walsall,WC107-129,31/08/2019,Adult Social Care,ACCORD HOUSING ASSOCIATION LTD#135,20/08/2019,777.62,73507-DOMICILIARY CARE,Third Party Payments,Private Contractor Fees,Revenue
Walsall Council,http://opendatacommunities.org/id/metropolitan-district-council/walsall,WC107-130,31/08/2019,Adult Social Care,ACCORD HOUSING ASSOCIATION LTD#135,20/08/2019,850.04,73508-COMMUNITY SUPPORTED LIVING/SUPPORTED ACCOMMODATION,Third Party Payments,Private Contractor Fees,Revenue
Walsall Council,http://opendatacommunities.org/id/metropolitan-district-council/walsall,WC107-131,31/08/2019,Adult Social Care,ACCORD HOUSING ASSOCIATION LTD#135,20/08/2019,852.4,73507-DOMICILIARY CARE,Third Party Payments,Private Contractor Fees,Revenue
Walsall Council,http://opendatacommunities.org/id/metropolitan-district-council/walsall,WC107-132,31/08/2019,Adult Social Care,ACCORD HOUSING ASSOCIATION LTD#135,20/08/2019,854.72,73507-DOMICILIARY CARE,Third Party Payments,Private Contractor Fees,Revenue
Walsall Council,http://opendatacommunities.org/id/metropolitan-district-council/walsall,WC107-133,31/08/2019,Adult Social Care,ACCORD HOUSING ASSOCIATION LTD#135,20/08/2019,859.38,73507-DOMICILIARY CARE,Third Party Payments,Private Contractor Fees,Revenue
Walsall Council,http://opendatacommunities.org/id/metropolitan-district-council/walsall,WC107-134,31/08/2019,Adult Social Care,ACCORD HOUSING ASSOCIATION LTD#135,20/08/2019,892.58,73507-DOMICILIARY CARE,Third Party Payments,Private Contractor Fees,Revenue
Walsall Council,http://opendatacommunities.org/id/metropolitan-district-council/walsall,WC107-135,31/08/2019,Adult Social Care,ACCORD HOUSING ASSOCIATION LTD#135,20/08/2019,903.28,73507-DOMICILIARY CARE,Third Party Payments,Private Contractor Fees,Revenue
Walsall Council,http://opendatacommunities.org/id/metropolitan-district-council/walsall,WC107-136,31/08/2019,Adult Social Care,ACCORD HOUSING ASSOCIATION LTD#135,20/08/2019,911.76,73507-DOMICILIARY CARE,Third Party Payments,Private Contractor Fees,Revenue
Walsall Council,http://opendatacommunities.org/id/metropolitan-district-council/walsall,WC107-137,31/08/2019,Adult Social Care,ACCORD HOUSING ASSOCIATION LTD#135,20/08/2019,969.04,73507-DOMICILIARY CARE,Third Party Payments,Private Contractor Fees,Revenue
Walsall Council,http://opendatacommunities.org/id/metropolitan-district-council/walsall,WC107-138,31/08/2019,Adult Social Care,ACCORD HOUSING ASSOCIATION LTD#135,20/08/2019,982.28,73507-DOMICILIARY CARE,Third Party Payments,Private Contractor Fees,Revenue
Walsall Council,http://opendatacommunities.org/id/metropolitan-district-council/walsall,WC107-139,31/08/2019,Adult Social Care,ACCORD HOUSING ASSOCIATION LTD#135,20/08/2019,"1,079.53",73507-DOMICILIARY CARE,Third Party Payments,Private Contractor Fees,Revenue
Walsall Council,http://opendatacommunities.org/id/metropolitan-district-council/walsall,WC107-140,31/08/2019,Adult Social Care,ACCORD HOUSING ASSOCIATION LTD#135,20/08/2019,"1,202.04",73508-COMMUNITY SUPPORTED LIVING/SUPPORTED ACCOMMODATION,Third Party Payments,Private Contractor Fees,Revenue
Walsall Council,http://opendatacommunities.org/id/metropolitan-district-council/walsall,WC107-141,31/08/2019,Adult Social Care,ACCORD HOUSING ASSOCIATION LTD#135,20/08/2019,"1,202.64",73507-DOMICILIARY CARE,Third Party Payments,Private Contractor Fees,Revenue
Walsall Council,http://opendatacommunities.org/id/metropolitan-district-council/walsall,WC107-142,31/08/2019,Adult Social Care,ACCORD HOUSING ASSOCIATION LTD#135,20/08/2019,"1,328.88",73507-DOMICILIARY CARE,Third Party Payments,Private Contractor Fees,Revenue
Walsall Council,http://opendatacommunities.org/id/metropolitan-district-council/walsall,WC107-143,31/08/2019,Adult Social Care,ACCORD HOUSING ASSOCIATION LTD#135,20/08/2019,"1,361.18",73507-DOMICILIARY CARE,Third Party Payments,Private Contractor Fees,Revenue
Walsall Council,http://opendatacommunities.org/id/metropolitan-district-council/walsall,WC107-144,31/08/2019,Adult Social Care,ACCORD HOUSING ASSOCIATION LTD#135,20/08/2019,"1,470.56",73507-DOMICILIARY CARE,Third Party Payments,Private Contractor Fees,Revenue
Walsall Council,http://opendatacommunities.org/id/metropolitan-district-council/walsall,WC107-145,31/08/2019,Adult Social Care,ACCORD HOUSING ASSOCIATION LTD#135,20/08/2019,"1,471.12",73507-DOMICILIARY CARE,Third Party Payments,Private Contractor Fees,Revenue
Walsall Council,http://opendatacommunities.org/id/metropolitan-district-council/walsall,WC107-146,31/08/2019,Adult Social Care,ACCORD HOUSING ASSOCIATION LTD#135,20/08/2019,"1,632.64",73507-DOMICILIARY CARE,Third Party Payments,Private Contractor Fees,Revenue
Walsall Council,http://opendatacommunities.org/id/metropolitan-district-council/walsall,WC107-147,31/08/2019,Adult Social Care,ACCORD HOUSING ASSOCIATION LTD#135,20/08/2019,"1,640.66",73507-DOMICILIARY CARE,Third Party Payments,Private Contractor Fees,Revenue
Walsall Council,http://opendatacommunities.org/id/metropolitan-district-council/walsall,WC107-148,31/08/2019,Adult Social Care,ACCORD HOUSING ASSOCIATION LTD#135,20/08/2019,"1,672.16",73507-DOMICILIARY CARE,Third Party Payments,Private Contractor Fees,Revenue
Walsall Council,http://opendatacommunities.org/id/metropolitan-district-council/walsall,WC107-149,31/08/2019,Adult Social Care,ACCORD HOUSING ASSOCIATION LTD#135,20/08/2019,"1,705.48",73507-DOMICILIARY CARE,Third Party Payments,Private Contractor Fees,Revenue
Walsall Council,http://opendatacommunities.org/id/metropolitan-district-council/walsall,WC107-150,31/08/2019,Adult Social Care,ACCORD HOUSING ASSOCIATION LTD#135,20/08/2019,"1,770.72",73507-DOMICILIARY CARE,Third Party Payments,Private Contractor Fees,Revenue
Walsall Council,http://opendatacommunities.org/id/metropolitan-district-council/walsall,WC107-151,31/08/2019,Adult Social Care,ACCORD HOUSING ASSOCIATION LTD#135,20/08/2019,"1,806.56",73507-DOMICILIARY CARE,Third Party Payments,Private Contractor Fees,Revenue
Walsall Council,http://opendatacommunities.org/id/metropolitan-district-council/walsall,WC107-152,31/08/2019,Adult Social Care,ACCORD HOUSING ASSOCIATION LTD#135,20/08/2019,"1,847.59",73507-DOMICILIARY CARE,Third Party Payments,Private Contractor Fees,Revenue
Walsall Council,http://opendatacommunities.org/id/metropolitan-district-council/walsall,WC107-153,31/08/2019,Adult Social Care,ACCORD HOUSING ASSOCIATION LTD#135,05/08/2019,"3,442.74",73507-DOMICILIARY CARE,Third Party Payments,Private Contractor Fees,Revenue
Walsall Council,http://opendatacommunities.org/id/metropolitan-district-council/walsall,WC107-154,31/08/2019,Adult Social Care,ACCORD HOUSING ASSOCIATION LTD#135,20/08/2019,"4,550.44",73500-RESIDENTIAL,Third Party Payments,Private Contractor Fees,Revenue
Walsall Council,http://opendatacommunities.org/id/metropolitan-district-council/walsall,WC107-155,31/08/2019,Adult Social Care,ACCORD HOUSING ASSOCIATION LTD#135,20/08/2019,"4,550.44",73500-RESIDENTIAL,Third Party Payments,Private Contractor Fees,Revenue
Walsall Council,http://opendatacommunities.org/id/metropolitan-district-council/walsall,WC107-156,31/08/2019,Adult Social Care,ACCORD HOUSING ASSOCIATION LTD#135,20/08/2019,"4,550.44",73500-RESIDENTIAL,Third Party Payments,Private Contractor Fees,Revenue
Walsall Council,http://opendatacommunities.org/id/metropolitan-district-council/walsall,WC107-157,31/08/2019,Adult Social Care,ACCORD HOUSING ASSOCIATION LTD#135,20/08/2019,"4,550.44",73500-RESIDENTIAL,Third Party Payments,Private Contractor Fees,Revenue
Walsall Council,http://opendatacommunities.org/id/metropolitan-district-council/walsall,WC107-158,31/08/2019,Adult Social Care,ACCORD HOUSING ASSOCIATION LTD#135,20/08/2019,"6,350.96",73500-RESIDENTIAL,Third Party Payments,Private Contractor Fees,Revenue
Walsall Council,http://opendatacommunities.org/id/metropolitan-district-council/walsall,WC107-159,31/08/2019,Adult Social Care,ACCORD HOUSING ASSOCIATION LTD#135,20/08/2019,"6,350.96",73500-RESIDENTIAL,Third Party Payments,Private Contractor Fees,Revenue
Walsall Council,http://opendatacommunities.org/id/metropolitan-district-council/walsall,WC107-160,31/08/2019,Economy & Environment,ACCORD HOUSING ASSOCIATION LTD#135,09/08/2019,"7,437.50",63253-PAYMENT TO CONTRACTOR,Third Party Payments,Private Contractor Fees,Revenue
Walsall Council,http://opendatacommunities.org/id/metropolitan-district-council/walsall,WC107-161,31/08/2019,Adult Social Care,ACCORD HOUSING ASSOCIATION LTD#135,13/08/2019,"11,164.00",73365-BLOCK GROSS-SUPPORTING PEOPLE,Third Party Payments,Private Contractor Fees,Revenue
Walsall Council,http://opendatacommunities.org/id/metropolitan-district-council/walsall,WC107-162,31/08/2019,Economy & Environment,ACCORD HOUSING ASSOCIATION LTD#135,06/08/2019,"11,250.00",63253-PAYMENT TO CONTRACTOR,Third Party Payments,Private Contractor Fees,Revenue
Walsall Council,http://opendatacommunities.org/id/metropolitan-district-council/walsall,WC107-163,31/08/2019,Economy & Environment,ACCORD HOUSING ASSOCIATION LTD#135,13/08/2019,"11,250.00",63253-PAYMENT TO CONTRACTOR,Third Party Payments,Private Contractor Fees,Revenue
Walsall Council,http://opendatacommunities.org/id/metropolitan-district-council/walsall,WC107-164,31/08/2019,Adult Social Care,ACCORD HOUSING ASSOCIATION LTD#135,16/08/2019,"29,330.75",73365-BLOCK GROSS-SUPPORTING PEOPLE,Third Party Payments,Private Contractor Fees,Revenue
Walsall Council,http://opendatacommunities.org/id/metropolitan-district-council/walsall,WC107-165,31/08/2019,Adult Social Care,ACE CARE AGENCY,20/08/2019,379.18,73507-DOMICILIARY CARE,Third Party Payments,Private Contractor Fees,Revenue
Walsall Council,http://opendatacommunities.org/id/metropolitan-district-council/walsall,WC107-166,31/08/2019,Childrens,ACE CARS & MINIBUSES LTD,19/08/2019,"49,120.39",52000-WITH DRIVER-HIRE OF VEHICLES,Transport,Hire,Revenue
Walsall Council,http://opendatacommunities.org/id/metropolitan-district-council/walsall,WC107-167,31/08/2019,Adult Social Care,ACEPAY LTD (COTTAGE NUR HOME),20/08/2019,842.18,73502-NURSING,Third Party Payments,Private Contractor Fees,Revenue
Walsall Council,http://opendatacommunities.org/id/metropolitan-district-council/walsall,WC107-168,31/08/2019,Adult Social Care,ACEPAY LTD (COTTAGE NUR HOME),20/08/2019,"1,774.96",73500-RESIDENTIAL,Third Party Payments,Private Contractor Fees,Revenue
Walsall Council,http://opendatacommunities.org/id/metropolitan-district-council/walsall,WC107-169,31/08/2019,Adult Social Care,ACEPAY LTD (COTTAGE NUR HOME),20/08/2019,"1,972.24",73501-RESIDENTIAL EMI,Third Party Payments,Private Contractor Fees,Revenue
Walsall Council,http://opendatacommunities.org/id/metropolitan-district-council/walsall,WC107-170,31/08/2019,Adult Social Care,ACEPAY LTD (COTTAGE NUR HOME),20/08/2019,"2,143.72",73502-NURSING,Third Party Payments,Private Contractor Fees,Revenue
Walsall Council,http://opendatacommunities.org/id/metropolitan-district-council/walsall,WC107-171,31/08/2019,Adult Social Care,ACEPAY LTD (COTTAGE NUR HOME),20/08/2019,"2,143.72",73502-NURSING,Third Party Payments,Private Contractor Fees,Revenue
Walsall Council,http://opendatacommunities.org/id/metropolitan-district-council/walsall,WC107-172,31/08/2019,Adult Social Care,ACEPAY LTD (COTTAGE NUR HOME),20/08/2019,"2,143.72",73502-NURSING,Third Party Payments,Private Contractor Fees,Revenue
Walsall Council,http://opendatacommunities.org/id/metropolitan-district-council/walsall,WC107-173,31/08/2019,Adult Social Care,ACEPAY LTD (COTTAGE NUR HOME),20/08/2019,"2,143.72",73502-NURSING,Third Party Payments,Private Contractor Fees,Revenue
Walsall Council,http://opendatacommunities.org/id/metropolitan-district-council/walsall,WC107-174,31/08/2019,Adult Social Care,ACEPAY LTD (COTTAGE NUR HOME),20/08/2019,"2,143.72",73502-NURSING,Third Party Payments,Private Contractor Fees,Revenue
Walsall Council,http://opendatacommunities.org/id/metropolitan-district-council/walsall,WC107-175,31/08/2019,Adult Social Care,ACEPAY LTD (COTTAGE NUR HOME),20/08/2019,"2,143.72",73502-NURSING,Third Party Payments,Private Contractor Fees,Revenue
Walsall Council,http://opendatacommunities.org/id/metropolitan-district-council/walsall,WC107-176,31/08/2019,Adult Social Care,ACEPAY LTD (COTTAGE NUR HOME),20/08/2019,"2,143.72",73502-NURSING,Third Party Payments,Private Contractor Fees,Revenue
Walsall Council,http://opendatacommunities.org/id/metropolitan-district-council/walsall,WC107-177,31/08/2019,Adult Social Care,ACEPAY LTD (COTTAGE NUR HOME),20/08/2019,"2,143.72",73502-NURSING,Third Party Payments,Private Contractor Fees,Revenue
Walsall Council,http://opendatacommunities.org/id/metropolitan-district-council/walsall,WC107-178,31/08/2019,Adult Social Care,ACEPAY LTD (COTTAGE NUR HOME),20/08/2019,"2,143.72",73502-NURSING,Third Party Payments,Private Contractor Fees,Revenue
Walsall Council,http://opendatacommunities.org/id/metropolitan-district-council/walsall,WC107-179,31/08/2019,Adult Social Care,ACEPAY LTD (COTTAGE NUR HOME),20/08/2019,"2,143.72",73502-NURSING,Third Party Payments,Private Contractor Fees,Revenue
Walsall Council,http://opendatacommunities.org/id/metropolitan-district-council/walsall,WC107-180,31/08/2019,Adult Social Care,ACEPAY LTD (COTTAGE NUR HOME),20/08/2019,"2,143.72",73502-NURSING,Third Party Payments,Private Contractor Fees,Revenue
Walsall Council,http://opendatacommunities.org/id/metropolitan-district-council/walsall,WC107-181,31/08/2019,Adult Social Care,ACEPAY LTD (COTTAGE NUR HOME),20/08/2019,"2,143.72",73502-NURSING,Third Party Payments,Private Contractor Fees,Revenue
Walsall Council,http://opendatacommunities.org/id/metropolitan-district-council/walsall,WC107-182,31/08/2019,Adult Social Care,ACEPAY LTD (COTTAGE NUR HOME),20/08/2019,"2,143.72",73502-NURSING,Third Party Payments,Private Contractor Fees,Revenue
Walsall Council,http://opendatacommunities.org/id/metropolitan-district-council/walsall,WC107-183,31/08/2019,Adult Social Care,ACEPAY LTD (COTTAGE NUR HOME),20/08/2019,"2,143.72",73502-NURSING,Third Party Payments,Private Contractor Fees,Revenue
Walsall Council,http://opendatacommunities.org/id/metropolitan-district-council/walsall,WC107-184,31/08/2019,Adult Social Care,ACEPAY LTD (COTTAGE NUR HOME),20/08/2019,"2,343.72",73502-NURSING,Third Party Payments,Private Contractor Fees,Revenue
Walsall Council,http://opendatacommunities.org/id/metropolitan-district-council/walsall,WC107-185,31/08/2019,Childrens,ACORN CARE & EDUCATION LTD (SALES),19/08/2019,"6,333.34",66502-TOP UP FUNDING -GRANTS TO SCHOOLS,Third Party Payments,Grants to Other Orgs,Revenue
Walsall Council,http://opendatacommunities.org/id/metropolitan-district-council/walsall,WC107-186,31/08/2019,Childrens,ACORN CARE & EDUCATION LTD (SALES),20/08/2019,"9,121.95",66502-TOP UP FUNDING -GRANTS TO SCHOOLS,Third Party Payments,Grants to Other Orgs,Revenue
Walsall Council,http://opendatacommunities.org/id/metropolitan-district-council/walsall,WC107-187,31/08/2019,Childrens,ACORN CARE & EDUCATION LTD (SALES),20/08/2019,"14,053.34",66502-TOP UP FUNDING -GRANTS TO SCHOOLS,Third Party Payments,Grants to Other Orgs,Revenue
Walsall Council,http://opendatacommunities.org/id/metropolitan-district-council/walsall,WC107-188,31/08/2019,Childrens,ACORN CARE & EDUCATION LTD (SALES),19/08/2019,"14,456.66",66502-TOP UP FUNDING -GRANTS TO SCHOOLS,Third Party Payments,Grants to Other Orgs,Revenue
Walsall Council,http://opendatacommunities.org/id/metropolitan-district-council/walsall,WC107-189,31/08/2019,Childrens,ACORN CARE & EDUCATION LTD (SALES),20/08/2019,"14,456.66",66502-TOP UP FUNDING -GRANTS TO SCHOOLS,Third Party Payments,Grants to Other Orgs,Revenue
Walsall Council,http://opendatacommunities.org/id/metropolitan-district-council/walsall,WC107-190,31/08/2019,Childrens,ACORN CARE & EDUCATION LTD (SALES),20/08/2019,"14,456.66",66502-TOP UP FUNDING -GRANTS TO SCHOOLS,Third Party Payments,Grants to Other Orgs,Revenue
Walsall Council,http://opendatacommunities.org/id/metropolitan-district-council/walsall,WC107-191,31/08/2019,Childrens,ACORN CARE & EDUCATION LTD (SALES),19/08/2019,"16,166.66",66502-TOP UP FUNDING -GRANTS TO SCHOOLS,Third Party Payments,Grants to Other Orgs,Revenue
Walsall Council,http://opendatacommunities.org/id/metropolitan-district-council/walsall,WC107-192,31/08/2019,Adult Social Care,ACORN REST HOME,20/08/2019,"1,711.57",73500-RESIDENTIAL,Third Party Payments,Private Contractor Fees,Revenue
Walsall Council,http://opendatacommunities.org/id/metropolitan-district-council/walsall,WC107-193,31/08/2019,Adult Social Care,ACORN REST HOME,27/08/2019,"1,757.86",73373-RESIDENTIAL & NURSING CARE PLACEMENTS,Third Party Payments,Private Contractor Fees,Revenue
Walsall Council,http://opendatacommunities.org/id/metropolitan-district-council/walsall,WC107-194,31/08/2019,Adult Social Care,ACORN REST HOME,27/08/2019,"2,140.00",73373-RESIDENTIAL & NURSING CARE PLACEMENTS,Third Party Payments,Private Contractor Fees,Revenue
Walsall Council,http://opendatacommunities.org/id/metropolitan-district-council/walsall,WC107-195,31/08/2019,Adult Social Care,ACORN REST HOME,20/08/2019,"2,226.12",73500-RESIDENTIAL,Third Party Payments,Private Contractor Fees,Revenue
Walsall Council,http://opendatacommunities.org/id/metropolitan-district-council/walsall,WC107-196,31/08/2019,Economy & Environment,ACTION DIGITAL MEDIA LTD T/A ACTION GRAPHICS,13/08/2019,255.75,"62521-INTERPRETATION,TRANSLATION & HUMAN AIDS TO TRANSCRIPTION",Supplies & Services,Services,Revenue
Walsall Council,http://opendatacommunities.org/id/metropolitan-district-council/walsall,WC107-197,31/08/2019,Economy & Environment,ACTION MIDLANDS LTD,06/08/2019,150,63000-PROFESSIONAL FEES AND SERVICES,Supplies & Services,Services,Revenue
Walsall Council,http://opendatacommunities.org/id/metropolitan-district-council/walsall,WC107-198,31/08/2019,Economy & Environment,ACTION MIDLANDS LTD,06/08/2019,150,63000-PROFESSIONAL FEES AND SERVICES,Supplies & Services,Services,Revenue
Walsall Council,http://opendatacommunities.org/id/metropolitan-district-council/walsall,WC107-199,31/08/2019,Adult Social Care,ACTION ON HEARING LOSS,05/08/2019,"1,008.00",73508-COMMUNITY SUPPORTED LIVING/SUPPORTED ACCOMMODATION,Third Party Payments,Private Contractor Fees,Revenue
Walsall Council,http://opendatacommunities.org/id/metropolitan-district-council/walsall,WC107-200,31/08/2019,Adult Social Care,ACTION ON HEARING LOSS,05/08/2019,"1,008.00",73508-COMMUNITY SUPPORTED LIVING/SUPPORTED ACCOMMODATION,Third Party Payments,Private Contractor Fees,Revenue
Walsall Council,http://opendatacommunities.org/id/metropolitan-district-council/walsall,WC107-201,31/08/2019,Adult Social Care,ACTION ON HEARING LOSS,05/08/2019,"1,008.00",73508-COMMUNITY SUPPORTED LIVING/SUPPORTED ACCOMMODATION,Third Party Payments,Private Contractor Fees,Revenue
Walsall Council,http://opendatacommunities.org/id/metropolitan-district-council/walsall,WC107-202,31/08/2019,Adult Social Care,ACTION ON HEARING LOSS,05/08/2019,"1,008.00",73508-COMMUNITY SUPPORTED LIVING/SUPPORTED ACCOMMODATION,Third Party Payments,Private Contractor Fees,Revenue
Walsall Council,http://opendatacommunities.org/id/metropolitan-district-council/walsall,WC107-203,31/08/2019,Adult Social Care,ACTION ON HEARING LOSS,20/08/2019,"1,008.00",73508-COMMUNITY SUPPORTED LIVING/SUPPORTED ACCOMMODATION,Third Party Payments,Private Contractor Fees,Revenue
Walsall Council,http://opendatacommunities.org/id/metropolitan-district-council/walsall,WC107-204,31/08/2019,Childrens,ACTIVE CARE SOLUTIONS LTD,12/08/2019,"2,769.09",74037-INDEPENDENT FOSTER CARE-OTH AGENCY PROVISION,Third Party Payments,Private Contractor Fees,Revenue
Walsall Council,http://opendatacommunities.org/id/metropolitan-district-council/walsall,WC107-205,31/08/2019,Childrens,ACTIVE CARE SOLUTIONS LTD,12/08/2019,"3,024.00",74037-INDEPENDENT FOSTER CARE-OTH AGENCY PROVISION,Third Party Payments,Private Contractor Fees,Revenue
Walsall Council,http://opendatacommunities.org/id/metropolitan-district-council/walsall,WC107-206,31/08/2019,Childrens,ACTIVE CARE SOLUTIONS LTD,12/08/2019,"3,024.00",74037-INDEPENDENT FOSTER CARE-OTH AGENCY PROVISION,Third Party Payments,Private Contractor Fees,Revenue
Walsall Council,http://opendatacommunities.org/id/metropolitan-district-council/walsall,WC107-207,31/08/2019,Childrens,ACTIVE CARE SOLUTIONS LTD,12/08/2019,"3,220.00",74037-INDEPENDENT FOSTER CARE-OTH AGENCY PROVISION,Third Party Payments,Private Contractor Fees,Revenue
Walsall Council,http://opendatacommunities.org/id/metropolitan-district-council/walsall,WC107-208,31/08/2019,Adult Social Care,REDACTED,06/08/2019,442.52,73506-DIRECT PAYMENT,Third Party Payments,Private Contractor Fees,Revenue
Walsall Council,http://opendatacommunities.org/id/metropolitan-district-council/walsall,WC107-209,31/08/2019,Adult Social Care,ADASS,02/08/2019,"2,015.00",76423-DIRECT PAYMENTS SUPPORT,Transfer Payments,Transfer Payments,Revenue
Walsall Council,http://opendatacommunities.org/id/metropolitan-district-council/walsall,WC107-210,31/08/2019,Resources and Transformation,ADELIE FOODS LTD,19/08/2019,457.92,61305-CATERING,Supplies & Services,Provisions,Revenue
Walsall Council,http://opendatacommunities.org/id/metropolitan-district-council/walsall,WC107-211,31/08/2019,Resources and Transformation,ADELIE FOODS LTD,19/08/2019,654.5,61305-CATERING,Supplies & Services,Provisions,Revenue
Walsall Council,http://opendatacommunities.org/id/metropolitan-district-council/walsall,WC107-212,31/08/2019,Resources and Transformation,ADELIE FOODS LTD,07/08/2019,847.46,61305-CATERING,Supplies & Services,Provisions,Revenue
Walsall Council,http://opendatacommunities.org/id/metropolitan-district-council/walsall,WC107-213,31/08/2019,Resources and Transformation,ADELIE FOODS LTD,05/08/2019,902.76,61305-CATERING,Supplies & Services,Provisions,Revenue
Walsall Council,http://opendatacommunities.org/id/metropolitan-district-council/walsall,WC107-214,31/08/2019,Adult Social Care,REDACTED,06/08/2019,"1,033.16",73506-DIRECT PAYMENT,Third Party Payments,Private Contractor Fees,Revenue
Walsall Council,http://opendatacommunities.org/id/metropolitan-district-council/walsall,WC107-215,31/08/2019,Childrens,ADMIRAL SELF STORAGE LTD,19/08/2019,"1,303.57",63000-PROFESSIONAL FEES AND SERVICES,Supplies & Services,Services,Revenue
Walsall Council,http://opendatacommunities.org/id/metropolitan-district-council/walsall,WC107-216,31/08/2019,Childrens,REDACTED,27/08/2019,333.12,74510-RESIDENTS ORDERS,Third Party Payments,Private Contractor Fees,Revenue
Walsall Council,http://opendatacommunities.org/id/metropolitan-district-council/walsall,WC107-217,31/08/2019,Childrens,REDACTED,27/08/2019,361.12,74510-RESIDENTS ORDERS,Third Party Payments,Private Contractor Fees,Revenue
Walsall Council,http://opendatacommunities.org/id/metropolitan-district-council/walsall,WC107-218,31/08/2019,Adult Social Care,REDACTED,06/08/2019,"2,083.20",73506-DIRECT PAYMENT,Third Party Payments,Private Contractor Fees,Revenue
Walsall Council,http://opendatacommunities.org/id/metropolitan-district-council/walsall,WC107-219,31/08/2019,Adult Social Care,ADVANCE HEALTH CARE (UK) LTD,15/08/2019,6.93,73507-DOMICILIARY CARE,Third Party Payments,Private Contractor Fees,Revenue
Walsall Council,http://opendatacommunities.org/id/metropolitan-district-council/walsall,WC107-220,31/08/2019,Adult Social Care,ADVANCE HEALTH CARE (UK) LTD,02/08/2019,250.78,73025-PROFESSIONAL SERVICES-PRIV CONTRACTOR & OTHER AGENCIES,Third Party Payments,Private Contractor Fees,Revenue
Walsall Council,http://opendatacommunities.org/id/metropolitan-district-council/walsall,WC107-221,31/08/2019,Adult Social Care,ADVANCE HEALTH CARE (UK) LTD,15/08/2019,257.94,73025-PROFESSIONAL SERVICES-PRIV CONTRACTOR & OTHER AGENCIES,Third Party Payments,Private Contractor Fees,Revenue
Walsall Council,http://opendatacommunities.org/id/metropolitan-district-council/walsall,WC107-222,31/08/2019,Adult Social Care,ADVANCE HEALTH CARE (UK) LTD,15/08/2019,276.68,73507-DOMICILIARY CARE,Third Party Payments,Private Contractor Fees,Revenue
Walsall Council,http://opendatacommunities.org/id/metropolitan-district-council/walsall,WC107-223,31/08/2019,Adult Social Care,ADVANCE HEALTH CARE (UK) LTD,02/08/2019,300.93,73025-PROFESSIONAL SERVICES-PRIV CONTRACTOR & OTHER AGENCIES,Third Party Payments,Private Contractor Fees,Revenue
Walsall Council,http://opendatacommunities.org/id/metropolitan-district-council/walsall,WC107-224,31/08/2019,Adult Social Care,ADVANCE HEALTH CARE (UK) LTD,19/08/2019,303.82,73507-DOMICILIARY CARE,Third Party Payments,Private Contractor Fees,Revenue
Walsall Council,http://opendatacommunities.org/id/metropolitan-district-council/walsall,WC107-225,31/08/2019,Adult Social Care,ADVANCE HEALTH CARE (UK) LTD,02/08/2019,322.43,73025-PROFESSIONAL SERVICES-PRIV CONTRACTOR & OTHER AGENCIES,Third Party Payments,Private Contractor Fees,Revenue
Walsall Council,http://opendatacommunities.org/id/metropolitan-district-council/walsall,WC107-226,31/08/2019,Adult Social Care,ADVANCE HEALTH CARE (UK) LTD,05/08/2019,322.43,73025-PROFESSIONAL SERVICES-PRIV CONTRACTOR & OTHER AGENCIES,Third Party Payments,Private Contractor Fees,Revenue
Walsall Council,http://opendatacommunities.org/id/metropolitan-district-council/walsall,WC107-227,31/08/2019,Adult Social Care,ADVANCE HEALTH CARE (UK) LTD,15/08/2019,351.09,73025-PROFESSIONAL SERVICES-PRIV CONTRACTOR & OTHER AGENCIES,Third Party Payments,Private Contractor Fees,Revenue
Walsall Council,http://opendatacommunities.org/id/metropolitan-district-council/walsall,WC107-228,31/08/2019,Adult Social Care,ADVANCE HEALTH CARE (UK) LTD,19/08/2019,351.21,73507-DOMICILIARY CARE,Third Party Payments,Private Contractor Fees,Revenue
Walsall Council,http://opendatacommunities.org/id/metropolitan-district-council/walsall,WC107-229,31/08/2019,Adult Social Care,ADVANCE HEALTH CARE (UK) LTD,19/08/2019,401.52,73507-DOMICILIARY CARE,Third Party Payments,Private Contractor Fees,Revenue
Walsall Council,http://opendatacommunities.org/id/metropolitan-district-council/walsall,WC107-230,31/08/2019,Adult Social Care,ADVANCE HEALTH CARE (UK) LTD,19/08/2019,403.93,73507-DOMICILIARY CARE,Third Party Payments,Private Contractor Fees,Revenue
Walsall Council,http://opendatacommunities.org/id/metropolitan-district-council/walsall,WC107-231,31/08/2019,Adult Social Care,ADVANCE HEALTH CARE (UK) LTD,02/08/2019,451.4,73025-PROFESSIONAL SERVICES-PRIV CONTRACTOR & OTHER AGENCIES,Third Party Payments,Private Contractor Fees,Revenue
Walsall Council,http://opendatacommunities.org/id/metropolitan-district-council/walsall,WC107-232,31/08/2019,Adult Social Care,ADVANCE HEALTH CARE (UK) LTD,05/08/2019,451.4,73025-PROFESSIONAL SERVICES-PRIV CONTRACTOR & OTHER AGENCIES,Third Party Payments,Private Contractor Fees,Revenue
Walsall Council,http://opendatacommunities.org/id/metropolitan-district-council/walsall,WC107-233,31/08/2019,Adult Social Care,ADVANCE HEALTH CARE (UK) LTD,05/08/2019,451.4,73025-PROFESSIONAL SERVICES-PRIV CONTRACTOR & OTHER AGENCIES,Third Party Payments,Private Contractor Fees,Revenue
Walsall Council,http://opendatacommunities.org/id/metropolitan-district-council/walsall,WC107-234,31/08/2019,Adult Social Care,ADVANCE HEALTH CARE (UK) LTD,05/08/2019,451.4,73025-PROFESSIONAL SERVICES-PRIV CONTRACTOR & OTHER AGENCIES,Third Party Payments,Private Contractor Fees,Revenue
Walsall Council,http://opendatacommunities.org/id/metropolitan-district-council/walsall,WC107-235,31/08/2019,Adult Social Care,ADVANCE HEALTH CARE (UK) LTD,05/08/2019,451.4,73025-PROFESSIONAL SERVICES-PRIV CONTRACTOR & OTHER AGENCIES,Third Party Payments,Private Contractor Fees,Revenue
Walsall Council,http://opendatacommunities.org/id/metropolitan-district-council/walsall,WC107-236,31/08/2019,Adult Social Care,ADVANCE HEALTH CARE (UK) LTD,08/08/2019,451.4,73025-PROFESSIONAL SERVICES-PRIV CONTRACTOR & OTHER AGENCIES,Third Party Payments,Private Contractor Fees,Revenue
Walsall Council,http://opendatacommunities.org/id/metropolitan-district-council/walsall,WC107-237,31/08/2019,Adult Social Care,ADVANCE HEALTH CARE (UK) LTD,08/08/2019,451.4,73025-PROFESSIONAL SERVICES-PRIV CONTRACTOR & OTHER AGENCIES,Third Party Payments,Private Contractor Fees,Revenue
Walsall Council,http://opendatacommunities.org/id/metropolitan-district-council/walsall,WC107-238,31/08/2019,Adult Social Care,ADVANCE HEALTH CARE (UK) LTD,08/08/2019,451.4,73025-PROFESSIONAL SERVICES-PRIV CONTRACTOR & OTHER AGENCIES,Third Party Payments,Private Contractor Fees,Revenue
Walsall Council,http://opendatacommunities.org/id/metropolitan-district-council/walsall,WC107-239,31/08/2019,Adult Social Care,ADVANCE HEALTH CARE (UK) LTD,08/08/2019,451.4,73025-PROFESSIONAL SERVICES-PRIV CONTRACTOR & OTHER AGENCIES,Third Party Payments,Private Contractor Fees,Revenue
Walsall Council,http://opendatacommunities.org/id/metropolitan-district-council/walsall,WC107-240,31/08/2019,Adult Social Care,ADVANCE HEALTH CARE (UK) LTD,08/08/2019,451.4,73025-PROFESSIONAL SERVICES-PRIV CONTRACTOR & OTHER AGENCIES,Third Party Payments,Private Contractor Fees,Revenue
Walsall Council,http://opendatacommunities.org/id/metropolitan-district-council/walsall,WC107-241,31/08/2019,Adult Social Care,ADVANCE HEALTH CARE (UK) LTD,08/08/2019,451.4,73025-PROFESSIONAL SERVICES-PRIV CONTRACTOR & OTHER AGENCIES,Third Party Payments,Private Contractor Fees,Revenue
Walsall Council,http://opendatacommunities.org/id/metropolitan-district-council/walsall,WC107-242,31/08/2019,Adult Social Care,ADVANCE HEALTH CARE (UK) LTD,08/08/2019,451.4,73025-PROFESSIONAL SERVICES-PRIV CONTRACTOR & OTHER AGENCIES,Third Party Payments,Private Contractor Fees,Revenue
Walsall Council,http://opendatacommunities.org/id/metropolitan-district-council/walsall,WC107-243,31/08/2019,Adult Social Care,ADVANCE HEALTH CARE (UK) LTD,15/08/2019,451.4,73025-PROFESSIONAL SERVICES-PRIV CONTRACTOR & OTHER AGENCIES,Third Party Payments,Private Contractor Fees,Revenue
Walsall Council,http://opendatacommunities.org/id/metropolitan-district-council/walsall,WC107-244,31/08/2019,Adult Social Care,ADVANCE HEALTH CARE (UK) LTD,15/08/2019,451.4,73025-PROFESSIONAL SERVICES-PRIV CONTRACTOR & OTHER AGENCIES,Third Party Payments,Private Contractor Fees,Revenue
Walsall Council,http://opendatacommunities.org/id/metropolitan-district-council/walsall,WC107-245,31/08/2019,Adult Social Care,ADVANCE HEALTH CARE (UK) LTD,15/08/2019,451.4,73025-PROFESSIONAL SERVICES-PRIV CONTRACTOR & OTHER AGENCIES,Third Party Payments,Private Contractor Fees,Revenue
Walsall Council,http://opendatacommunities.org/id/metropolitan-district-council/walsall,WC107-246,31/08/2019,Adult Social Care,ADVANCE HEALTH CARE (UK) LTD,15/08/2019,451.4,73025-PROFESSIONAL SERVICES-PRIV CONTRACTOR & OTHER AGENCIES,Third Party Payments,Private Contractor Fees,Revenue
Walsall Council,http://opendatacommunities.org/id/metropolitan-district-council/walsall,WC107-247,31/08/2019,Adult Social Care,ADVANCE HEALTH CARE (UK) LTD,15/08/2019,451.4,73025-PROFESSIONAL SERVICES-PRIV CONTRACTOR & OTHER AGENCIES,Third Party Payments,Private Contractor Fees,Revenue
Walsall Council,http://opendatacommunities.org/id/metropolitan-district-council/walsall,WC107-248,31/08/2019,Adult Social Care,ADVANCE HEALTH CARE (UK) LTD,15/08/2019,451.4,73025-PROFESSIONAL SERVICES-PRIV CONTRACTOR & OTHER AGENCIES,Third Party Payments,Private Contractor Fees,Revenue
Walsall Council,http://opendatacommunities.org/id/metropolitan-district-council/walsall,WC107-249,31/08/2019,Adult Social Care,ADVANCE HEALTH CARE (UK) LTD,15/08/2019,451.4,73025-PROFESSIONAL SERVICES-PRIV CONTRACTOR & OTHER AGENCIES,Third Party Payments,Private Contractor Fees,Revenue
Walsall Council,http://opendatacommunities.org/id/metropolitan-district-council/walsall,WC107-250,31/08/2019,Adult Social Care,ADVANCE HEALTH CARE (UK) LTD,15/08/2019,451.4,73025-PROFESSIONAL SERVICES-PRIV CONTRACTOR & OTHER AGENCIES,Third Party Payments,Private Contractor Fees,Revenue
Walsall Council,http://opendatacommunities.org/id/metropolitan-district-council/walsall,WC107-251,31/08/2019,Adult Social Care,ADVANCE HEALTH CARE (UK) LTD,15/08/2019,451.4,73025-PROFESSIONAL SERVICES-PRIV CONTRACTOR & OTHER AGENCIES,Third Party Payments,Private Contractor Fees,Revenue
Walsall Council,http://opendatacommunities.org/id/metropolitan-district-council/walsall,WC107-252,31/08/2019,Adult Social Care,ADVANCE HEALTH CARE (UK) LTD,15/08/2019,451.4,73025-PROFESSIONAL SERVICES-PRIV CONTRACTOR & OTHER AGENCIES,Third Party Payments,Private Contractor Fees,Revenue
Walsall Council,http://opendatacommunities.org/id/metropolitan-district-council/walsall,WC107-253,31/08/2019,Adult Social Care,ADVANCE HEALTH CARE (UK) LTD,15/08/2019,451.4,73025-PROFESSIONAL SERVICES-PRIV CONTRACTOR & OTHER AGENCIES,Third Party Payments,Private Contractor Fees,Revenue
Walsall Council,http://opendatacommunities.org/id/metropolitan-district-council/walsall,WC107-254,31/08/2019,Adult Social Care,ADVANCE HEALTH CARE (UK) LTD,15/08/2019,451.4,73025-PROFESSIONAL SERVICES-PRIV CONTRACTOR & OTHER AGENCIES,Third Party Payments,Private Contractor Fees,Revenue
Walsall Council,http://opendatacommunities.org/id/metropolitan-district-council/walsall,WC107-255,31/08/2019,Adult Social Care,ADVANCE HEALTH CARE (UK) LTD,15/08/2019,451.4,73025-PROFESSIONAL SERVICES-PRIV CONTRACTOR & OTHER AGENCIES,Third Party Payments,Private Contractor Fees,Revenue
Walsall Council,http://opendatacommunities.org/id/metropolitan-district-council/walsall,WC107-256,31/08/2019,Adult Social Care,ADVANCE HEALTH CARE (UK) LTD,19/08/2019,487.44,73507-DOMICILIARY CARE,Third Party Payments,Private Contractor Fees,Revenue
Walsall Council,http://opendatacommunities.org/id/metropolitan-district-council/walsall,WC107-257,31/08/2019,Adult Social Care,ADVANCE HEALTH CARE (UK) LTD,19/08/2019,495.82,73507-DOMICILIARY CARE,Third Party Payments,Private Contractor Fees,Revenue
Walsall Council,http://opendatacommunities.org/id/metropolitan-district-council/walsall,WC107-258,31/08/2019,Adult Social Care,ADVANCE HEALTH CARE (UK) LTD,19/08/2019,536.56,73507-DOMICILIARY CARE,Third Party Payments,Private Contractor Fees,Revenue
Walsall Council,http://opendatacommunities.org/id/metropolitan-district-council/walsall,WC107-259,31/08/2019,Adult Social Care,ADVANCE HEALTH CARE (UK) LTD,19/08/2019,598.56,73507-DOMICILIARY CARE,Third Party Payments,Private Contractor Fees,Revenue
Walsall Council,http://opendatacommunities.org/id/metropolitan-district-council/walsall,WC107-260,31/08/2019,Adult Social Care,ADVANCE HEALTH CARE (UK) LTD,19/08/2019,605.9,73507-DOMICILIARY CARE,Third Party Payments,Private Contractor Fees,Revenue
Walsall Council,http://opendatacommunities.org/id/metropolitan-district-council/walsall,WC107-261,31/08/2019,Adult Social Care,ADVANCE HEALTH CARE (UK) LTD,19/08/2019,614.22,73507-DOMICILIARY CARE,Third Party Payments,Private Contractor Fees,Revenue
Walsall Council,http://opendatacommunities.org/id/metropolitan-district-council/walsall,WC107-262,31/08/2019,Adult Social Care,ADVANCE HEALTH CARE (UK) LTD,19/08/2019,652.46,73507-DOMICILIARY CARE,Third Party Payments,Private Contractor Fees,Revenue
Walsall Council,http://opendatacommunities.org/id/metropolitan-district-council/walsall,WC107-263,31/08/2019,Adult Social Care,ADVANCE HEALTH CARE (UK) LTD,19/08/2019,786.36,73507-DOMICILIARY CARE,Third Party Payments,Private Contractor Fees,Revenue
Walsall Council,http://opendatacommunities.org/id/metropolitan-district-council/walsall,WC107-264,31/08/2019,Adult Social Care,ADVANCE HEALTH CARE (UK) LTD,19/08/2019,789.87,73507-DOMICILIARY CARE,Third Party Payments,Private Contractor Fees,Revenue
Walsall Council,http://opendatacommunities.org/id/metropolitan-district-council/walsall,WC107-265,31/08/2019,Adult Social Care,ADVANCE HEALTH CARE (UK) LTD,19/08/2019,798.29,73507-DOMICILIARY CARE,Third Party Payments,Private Contractor Fees,Revenue
Walsall Council,http://opendatacommunities.org/id/metropolitan-district-council/walsall,WC107-266,31/08/2019,Adult Social Care,ADVANCE HEALTH CARE (UK) LTD,19/08/2019,802.05,73507-DOMICILIARY CARE,Third Party Payments,Private Contractor Fees,Revenue
Walsall Council,http://opendatacommunities.org/id/metropolitan-district-council/walsall,WC107-267,31/08/2019,Adult Social Care,ADVANCE HEALTH CARE (UK) LTD,19/08/2019,805.27,73507-DOMICILIARY CARE,Third Party Payments,Private Contractor Fees,Revenue
Walsall Council,http://opendatacommunities.org/id/metropolitan-district-council/walsall,WC107-268,31/08/2019,Adult Social Care,ADVANCE HEALTH CARE (UK) LTD,19/08/2019,829.25,73507-DOMICILIARY CARE,Third Party Payments,Private Contractor Fees,Revenue
Walsall Council,http://opendatacommunities.org/id/metropolitan-district-council/walsall,WC107-269,31/08/2019,Adult Social Care,ADVANCE HEALTH CARE (UK) LTD,19/08/2019,842.34,73507-DOMICILIARY CARE,Third Party Payments,Private Contractor Fees,Revenue
Walsall Council,http://opendatacommunities.org/id/metropolitan-district-council/walsall,WC107-270,31/08/2019,Adult Social Care,ADVANCE HEALTH CARE (UK) LTD,19/08/2019,875.91,73507-DOMICILIARY CARE,Third Party Payments,Private Contractor Fees,Revenue
Walsall Council,http://opendatacommunities.org/id/metropolitan-district-council/walsall,WC107-271,31/08/2019,Adult Social Care,ADVANCE HEALTH CARE (UK) LTD,19/08/2019,891.21,73507-DOMICILIARY CARE,Third Party Payments,Private Contractor Fees,Revenue
Walsall Council,http://opendatacommunities.org/id/metropolitan-district-council/walsall,WC107-272,31/08/2019,Adult Social Care,ADVANCE HEALTH CARE (UK) LTD,19/08/2019,914.1,73507-DOMICILIARY CARE,Third Party Payments,Private Contractor Fees,Revenue
Walsall Council,http://opendatacommunities.org/id/metropolitan-district-council/walsall,WC107-273,31/08/2019,Adult Social Care,ADVANCE HEALTH CARE (UK) LTD,19/08/2019,916.42,73507-DOMICILIARY CARE,Third Party Payments,Private Contractor Fees,Revenue
Walsall Council,http://opendatacommunities.org/id/metropolitan-district-council/walsall,WC107-274,31/08/2019,Adult Social Care,ADVANCE HEALTH CARE (UK) LTD,19/08/2019,928.48,73507-DOMICILIARY CARE,Third Party Payments,Private Contractor Fees,Revenue
Walsall Council,http://opendatacommunities.org/id/metropolitan-district-council/walsall,WC107-275,31/08/2019,Adult Social Care,ADVANCE HEALTH CARE (UK) LTD,19/08/2019,"1,042.93",73507-DOMICILIARY CARE,Third Party Payments,Private Contractor Fees,Revenue
Walsall Council,http://opendatacommunities.org/id/metropolitan-district-council/walsall,WC107-276,31/08/2019,Adult Social Care,ADVANCE HEALTH CARE (UK) LTD,19/08/2019,"1,185.45",73507-DOMICILIARY CARE,Third Party Payments,Private Contractor Fees,Revenue
Walsall Council,http://opendatacommunities.org/id/metropolitan-district-council/walsall,WC107-277,31/08/2019,Adult Social Care,ADVANCE HEALTH CARE (UK) LTD,19/08/2019,"1,218.92",73507-DOMICILIARY CARE,Third Party Payments,Private Contractor Fees,Revenue
Walsall Council,http://opendatacommunities.org/id/metropolitan-district-council/walsall,WC107-278,31/08/2019,Adult Social Care,ADVANCE HEALTH CARE (UK) LTD,19/08/2019,"1,250.88",73507-DOMICILIARY CARE,Third Party Payments,Private Contractor Fees,Revenue
Walsall Council,http://opendatacommunities.org/id/metropolitan-district-council/walsall,WC107-279,31/08/2019,Adult Social Care,ADVANCE HEALTH CARE (UK) LTD,19/08/2019,"1,261.42",73507-DOMICILIARY CARE,Third Party Payments,Private Contractor Fees,Revenue
Walsall Council,http://opendatacommunities.org/id/metropolitan-district-council/walsall,WC107-280,31/08/2019,Adult Social Care,ADVANCE HEALTH CARE (UK) LTD,19/08/2019,"1,266.63",73507-DOMICILIARY CARE,Third Party Payments,Private Contractor Fees,Revenue
Walsall Council,http://opendatacommunities.org/id/metropolitan-district-council/walsall,WC107-281,31/08/2019,Adult Social Care,ADVANCE HEALTH CARE (UK) LTD,19/08/2019,"1,400.52",73507-DOMICILIARY CARE,Third Party Payments,Private Contractor Fees,Revenue
Walsall Council,http://opendatacommunities.org/id/metropolitan-district-council/walsall,WC107-282,31/08/2019,Adult Social Care,ADVANCE HEALTH CARE (UK) LTD,19/08/2019,"1,472.16",73507-DOMICILIARY CARE,Third Party Payments,Private Contractor Fees,Revenue
Walsall Council,http://opendatacommunities.org/id/metropolitan-district-council/walsall,WC107-283,31/08/2019,Adult Social Care,ADVANCE HEALTH CARE (UK) LTD,19/08/2019,"1,561.67",73507-DOMICILIARY CARE,Third Party Payments,Private Contractor Fees,Revenue
Walsall Council,http://opendatacommunities.org/id/metropolitan-district-council/walsall,WC107-284,31/08/2019,Adult Social Care,ADVANCE HEALTH CARE (UK) LTD,19/08/2019,"1,597.71",73507-DOMICILIARY CARE,Third Party Payments,Private Contractor Fees,Revenue
Walsall Council,http://opendatacommunities.org/id/metropolitan-district-council/walsall,WC107-285,31/08/2019,Adult Social Care,ADVANCE HEALTH CARE (UK) LTD,19/08/2019,"1,612.12",73507-DOMICILIARY CARE,Third Party Payments,Private Contractor Fees,Revenue
Walsall Council,http://opendatacommunities.org/id/metropolitan-district-council/walsall,WC107-286,31/08/2019,Adult Social Care,ADVANCE HEALTH CARE (UK) LTD,19/08/2019,"1,632.21",73507-DOMICILIARY CARE,Third Party Payments,Private Contractor Fees,Revenue
Walsall Council,http://opendatacommunities.org/id/metropolitan-district-council/walsall,WC107-287,31/08/2019,Adult Social Care,ADVANCE HEALTH CARE (UK) LTD,19/08/2019,"1,635.87",73507-DOMICILIARY CARE,Third Party Payments,Private Contractor Fees,Revenue
Walsall Council,http://opendatacommunities.org/id/metropolitan-district-council/walsall,WC107-288,31/08/2019,Adult Social Care,ADVANCE HEALTH CARE (UK) LTD,19/08/2019,"1,643.62",73507-DOMICILIARY CARE,Third Party Payments,Private Contractor Fees,Revenue
Walsall Council,http://opendatacommunities.org/id/metropolitan-district-council/walsall,WC107-289,31/08/2019,Adult Social Care,ADVANCE HEALTH CARE (UK) LTD,19/08/2019,"1,649.02",73507-DOMICILIARY CARE,Third Party Payments,Private Contractor Fees,Revenue
Walsall Council,http://opendatacommunities.org/id/metropolitan-district-council/walsall,WC107-290,31/08/2019,Adult Social Care,ADVANCE HEALTH CARE (UK) LTD,19/08/2019,"1,696.89",73507-DOMICILIARY CARE,Third Party Payments,Private Contractor Fees,Revenue
Walsall Council,http://opendatacommunities.org/id/metropolitan-district-council/walsall,WC107-291,31/08/2019,Adult Social Care,ADVANCE HEALTH CARE (UK) LTD,19/08/2019,"1,703.83",73507-DOMICILIARY CARE,Third Party Payments,Private Contractor Fees,Revenue
Walsall Council,http://opendatacommunities.org/id/metropolitan-district-council/walsall,WC107-292,31/08/2019,Adult Social Care,ADVANCE HEALTH CARE (UK) LTD,19/08/2019,"1,781.58",73507-DOMICILIARY CARE,Third Party Payments,Private Contractor Fees,Revenue
Walsall Council,http://opendatacommunities.org/id/metropolitan-district-council/walsall,WC107-293,31/08/2019,Adult Social Care,ADVANCE HEALTH CARE (UK) LTD,19/08/2019,"1,785.31",73507-DOMICILIARY CARE,Third Party Payments,Private Contractor Fees,Revenue
Walsall Council,http://opendatacommunities.org/id/metropolitan-district-council/walsall,WC107-294,31/08/2019,Adult Social Care,ADVANCE HEALTH CARE (UK) LTD,19/08/2019,"1,788.61",73507-DOMICILIARY CARE,Third Party Payments,Private Contractor Fees,Revenue
Walsall Council,http://opendatacommunities.org/id/metropolitan-district-council/walsall,WC107-295,31/08/2019,Adult Social Care,ADVANCE HEALTH CARE (UK) LTD,19/08/2019,"1,794.64",73507-DOMICILIARY CARE,Third Party Payments,Private Contractor Fees,Revenue
Walsall Council,http://opendatacommunities.org/id/metropolitan-district-council/walsall,WC107-296,31/08/2019,Adult Social Care,ADVANCE HEALTH CARE (UK) LTD,19/08/2019,"1,794.64",73507-DOMICILIARY CARE,Third Party Payments,Private Contractor Fees,Revenue
Walsall Council,http://opendatacommunities.org/id/metropolitan-district-council/walsall,WC107-297,31/08/2019,Adult Social Care,ADVANCE HEALTH CARE (UK) LTD,19/08/2019,"1,795.95",73507-DOMICILIARY CARE,Third Party Payments,Private Contractor Fees,Revenue
Walsall Council,http://opendatacommunities.org/id/metropolitan-district-council/walsall,WC107-298,31/08/2019,Adult Social Care,ADVANCE HEALTH CARE (UK) LTD,19/08/2019,"1,797.24",73507-DOMICILIARY CARE,Third Party Payments,Private Contractor Fees,Revenue
Walsall Council,http://opendatacommunities.org/id/metropolitan-district-council/walsall,WC107-299,31/08/2019,Adult Social Care,ADVANCE HEALTH CARE (UK) LTD,19/08/2019,"1,800.79",73507-DOMICILIARY CARE,Third Party Payments,Private Contractor Fees,Revenue
Walsall Council,http://opendatacommunities.org/id/metropolitan-district-council/walsall,WC107-300,31/08/2019,Adult Social Care,ADVANCE HEALTH CARE (UK) LTD,19/08/2019,"1,806.56",73507-DOMICILIARY CARE,Third Party Payments,Private Contractor Fees,Revenue
Walsall Council,http://opendatacommunities.org/id/metropolitan-district-council/walsall,WC107-301,31/08/2019,Adult Social Care,ADVANCE HEALTH CARE (UK) LTD,19/08/2019,"1,813.74",73507-DOMICILIARY CARE,Third Party Payments,Private Contractor Fees,Revenue
Walsall Council,http://opendatacommunities.org/id/metropolitan-district-council/walsall,WC107-302,31/08/2019,Adult Social Care,ADVANCE HEALTH CARE (UK) LTD,19/08/2019,"1,820.83",73507-DOMICILIARY CARE,Third Party Payments,Private Contractor Fees,Revenue
Walsall Council,http://opendatacommunities.org/id/metropolitan-district-council/walsall,WC107-303,31/08/2019,Adult Social Care,ADVANCE HEALTH CARE (UK) LTD,19/08/2019,"1,827.99",73507-DOMICILIARY CARE,Third Party Payments,Private Contractor Fees,Revenue
Walsall Council,http://opendatacommunities.org/id/metropolitan-district-council/walsall,WC107-304,31/08/2019,Adult Social Care,ADVANCE HEALTH CARE (UK) LTD,19/08/2019,"1,842.36",73507-DOMICILIARY CARE,Third Party Payments,Private Contractor Fees,Revenue
Walsall Council,http://opendatacommunities.org/id/metropolitan-district-council/walsall,WC107-305,31/08/2019,Adult Social Care,ADVANCE HEALTH CARE (UK) LTD,19/08/2019,"1,848.27",73507-DOMICILIARY CARE,Third Party Payments,Private Contractor Fees,Revenue
Walsall Council,http://opendatacommunities.org/id/metropolitan-district-council/walsall,WC107-306,31/08/2019,Adult Social Care,ADVANCE HEALTH CARE (UK) LTD,19/08/2019,"1,891.34",73507-DOMICILIARY CARE,Third Party Payments,Private Contractor Fees,Revenue
Walsall Council,http://opendatacommunities.org/id/metropolitan-district-council/walsall,WC107-307,31/08/2019,Adult Social Care,ADVANCE HEALTH CARE (UK) LTD,19/08/2019,"1,936.55",73507-DOMICILIARY CARE,Third Party Payments,Private Contractor Fees,Revenue
Walsall Council,http://opendatacommunities.org/id/metropolitan-district-council/walsall,WC107-308,31/08/2019,Adult Social Care,ADVANCE HEALTH CARE (UK) LTD,19/08/2019,"2,089.92",73507-DOMICILIARY CARE,Third Party Payments,Private Contractor Fees,Revenue
Walsall Council,http://opendatacommunities.org/id/metropolitan-district-council/walsall,WC107-309,31/08/2019,Adult Social Care,ADVANCE HEALTH CARE (UK) LTD,19/08/2019,"2,193.66",73507-DOMICILIARY CARE,Third Party Payments,Private Contractor Fees,Revenue
Walsall Council,http://opendatacommunities.org/id/metropolitan-district-council/walsall,WC107-310,31/08/2019,Adult Social Care,ADVANCE HEALTH CARE (UK) LTD,19/08/2019,"2,393.73",73507-DOMICILIARY CARE,Third Party Payments,Private Contractor Fees,Revenue
Walsall Council,http://opendatacommunities.org/id/metropolitan-district-council/walsall,WC107-311,31/08/2019,Adult Social Care,ADVANCE HEALTH CARE (UK) LTD,19/08/2019,"2,468.39",73507-DOMICILIARY CARE,Third Party Payments,Private Contractor Fees,Revenue
Walsall Council,http://opendatacommunities.org/id/metropolitan-district-council/walsall,WC107-312,31/08/2019,Adult Social Care,ADVANCE HEALTH CARE (UK) LTD,19/08/2019,"2,479.36",73507-DOMICILIARY CARE,Third Party Payments,Private Contractor Fees,Revenue
Walsall Council,http://opendatacommunities.org/id/metropolitan-district-council/walsall,WC107-313,31/08/2019,Adult Social Care,ADVANCE HEALTH CARE (UK) LTD,15/08/2019,"3,055.36",73507-DOMICILIARY CARE,Third Party Payments,Private Contractor Fees,Revenue
Walsall Council,http://opendatacommunities.org/id/metropolitan-district-council/walsall,WC107-314,31/08/2019,Adult Social Care,ADVANCE HEALTH CARE (UK) LTD,19/08/2019,"3,266.51",73507-DOMICILIARY CARE,Third Party Payments,Private Contractor Fees,Revenue
Walsall Council,http://opendatacommunities.org/id/metropolitan-district-council/walsall,WC107-315,31/08/2019,Adult Social Care,ADVANCE HEALTH CARE (UK) LTD,19/08/2019,"4,929.51",73507-DOMICILIARY CARE,Third Party Payments,Private Contractor Fees,Revenue
Walsall Council,http://opendatacommunities.org/id/metropolitan-district-council/walsall,WC107-316,31/08/2019,Resources and Transformation,ADVANCED CONTRACTS (MIDLANDS) LTD,27/08/2019,"6,597.00",40000-OPERATIONAL MAINTENANCE,Premises,Premises-Repairs & Maintenance,Revenue
Walsall Council,http://opendatacommunities.org/id/metropolitan-district-council/walsall,WC107-317,31/08/2019,Childrens,ADVENTURELAND DAY NURSERY,16/08/2019,640,77200-TRANSFER PAYMENTS-OTHER SCHOOLCHILDREN/STUDENT RELATED ITEMS,Transfer Payments,Transfer Payments,Revenue
Walsall Council,http://opendatacommunities.org/id/metropolitan-district-council/walsall,WC107-318,31/08/2019,Economy & Environment,AEBI SCHMIDT UK LIMITED,16/08/2019,"1,393.80",60500-GENERAL MATERIALS,Supplies & Services,"Equip,Furniture & Materials",Revenue
Walsall Council,http://opendatacommunities.org/id/metropolitan-district-council/walsall,WC107-319,31/08/2019,Economy & Environment,AECOM LIMITED,12/08/2019,"9,500.00",01002-PROJECT FEES,Capital,Capital,Capital
Walsall Council,http://opendatacommunities.org/id/metropolitan-district-council/walsall,WC107-320,31/08/2019,Adult Social Care,AGINCARE UK LTD,20/08/2019,"3,596.80",73507-DOMICILIARY CARE,Third Party Payments,Private Contractor Fees,Revenue
Walsall Council,http://opendatacommunities.org/id/metropolitan-district-council/walsall,WC107-321,31/08/2019,Adult Social Care,REDACTED,06/08/2019,"2,325.60",73506-DIRECT PAYMENT,Third Party Payments,Private Contractor Fees,Revenue
Walsall Council,http://opendatacommunities.org/id/metropolitan-district-council/walsall,WC107-322,31/08/2019,Economy & Environment,ALBERT JAGGER LTD,28/08/2019,217.52,60514-MATERIALS TO STORES,Supplies & Services,"Equip,Furniture & Materials",Revenue
Walsall Council,http://opendatacommunities.org/id/metropolitan-district-council/walsall,WC107-323,31/08/2019,Economy & Environment,ALBERT JAGGER LTD,01/08/2019,256.6,60514-MATERIALS TO STORES,Supplies & Services,"Equip,Furniture & Materials",Revenue
Walsall Council,http://opendatacommunities.org/id/metropolitan-district-council/walsall,WC107-324,31/08/2019,Childrens,ALBRIGHTON CARE LTD,12/08/2019,"9,980.00",74036-EXTERNAL RESIDENTIAL CARE-OTH AGENCY PROVISION,Third Party Payments,Private Contractor Fees,Revenue
Walsall Council,http://opendatacommunities.org/id/metropolitan-district-council/walsall,WC107-325,31/08/2019,Economy & Environment,ALDERBROOK HEALTHCARE LTD,19/08/2019,"3,753.30",63000-PROFESSIONAL FEES AND SERVICES,Supplies & Services,Services,Revenue
Walsall Council,http://opendatacommunities.org/id/metropolitan-district-council/walsall,WC107-326,31/08/2019,Economy & Environment,ALDERBROOK HEALTHCARE LTD,19/08/2019,"6,016.20",63000-PROFESSIONAL FEES AND SERVICES,Supplies & Services,Services,Revenue
Walsall Council,http://opendatacommunities.org/id/metropolitan-district-council/walsall,WC107-327,31/08/2019,Adult Social Care,ALDERGROVE MANOR LTD,20/08/2019,"1,972.24",73501-RESIDENTIAL EMI,Third Party Payments,Private Contractor Fees,Revenue
Walsall Council,http://opendatacommunities.org/id/metropolitan-district-council/walsall,WC107-328,31/08/2019,Adult Social Care,ALDERGROVE MANOR LTD,20/08/2019,"2,107.92",73501-RESIDENTIAL EMI,Third Party Payments,Private Contractor Fees,Revenue
Walsall Council,http://opendatacommunities.org/id/metropolitan-district-council/walsall,WC107-329,31/08/2019,Adult Social Care,ALDERGROVE MANOR LTD,20/08/2019,"2,132.24",73501-RESIDENTIAL EMI,Third Party Payments,Private Contractor Fees,Revenue
Walsall Council,http://opendatacommunities.org/id/metropolitan-district-council/walsall,WC107-330,31/08/2019,Adult Social Care,ALDERGROVE MANOR LTD,20/08/2019,"2,143.72",73502-NURSING,Third Party Payments,Private Contractor Fees,Revenue
Walsall Council,http://opendatacommunities.org/id/metropolitan-district-council/walsall,WC107-331,31/08/2019,Adult Social Care,ALDERGROVE MANOR LTD,20/08/2019,"11,014.90",73501-RESIDENTIAL EMI,Third Party Payments,Private Contractor Fees,Revenue
Walsall Council,http://opendatacommunities.org/id/metropolitan-district-council/walsall,WC107-332,31/08/2019,Childrens,ALDRIDGE & BARONS LIMITED,07/08/2019,376.2,52000-WITH DRIVER-HIRE OF VEHICLES,Transport,Hire,Revenue
Walsall Council,http://opendatacommunities.org/id/metropolitan-district-council/walsall,WC107-333,31/08/2019,Childrens,ALDRIDGE & BARONS LIMITED,07/08/2019,"2,516.10",52000-WITH DRIVER-HIRE OF VEHICLES,Transport,Hire,Revenue
Walsall Council,http://opendatacommunities.org/id/metropolitan-district-council/walsall,WC107-334,31/08/2019,Childrens,ALDRIDGE & BARONS LIMITED,07/08/2019,"6,879.00",52000-WITH DRIVER-HIRE OF VEHICLES,Transport,Hire,Revenue
Walsall Council,http://opendatacommunities.org/id/metropolitan-district-council/walsall,WC107-335,31/08/2019,Childrens,ALDRIDGE & BARONS LIMITED,07/08/2019,"7,947.00",52000-WITH DRIVER-HIRE OF VEHICLES,Transport,Hire,Revenue
Walsall Council,http://opendatacommunities.org/id/metropolitan-district-council/walsall,WC107-336,31/08/2019,Childrens,ALDRIDGE & BARONS LIMITED,07/08/2019,"12,877.80",52000-WITH DRIVER-HIRE OF VEHICLES,Transport,Hire,Revenue
Walsall Council,http://opendatacommunities.org/id/metropolitan-district-council/walsall,WC107-337,31/08/2019,Economy & Environment,ALDRIDGE SHED,07/08/2019,"1,333.33",63253-PAYMENT TO CONTRACTOR,Third Party Payments,Private Contractor Fees,Revenue
Walsall Council,http://opendatacommunities.org/id/metropolitan-district-council/walsall,WC107-338,31/08/2019,Adult Social Care,REDACTED,06/08/2019,"1,348.80",73506-DIRECT PAYMENT,Third Party Payments,Private Contractor Fees,Revenue
Walsall Council,http://opendatacommunities.org/id/metropolitan-district-council/walsall,WC107-339,31/08/2019,Adult Social Care,ALEXANDRA HOUSE CARE SERVICES LTD T/A STONEBRIDGE NURSING HOME,20/08/2019,"7,188.60",73500-RESIDENTIAL,Third Party Payments,Private Contractor Fees,Revenue
Walsall Council,http://opendatacommunities.org/id/metropolitan-district-council/walsall,WC107-340,31/08/2019,Adult Social Care,REDACTED,06/08/2019,"1,806.56",73506-DIRECT PAYMENT,Third Party Payments,Private Contractor Fees,Revenue
Walsall Council,http://opendatacommunities.org/id/metropolitan-district-council/walsall,WC107-341,31/08/2019,Adult Social Care,REDACTED,06/08/2019,897.6,73506-DIRECT PAYMENT,Third Party Payments,Private Contractor Fees,Revenue
Walsall Council,http://opendatacommunities.org/id/metropolitan-district-council/walsall,WC107-342,31/08/2019,Adult Social Care,REDACTED,06/08/2019,"4,740.24",73506-DIRECT PAYMENT,Third Party Payments,Private Contractor Fees,Revenue
Walsall Council,http://opendatacommunities.org/id/metropolitan-district-council/walsall,WC107-343,31/08/2019,Adult Social Care,REDACTED,05/08/2019,"1,301.64",73510-SHARED LIVES,Third Party Payments,Private Contractor Fees,Revenue
Walsall Council,http://opendatacommunities.org/id/metropolitan-district-council/walsall,WC107-344,31/08/2019,Childrens,REDACTED,27/08/2019,312.24,74509-SPECIAL GUARDIANSHIP ORDERS,Transfer Payments,Transfer Payments,Revenue
Walsall Council,http://opendatacommunities.org/id/metropolitan-district-council/walsall,WC107-345,31/08/2019,Childrens,ALL SAINTS NATIONAL ACADEMY #1,06/08/2019,"3,489.23",66502-TOP UP FUNDING -GRANTS TO SCHOOLS,Third Party Payments,Grants to Other Orgs,Revenue
Walsall Council,http://opendatacommunities.org/id/metropolitan-district-council/walsall,WC107-346,31/08/2019,Adult Social Care,REDACTED,06/08/2019,"1,606.08",73506-DIRECT PAYMENT,Third Party Payments,Private Contractor Fees,Revenue
Walsall Council,http://opendatacommunities.org/id/metropolitan-district-council/walsall,WC107-347,31/08/2019,Adult Social Care,ALMA COURT,20/08/2019,"9,142.86",73500-RESIDENTIAL,Third Party Payments,Private Contractor Fees,Revenue
Walsall Council,http://opendatacommunities.org/id/metropolitan-district-council/walsall,WC107-348,31/08/2019,Adult Social Care,ALPHA HEALTH CARE LTD,20/08/2019,"1,774.96",73500-RESIDENTIAL,Third Party Payments,Private Contractor Fees,Revenue
Walsall Council,http://opendatacommunities.org/id/metropolitan-district-council/walsall,WC107-349,31/08/2019,Adult Social Care,ALPHA HEALTH CARE LTD,20/08/2019,"1,972.24",73501-RESIDENTIAL EMI,Third Party Payments,Private Contractor Fees,Revenue
Walsall Council,http://opendatacommunities.org/id/metropolitan-district-council/walsall,WC107-350,31/08/2019,Adult Social Care,ALPHA HEALTH CARE LTD,20/08/2019,"2,143.72",73502-NURSING,Third Party Payments,Private Contractor Fees,Revenue
Walsall Council,http://opendatacommunities.org/id/metropolitan-district-council/walsall,WC107-351,31/08/2019,Adult Social Care,ALPHA HEALTH CARE LTD,20/08/2019,"2,255.72",73501-RESIDENTIAL EMI,Third Party Payments,Private Contractor Fees,Revenue
Walsall Council,http://opendatacommunities.org/id/metropolitan-district-council/walsall,WC107-352,31/08/2019,Adult Social Care,ALPHA HEALTH CARE LTD,20/08/2019,"2,358.08",73503-NURSING EMI,Third Party Payments,Private Contractor Fees,Revenue
Walsall Council,http://opendatacommunities.org/id/metropolitan-district-council/walsall,WC107-353,31/08/2019,Adult Social Care,ALPHA HEALTH CARE LTD,20/08/2019,"2,358.08",73503-NURSING EMI,Third Party Payments,Private Contractor Fees,Revenue
Walsall Council,http://opendatacommunities.org/id/metropolitan-district-council/walsall,WC107-354,31/08/2019,Adult Social Care,ALPHA HEALTH CARE LTD,20/08/2019,"2,358.08",73503-NURSING EMI,Third Party Payments,Private Contractor Fees,Revenue
Walsall Council,http://opendatacommunities.org/id/metropolitan-district-council/walsall,WC107-355,31/08/2019,Adult Social Care,ALPHA HEALTH CARE LTD,20/08/2019,"2,495.72",73501-RESIDENTIAL EMI,Third Party Payments,Private Contractor Fees,Revenue
Walsall Council,http://opendatacommunities.org/id/metropolitan-district-council/walsall,WC107-356,31/08/2019,Adult Social Care,ALPHA HEALTH CARE LTD,20/08/2019,"2,558.08",73503-NURSING EMI,Third Party Payments,Private Contractor Fees,Revenue
Walsall Council,http://opendatacommunities.org/id/metropolitan-district-council/walsall,WC107-357,31/08/2019,Adult Social Care,ALPHA HEALTH CARE LTD,20/08/2019,"2,837.76",73503-NURSING EMI,Third Party Payments,Private Contractor Fees,Revenue
Walsall Council,http://opendatacommunities.org/id/metropolitan-district-council/walsall,WC107-358,31/08/2019,Adult Social Care,ALPHA HEALTH CARE LTD,20/08/2019,"2,881.80",73503-NURSING EMI,Third Party Payments,Private Contractor Fees,Revenue
Walsall Council,http://opendatacommunities.org/id/metropolitan-district-council/walsall,WC107-359,31/08/2019,Adult Social Care,ALPHA HEALTH CARE LTD,20/08/2019,"2,881.80",73503-NURSING EMI,Third Party Payments,Private Contractor Fees,Revenue
Walsall Council,http://opendatacommunities.org/id/metropolitan-district-council/walsall,WC107-360,31/08/2019,Adult Social Care,ALPHA HEALTH CARE LTD,20/08/2019,"2,881.80",73503-NURSING EMI,Third Party Payments,Private Contractor Fees,Revenue
Walsall Council,http://opendatacommunities.org/id/metropolitan-district-council/walsall,WC107-361,31/08/2019,Adult Social Care,ALPHA HEALTH CARE LTD,20/08/2019,"2,881.80",73503-NURSING EMI,Third Party Payments,Private Contractor Fees,Revenue
Walsall Council,http://opendatacommunities.org/id/metropolitan-district-council/walsall,WC107-362,31/08/2019,Adult Social Care,ALPHA HEALTH CARE LTD,20/08/2019,"2,881.84",73503-NURSING EMI,Third Party Payments,Private Contractor Fees,Revenue
Walsall Council,http://opendatacommunities.org/id/metropolitan-district-council/walsall,WC107-363,31/08/2019,Adult Social Care,ALPHA HEALTH CARE LTD,20/08/2019,"2,937.88",73503-NURSING EMI,Third Party Payments,Private Contractor Fees,Revenue
Walsall Council,http://opendatacommunities.org/id/metropolitan-district-council/walsall,WC107-364,31/08/2019,Adult Social Care,ALPHA HEALTH CARE LTD,20/08/2019,"3,035.72",73501-RESIDENTIAL EMI,Third Party Payments,Private Contractor Fees,Revenue
Walsall Council,http://opendatacommunities.org/id/metropolitan-district-council/walsall,WC107-365,31/08/2019,Adult Social Care,ALPHA HEALTH CARE LTD,20/08/2019,"3,035.72",73501-RESIDENTIAL EMI,Third Party Payments,Private Contractor Fees,Revenue
Walsall Council,http://opendatacommunities.org/id/metropolitan-district-council/walsall,WC107-366,31/08/2019,Adult Social Care,ALPHA HEALTH CARE LTD,20/08/2019,"3,290.36",73503-NURSING EMI,Third Party Payments,Private Contractor Fees,Revenue
Walsall Council,http://opendatacommunities.org/id/metropolitan-district-council/walsall,WC107-367,31/08/2019,Adult Social Care,ALPHA HEALTH CARE LTD,20/08/2019,"3,514.44",73503-NURSING EMI,Third Party Payments,Private Contractor Fees,Revenue
Walsall Council,http://opendatacommunities.org/id/metropolitan-district-council/walsall,WC107-368,31/08/2019,Adult Social Care,ALPHA HEALTH CARE LTD,20/08/2019,"5,750.00",73503-NURSING EMI,Third Party Payments,Private Contractor Fees,Revenue
Walsall Council,http://opendatacommunities.org/id/metropolitan-district-council/walsall,WC107-369,31/08/2019,Childrens,ALUMWELLIES NURSERY,06/08/2019,"2,724.87",66502-TOP UP FUNDING -GRANTS TO SCHOOLS,Third Party Payments,Grants to Other Orgs,Revenue
Walsall Council,http://opendatacommunities.org/id/metropolitan-district-council/walsall,WC107-370,31/08/2019,Childrens,AMAH NURSERIES LIMITED T/A BANANA MOON WALSALL,08/08/2019,516.75,77300-ISB-FORMULA ALLOCATION,Transfer Payments,Transfer Payments,Revenue
Walsall Council,http://opendatacommunities.org/id/metropolitan-district-council/walsall,WC107-371,31/08/2019,Childrens,REDACTED,27/08/2019,318.08,74510-RESIDENTS ORDERS,Third Party Payments,Private Contractor Fees,Revenue
Walsall Council,http://opendatacommunities.org/id/metropolitan-district-council/walsall,WC107-372,31/08/2019,Childrens,REDACTED,27/08/2019,336.72,74510-RESIDENTS ORDERS,Third Party Payments,Private Contractor Fees,Revenue
Walsall Council,http://opendatacommunities.org/id/metropolitan-district-council/walsall,WC107-373,31/08/2019,Adult Social Care,REDACTED,06/08/2019,"1,128.76",73506-DIRECT PAYMENT,Third Party Payments,Private Contractor Fees,Revenue
Walsall Council,http://opendatacommunities.org/id/metropolitan-district-council/walsall,WC107-374,31/08/2019,Childrens,REDACTED,27/08/2019,808.04,74009-ADOPTION ALLOWANCE,Transfer Payments,Transfer Payments,Revenue
Walsall Council,http://opendatacommunities.org/id/metropolitan-district-council/walsall,WC107-375,31/08/2019,Childrens,REDACTED,12/08/2019,578.57,74501-MAINTENANCE ALLOWANCE-FOSTER CARERS,Transfer Payments,Transfer Payments,Revenue
Walsall Council,http://opendatacommunities.org/id/metropolitan-district-council/walsall,WC107-376,31/08/2019,Childrens,REDACTED,12/08/2019,"1,000.00",74508-INTERNAL FOSTER CARERS-CARER FEES,Transfer Payments,Transfer Payments,Revenue
Walsall Council,http://opendatacommunities.org/id/metropolitan-district-council/walsall,WC107-377,31/08/2019,Childrens,AMANS TRAVEL LTD,07/08/2019,892.5,52000-WITH DRIVER-HIRE OF VEHICLES,Transport,Hire,Revenue
Walsall Council,http://opendatacommunities.org/id/metropolitan-district-council/walsall,WC107-378,31/08/2019,Adult Social Care,REDACTED,06/08/2019,"1,014.48",73506-DIRECT PAYMENT,Third Party Payments,Private Contractor Fees,Revenue
Walsall Council,http://opendatacommunities.org/id/metropolitan-district-council/walsall,WC107-379,31/08/2019,Economy & Environment,AMEY LG LIMITED,12/08/2019,660.96,01001-OTHER CONSULTANTS FEES,Capital,Capital,Capital
Walsall Council,http://opendatacommunities.org/id/metropolitan-district-council/walsall,WC107-380,31/08/2019,Resources and Transformation,AMEY LG LIMITED,05/08/2019,"1,557.85",60008-REPAIR & MAINTENANCE OF FURNITURE & EQUIPMENT,Supplies & Services,"Equip,Furniture & Materials",Revenue
Walsall Council,http://opendatacommunities.org/id/metropolitan-district-council/walsall,WC107-381,31/08/2019,Economy & Environment,AMEY LG LIMITED,01/08/2019,"1,725.17",01006-SITE WORKS MAIN CONTRACTORS,Capital,Capital,Capital
Walsall Council,http://opendatacommunities.org/id/metropolitan-district-council/walsall,WC107-382,31/08/2019,Economy & Environment,AMEY LG LIMITED,14/08/2019,"6,000.00",73025-PROFESSIONAL SERVICES-PRIV CONTRACTOR & OTHER AGENCIES,Third Party Payments,Private Contractor Fees,Revenue
Walsall Council,http://opendatacommunities.org/id/metropolitan-district-council/walsall,WC107-383,31/08/2019,Economy & Environment,AMEY LG LIMITED,06/08/2019,"8,421.35",73025-PROFESSIONAL SERVICES-PRIV CONTRACTOR & OTHER AGENCIES,Third Party Payments,Private Contractor Fees,Revenue
Walsall Council,http://opendatacommunities.org/id/metropolitan-district-council/walsall,WC107-384,31/08/2019,Childrens,AMG NURSING CARE SERVICES,19/08/2019,"1,472.42",63000-PROFESSIONAL FEES AND SERVICES,Supplies & Services,Services,Revenue
Walsall Council,http://opendatacommunities.org/id/metropolitan-district-council/walsall,WC107-385,31/08/2019,Childrens,AMG NURSING CARE SERVICES,16/08/2019,"1,480.96",63000-PROFESSIONAL FEES AND SERVICES,Supplies & Services,Services,Revenue
Walsall Council,http://opendatacommunities.org/id/metropolitan-district-council/walsall,WC107-386,31/08/2019,Childrens,AMG NURSING CARE SERVICES,13/08/2019,"2,270.92",63000-PROFESSIONAL FEES AND SERVICES,Supplies & Services,Services,Revenue
Walsall Council,http://opendatacommunities.org/id/metropolitan-district-council/walsall,WC107-387,31/08/2019,Childrens,AMG NURSING CARE SERVICES,05/08/2019,"2,274.48",63000-PROFESSIONAL FEES AND SERVICES,Supplies & Services,Services,Revenue
Walsall Council,http://opendatacommunities.org/id/metropolitan-district-council/walsall,WC107-388,31/08/2019,Adult Social Care,AMG NURSING CARE SERVICES,20/08/2019,"3,640.00",73508-COMMUNITY SUPPORTED LIVING/SUPPORTED ACCOMMODATION,Third Party Payments,Private Contractor Fees,Revenue
Walsall Council,http://opendatacommunities.org/id/metropolitan-district-council/walsall,WC107-389,31/08/2019,Adult Social Care,AMG NURSING CARE SERVICES,20/08/2019,"10,642.61",73508-COMMUNITY SUPPORTED LIVING/SUPPORTED ACCOMMODATION,Third Party Payments,Private Contractor Fees,Revenue
Walsall Council,http://opendatacommunities.org/id/metropolitan-district-council/walsall,WC107-390,31/08/2019,Adult Social Care,REDACTED,06/08/2019,"1,156.12",73506-DIRECT PAYMENT,Third Party Payments,Private Contractor Fees,Revenue
Walsall Council,http://opendatacommunities.org/id/metropolitan-district-council/walsall,WC107-391,31/08/2019,Childrens,REDACTED,27/08/2019,340,74508-INTERNAL FOSTER CARERS-CARER FEES,Transfer Payments,Transfer Payments,Revenue
Walsall Council,http://opendatacommunities.org/id/metropolitan-district-council/walsall,WC107-392,31/08/2019,Childrens,REDACTED,27/08/2019,600,74501-MAINTENANCE ALLOWANCE-FOSTER CARERS,Transfer Payments,Transfer Payments,Revenue
Walsall Council,http://opendatacommunities.org/id/metropolitan-district-council/walsall,WC107-393,31/08/2019,Childrens,REDACTED,27/08/2019,425.08,74510-RESIDENTS ORDERS,Third Party Payments,Private Contractor Fees,Revenue
Walsall Council,http://opendatacommunities.org/id/metropolitan-district-council/walsall,WC107-394,31/08/2019,Adult Social Care,ANCHOR,20/08/2019,255,73501-RESIDENTIAL EMI,Third Party Payments,Private Contractor Fees,Revenue
Walsall Council,http://opendatacommunities.org/id/metropolitan-district-council/walsall,WC107-395,31/08/2019,Adult Social Care,ANCHOR,20/08/2019,"1,331.22",73500-RESIDENTIAL,Third Party Payments,Private Contractor Fees,Revenue
Walsall Council,http://opendatacommunities.org/id/metropolitan-district-council/walsall,WC107-396,31/08/2019,Adult Social Care,ANCHOR,20/08/2019,"1,479.18",73501-RESIDENTIAL EMI,Third Party Payments,Private Contractor Fees,Revenue
Walsall Council,http://opendatacommunities.org/id/metropolitan-district-council/walsall,WC107-397,31/08/2019,Adult Social Care,ANCHOR,20/08/2019,"1,774.96",73500-RESIDENTIAL,Third Party Payments,Private Contractor Fees,Revenue
Walsall Council,http://opendatacommunities.org/id/metropolitan-district-council/walsall,WC107-398,31/08/2019,Adult Social Care,ANCHOR,20/08/2019,"1,774.96",73500-RESIDENTIAL,Third Party Payments,Private Contractor Fees,Revenue
Walsall Council,http://opendatacommunities.org/id/metropolitan-district-council/walsall,WC107-399,31/08/2019,Adult Social Care,ANCHOR,20/08/2019,"1,774.96",73500-RESIDENTIAL,Third Party Payments,Private Contractor Fees,Revenue
Walsall Council,http://opendatacommunities.org/id/metropolitan-district-council/walsall,WC107-400,31/08/2019,Adult Social Care,ANCHOR,20/08/2019,"1,774.96",73500-RESIDENTIAL,Third Party Payments,Private Contractor Fees,Revenue
Walsall Council,http://opendatacommunities.org/id/metropolitan-district-council/walsall,WC107-401,31/08/2019,Adult Social Care,ANCHOR,20/08/2019,"1,774.96",73500-RESIDENTIAL,Third Party Payments,Private Contractor Fees,Revenue
Walsall Council,http://opendatacommunities.org/id/metropolitan-district-council/walsall,WC107-402,31/08/2019,Adult Social Care,ANCHOR,20/08/2019,"1,834.96",73500-RESIDENTIAL,Third Party Payments,Private Contractor Fees,Revenue
Walsall Council,http://opendatacommunities.org/id/metropolitan-district-council/walsall,WC107-403,31/08/2019,Adult Social Care,ANCHOR,20/08/2019,"1,926.12",73500-RESIDENTIAL,Third Party Payments,Private Contractor Fees,Revenue
Walsall Council,http://opendatacommunities.org/id/metropolitan-district-council/walsall,WC107-404,31/08/2019,Adult Social Care,ANCHOR,20/08/2019,"1,934.96",73500-RESIDENTIAL,Third Party Payments,Private Contractor Fees,Revenue
Walsall Council,http://opendatacommunities.org/id/metropolitan-district-council/walsall,WC107-405,31/08/2019,Adult Social Care,ANCHOR,20/08/2019,"1,935.72",73501-RESIDENTIAL EMI,Third Party Payments,Private Contractor Fees,Revenue
Walsall Council,http://opendatacommunities.org/id/metropolitan-district-council/walsall,WC107-406,31/08/2019,Adult Social Care,ANCHOR,20/08/2019,"1,972.24",73501-RESIDENTIAL EMI,Third Party Payments,Private Contractor Fees,Revenue
Walsall Council,http://opendatacommunities.org/id/metropolitan-district-council/walsall,WC107-407,31/08/2019,Adult Social Care,ANCHOR,20/08/2019,"1,972.24",73501-RESIDENTIAL EMI,Third Party Payments,Private Contractor Fees,Revenue
Walsall Council,http://opendatacommunities.org/id/metropolitan-district-council/walsall,WC107-408,31/08/2019,Adult Social Care,ANCHOR,20/08/2019,"1,972.24",73501-RESIDENTIAL EMI,Third Party Payments,Private Contractor Fees,Revenue
Walsall Council,http://opendatacommunities.org/id/metropolitan-district-council/walsall,WC107-409,31/08/2019,Adult Social Care,ANCHOR,20/08/2019,"1,972.24",73501-RESIDENTIAL EMI,Third Party Payments,Private Contractor Fees,Revenue
Walsall Council,http://opendatacommunities.org/id/metropolitan-district-council/walsall,WC107-410,31/08/2019,Adult Social Care,ANCHOR,20/08/2019,"1,972.24",73501-RESIDENTIAL EMI,Third Party Payments,Private Contractor Fees,Revenue
Walsall Council,http://opendatacommunities.org/id/metropolitan-district-council/walsall,WC107-411,31/08/2019,Adult Social Care,ANCHOR,20/08/2019,"1,972.24",73501-RESIDENTIAL EMI,Third Party Payments,Private Contractor Fees,Revenue
Walsall Council,http://opendatacommunities.org/id/metropolitan-district-council/walsall,WC107-412,31/08/2019,Adult Social Care,ANCHOR,20/08/2019,"1,972.24",73501-RESIDENTIAL EMI,Third Party Payments,Private Contractor Fees,Revenue
Walsall Council,http://opendatacommunities.org/id/metropolitan-district-council/walsall,WC107-413,31/08/2019,Adult Social Care,ANCHOR,20/08/2019,"1,972.24",73501-RESIDENTIAL EMI,Third Party Payments,Private Contractor Fees,Revenue
Walsall Council,http://opendatacommunities.org/id/metropolitan-district-council/walsall,WC107-414,31/08/2019,Adult Social Care,ANCHOR,20/08/2019,"1,972.24",73501-RESIDENTIAL EMI,Third Party Payments,Private Contractor Fees,Revenue
Walsall Council,http://opendatacommunities.org/id/metropolitan-district-council/walsall,WC107-415,31/08/2019,Adult Social Care,ANCHOR,20/08/2019,"1,972.24",73501-RESIDENTIAL EMI,Third Party Payments,Private Contractor Fees,Revenue
Walsall Council,http://opendatacommunities.org/id/metropolitan-district-council/walsall,WC107-416,31/08/2019,Adult Social Care,ANCHOR,20/08/2019,"1,972.24",73501-RESIDENTIAL EMI,Third Party Payments,Private Contractor Fees,Revenue
Walsall Council,http://opendatacommunities.org/id/metropolitan-district-council/walsall,WC107-417,31/08/2019,Adult Social Care,ANCHOR,20/08/2019,"1,972.24",73501-RESIDENTIAL EMI,Third Party Payments,Private Contractor Fees,Revenue
Walsall Council,http://opendatacommunities.org/id/metropolitan-district-council/walsall,WC107-418,31/08/2019,Adult Social Care,ANCHOR,20/08/2019,"2,054.96",73500-RESIDENTIAL,Third Party Payments,Private Contractor Fees,Revenue
Walsall Council,http://opendatacommunities.org/id/metropolitan-district-council/walsall,WC107-419,31/08/2019,Adult Social Care,ANCHOR,20/08/2019,"2,094.96",73500-RESIDENTIAL,Third Party Payments,Private Contractor Fees,Revenue
Walsall Council,http://opendatacommunities.org/id/metropolitan-district-council/walsall,WC107-420,31/08/2019,Adult Social Care,ANCHOR,20/08/2019,"2,094.96",73500-RESIDENTIAL,Third Party Payments,Private Contractor Fees,Revenue
Walsall Council,http://opendatacommunities.org/id/metropolitan-district-council/walsall,WC107-421,31/08/2019,Adult Social Care,ANCHOR,20/08/2019,"2,114.96",73500-RESIDENTIAL,Third Party Payments,Private Contractor Fees,Revenue
Walsall Council,http://opendatacommunities.org/id/metropolitan-district-council/walsall,WC107-422,31/08/2019,Adult Social Care,ANCHOR,20/08/2019,"2,144.56",73501-RESIDENTIAL EMI,Third Party Payments,Private Contractor Fees,Revenue
Walsall Council,http://opendatacommunities.org/id/metropolitan-district-council/walsall,WC107-423,31/08/2019,Adult Social Care,ANCHOR,20/08/2019,"2,175.72",73501-RESIDENTIAL EMI,Third Party Payments,Private Contractor Fees,Revenue
Walsall Council,http://opendatacommunities.org/id/metropolitan-district-council/walsall,WC107-424,31/08/2019,Adult Social Care,ANCHOR,20/08/2019,"2,266.12",73500-RESIDENTIAL,Third Party Payments,Private Contractor Fees,Revenue
Walsall Council,http://opendatacommunities.org/id/metropolitan-district-council/walsall,WC107-425,31/08/2019,Adult Social Care,ANCHOR,20/08/2019,"2,292.24",73501-RESIDENTIAL EMI,Third Party Payments,Private Contractor Fees,Revenue
Walsall Council,http://opendatacommunities.org/id/metropolitan-district-council/walsall,WC107-426,31/08/2019,Adult Social Care,ANCHOR,20/08/2019,"2,292.24",73501-RESIDENTIAL EMI,Third Party Payments,Private Contractor Fees,Revenue
Walsall Council,http://opendatacommunities.org/id/metropolitan-district-council/walsall,WC107-427,31/08/2019,Adult Social Care,ANCHOR,20/08/2019,"2,312.24",73501-RESIDENTIAL EMI,Third Party Payments,Private Contractor Fees,Revenue
Walsall Council,http://opendatacommunities.org/id/metropolitan-district-council/walsall,WC107-428,31/08/2019,Adult Social Care,ANCHOR,20/08/2019,"2,312.24",73501-RESIDENTIAL EMI,Third Party Payments,Private Contractor Fees,Revenue
Walsall Council,http://opendatacommunities.org/id/metropolitan-district-council/walsall,WC107-429,31/08/2019,Adult Social Care,ANCHOR,20/08/2019,"2,312.24",73501-RESIDENTIAL EMI,Third Party Payments,Private Contractor Fees,Revenue
Walsall Council,http://opendatacommunities.org/id/metropolitan-district-council/walsall,WC107-430,31/08/2019,Adult Social Care,ANCHOR,20/08/2019,"2,312.24",73501-RESIDENTIAL EMI,Third Party Payments,Private Contractor Fees,Revenue
Walsall Council,http://opendatacommunities.org/id/metropolitan-district-council/walsall,WC107-431,31/08/2019,Adult Social Care,ANCHOR,20/08/2019,"2,332.24",73501-RESIDENTIAL EMI,Third Party Payments,Private Contractor Fees,Revenue
Walsall Council,http://opendatacommunities.org/id/metropolitan-district-council/walsall,WC107-432,31/08/2019,Adult Social Care,ANCHOR,20/08/2019,"2,332.24",73501-RESIDENTIAL EMI,Third Party Payments,Private Contractor Fees,Revenue
Walsall Council,http://opendatacommunities.org/id/metropolitan-district-council/walsall,WC107-433,31/08/2019,Adult Social Care,ANCHOR,20/08/2019,"2,332.24",73501-RESIDENTIAL EMI,Third Party Payments,Private Contractor Fees,Revenue
Walsall Council,http://opendatacommunities.org/id/metropolitan-district-council/walsall,WC107-434,31/08/2019,Adult Social Care,ANCHOR,20/08/2019,"2,332.24",73501-RESIDENTIAL EMI,Third Party Payments,Private Contractor Fees,Revenue
Walsall Council,http://opendatacommunities.org/id/metropolitan-district-council/walsall,WC107-435,31/08/2019,Childrens,REDACTED,27/08/2019,312.24,74509-SPECIAL GUARDIANSHIP ORDERS,Transfer Payments,Transfer Payments,Revenue
Walsall Council,http://opendatacommunities.org/id/metropolitan-district-council/walsall,WC107-436,31/08/2019,Childrens,REDACTED,12/08/2019,720,74501-MAINTENANCE ALLOWANCE-FOSTER CARERS,Transfer Payments,Transfer Payments,Revenue
Walsall Council,http://opendatacommunities.org/id/metropolitan-district-council/walsall,WC107-437,31/08/2019,Childrens,REDACTED,12/08/2019,"1,000.00",74508-INTERNAL FOSTER CARERS-CARER FEES,Transfer Payments,Transfer Payments,Revenue
Walsall Council,http://opendatacommunities.org/id/metropolitan-district-council/walsall,WC107-438,31/08/2019,Adult Social Care,REDACTED,06/08/2019,619.24,73506-DIRECT PAYMENT,Third Party Payments,Private Contractor Fees,Revenue
Walsall Council,http://opendatacommunities.org/id/metropolitan-district-council/walsall,WC107-439,31/08/2019,Adult Social Care,REDACTED,06/08/2019,"2,494.40",73506-DIRECT PAYMENT,Third Party Payments,Private Contractor Fees,Revenue
Walsall Council,http://opendatacommunities.org/id/metropolitan-district-council/walsall,WC107-440,31/08/2019,Resources and Transformation,ANDY GALE HOUSING CONSULTANCY,27/08/2019,"1,830.79",30030-EXTERNAL TRAINING,Employees,Training,Revenue
Walsall Council,http://opendatacommunities.org/id/metropolitan-district-council/walsall,WC107-441,31/08/2019,Childrens,REDACTED,27/08/2019,368.76,74509-SPECIAL GUARDIANSHIP ORDERS,Transfer Payments,Transfer Payments,Revenue
Walsall Council,http://opendatacommunities.org/id/metropolitan-district-council/walsall,WC107-442,31/08/2019,Childrens,REDACTED,27/08/2019,368.76,74509-SPECIAL GUARDIANSHIP ORDERS,Transfer Payments,Transfer Payments,Revenue
Walsall Council,http://opendatacommunities.org/id/metropolitan-district-council/walsall,WC107-443,31/08/2019,Childrens,REDACTED,27/08/2019,500.16,74509-SPECIAL GUARDIANSHIP ORDERS,Transfer Payments,Transfer Payments,Revenue
Walsall Council,http://opendatacommunities.org/id/metropolitan-district-council/walsall,WC107-444,31/08/2019,Childrens,REDACTED,27/08/2019,312.04,74509-SPECIAL GUARDIANSHIP ORDERS,Transfer Payments,Transfer Payments,Revenue
Walsall Council,http://opendatacommunities.org/id/metropolitan-district-council/walsall,WC107-445,31/08/2019,Childrens,ANGELS WITHOUT WINGS,01/08/2019,"4,948.75",63000-PROFESSIONAL FEES AND SERVICES,Supplies & Services,Services,Revenue
Walsall Council,http://opendatacommunities.org/id/metropolitan-district-council/walsall,WC107-446,31/08/2019,Adult Social Care,REDACTED,06/08/2019,"1,175.20",73506-DIRECT PAYMENT,Third Party Payments,Private Contractor Fees,Revenue
Walsall Council,http://opendatacommunities.org/id/metropolitan-district-council/walsall,WC107-447,31/08/2019,Adult Social Care,ANSON COURT RESIDENTIAL HOME,20/08/2019,"1,972.24",73501-RESIDENTIAL EMI,Third Party Payments,Private Contractor Fees,Revenue
Walsall Council,http://opendatacommunities.org/id/metropolitan-district-council/walsall,WC107-448,31/08/2019,Adult Social Care,ANSON COURT RESIDENTIAL HOME,20/08/2019,"1,972.24",73501-RESIDENTIAL EMI,Third Party Payments,Private Contractor Fees,Revenue
Walsall Council,http://opendatacommunities.org/id/metropolitan-district-council/walsall,WC107-449,31/08/2019,Adult Social Care,ANSON COURT RESIDENTIAL HOME,20/08/2019,"1,972.24",73501-RESIDENTIAL EMI,Third Party Payments,Private Contractor Fees,Revenue
Walsall Council,http://opendatacommunities.org/id/metropolitan-district-council/walsall,WC107-450,31/08/2019,Adult Social Care,ANSON COURT RESIDENTIAL HOME,20/08/2019,"1,972.24",73501-RESIDENTIAL EMI,Third Party Payments,Private Contractor Fees,Revenue
Walsall Council,http://opendatacommunities.org/id/metropolitan-district-council/walsall,WC107-451,31/08/2019,Adult Social Care,ANSON COURT RESIDENTIAL HOME,20/08/2019,"1,972.24",73501-RESIDENTIAL EMI,Third Party Payments,Private Contractor Fees,Revenue
Walsall Council,http://opendatacommunities.org/id/metropolitan-district-council/walsall,WC107-452,31/08/2019,Adult Social Care,ANSON COURT RESIDENTIAL HOME,20/08/2019,"1,972.24",73501-RESIDENTIAL EMI,Third Party Payments,Private Contractor Fees,Revenue
Walsall Council,http://opendatacommunities.org/id/metropolitan-district-council/walsall,WC107-453,31/08/2019,Adult Social Care,ANSON COURT RESIDENTIAL HOME,20/08/2019,"1,972.24",73501-RESIDENTIAL EMI,Third Party Payments,Private Contractor Fees,Revenue
Walsall Council,http://opendatacommunities.org/id/metropolitan-district-council/walsall,WC107-454,31/08/2019,Adult Social Care,ANSON COURT RESIDENTIAL HOME,20/08/2019,"1,972.24",73501-RESIDENTIAL EMI,Third Party Payments,Private Contractor Fees,Revenue
Walsall Council,http://opendatacommunities.org/id/metropolitan-district-council/walsall,WC107-455,31/08/2019,Adult Social Care,ANSON COURT RESIDENTIAL HOME,20/08/2019,"1,972.24",73501-RESIDENTIAL EMI,Third Party Payments,Private Contractor Fees,Revenue
Walsall Council,http://opendatacommunities.org/id/metropolitan-district-council/walsall,WC107-456,31/08/2019,Adult Social Care,ANSON COURT RESIDENTIAL HOME,20/08/2019,"1,972.24",73501-RESIDENTIAL EMI,Third Party Payments,Private Contractor Fees,Revenue
Walsall Council,http://opendatacommunities.org/id/metropolitan-district-council/walsall,WC107-457,31/08/2019,Adult Social Care,ANSON COURT RESIDENTIAL HOME,20/08/2019,"1,972.24",73501-RESIDENTIAL EMI,Third Party Payments,Private Contractor Fees,Revenue
Walsall Council,http://opendatacommunities.org/id/metropolitan-district-council/walsall,WC107-458,31/08/2019,Adult Social Care,ANSON COURT RESIDENTIAL HOME,20/08/2019,"1,972.24",73501-RESIDENTIAL EMI,Third Party Payments,Private Contractor Fees,Revenue
Walsall Council,http://opendatacommunities.org/id/metropolitan-district-council/walsall,WC107-459,31/08/2019,Adult Social Care,ANSON COURT RESIDENTIAL HOME,20/08/2019,"2,052.24",73501-RESIDENTIAL EMI,Third Party Payments,Private Contractor Fees,Revenue
Walsall Council,http://opendatacommunities.org/id/metropolitan-district-council/walsall,WC107-460,31/08/2019,Adult Social Care,ANSON COURT RESIDENTIAL HOME,20/08/2019,"2,052.24",73501-RESIDENTIAL EMI,Third Party Payments,Private Contractor Fees,Revenue
Walsall Council,http://opendatacommunities.org/id/metropolitan-district-council/walsall,WC107-461,31/08/2019,Adult Social Care,ANSON COURT RESIDENTIAL HOME,20/08/2019,"2,052.24",73501-RESIDENTIAL EMI,Third Party Payments,Private Contractor Fees,Revenue
Walsall Council,http://opendatacommunities.org/id/metropolitan-district-council/walsall,WC107-462,31/08/2019,Adult Social Care,ANSON COURT RESIDENTIAL HOME,20/08/2019,"2,092.24",73501-RESIDENTIAL EMI,Third Party Payments,Private Contractor Fees,Revenue
Walsall Council,http://opendatacommunities.org/id/metropolitan-district-council/walsall,WC107-463,31/08/2019,Adult Social Care,ANSON COURT RESIDENTIAL HOME,20/08/2019,"2,092.24",73501-RESIDENTIAL EMI,Third Party Payments,Private Contractor Fees,Revenue
Walsall Council,http://opendatacommunities.org/id/metropolitan-district-council/walsall,WC107-464,31/08/2019,Adult Social Care,ANSON COURT RESIDENTIAL HOME,20/08/2019,"2,092.24",73501-RESIDENTIAL EMI,Third Party Payments,Private Contractor Fees,Revenue
Walsall Council,http://opendatacommunities.org/id/metropolitan-district-council/walsall,WC107-465,31/08/2019,Adult Social Care,ANSON COURT RESIDENTIAL HOME,20/08/2019,"2,092.24",73501-RESIDENTIAL EMI,Third Party Payments,Private Contractor Fees,Revenue
Walsall Council,http://opendatacommunities.org/id/metropolitan-district-council/walsall,WC107-466,31/08/2019,Adult Social Care,ANSON COURT RESIDENTIAL HOME,20/08/2019,"2,172.24",73501-RESIDENTIAL EMI,Third Party Payments,Private Contractor Fees,Revenue
Walsall Council,http://opendatacommunities.org/id/metropolitan-district-council/walsall,WC107-467,31/08/2019,Childrens,REDACTED,27/08/2019,604,74510-RESIDENTS ORDERS,Third Party Payments,Private Contractor Fees,Revenue
Walsall Council,http://opendatacommunities.org/id/metropolitan-district-council/walsall,WC107-468,31/08/2019,Childrens,REDACTED,27/08/2019,333.12,74509-SPECIAL GUARDIANSHIP ORDERS,Transfer Payments,Transfer Payments,Revenue
Walsall Council,http://opendatacommunities.org/id/metropolitan-district-council/walsall,WC107-469,31/08/2019,Adult Social Care,ANVILLE COURT CARE LTD,20/08/2019,"2,661.80",73503-NURSING EMI,Third Party Payments,Private Contractor Fees,Revenue
Walsall Council,http://opendatacommunities.org/id/metropolitan-district-council/walsall,WC107-470,31/08/2019,Economy & Environment,APCOA PARKING SERVICES (UK) LTD,15/08/2019,"54,127.00",73025-PROFESSIONAL SERVICES-PRIV CONTRACTOR & OTHER AGENCIES,Third Party Payments,Private Contractor Fees,Revenue
Walsall Council,http://opendatacommunities.org/id/metropolitan-district-council/walsall,WC107-471,31/08/2019,Resources and Transformation,APEX RADIO SYSTEMS LTD,09/08/2019,455.99,60006-NEW-FURNITURE & EQUIPMENT,Supplies & Services,"Equip,Furniture & Materials",Revenue
Walsall Council,http://opendatacommunities.org/id/metropolitan-district-council/walsall,WC107-472,31/08/2019,Resources and Transformation,APP CARZ,01/08/2019,556,52000-WITH DRIVER-HIRE OF VEHICLES,Transport,Hire,Revenue
Walsall Council,http://opendatacommunities.org/id/metropolitan-district-council/walsall,WC107-473,31/08/2019,Childrens,APP CARZ,07/08/2019,"5,963.80",52000-WITH DRIVER-HIRE OF VEHICLES,Transport,Hire,Revenue
Walsall Council,http://opendatacommunities.org/id/metropolitan-district-council/walsall,WC107-474,31/08/2019,Economy & Environment,APSE 001,12/08/2019,506.25,64500-PUBLICATIONS/ORGANISATIONS-SUBSCRIPTIONS,Supplies & Services,Subscriptions,Revenue
Walsall Council,http://opendatacommunities.org/id/metropolitan-district-council/walsall,WC107-475,31/08/2019,Economy & Environment,APSE 001,12/08/2019,506.25,64500-PUBLICATIONS/ORGANISATIONS-SUBSCRIPTIONS,Supplies & Services,Subscriptions,Revenue
Walsall Council,http://opendatacommunities.org/id/metropolitan-district-council/walsall,WC107-476,31/08/2019,Resources and Transformation,APSE 001,12/08/2019,506.25,64500-PUBLICATIONS/ORGANISATIONS-SUBSCRIPTIONS,Supplies & Services,Subscriptions,Revenue
Walsall Council,http://opendatacommunities.org/id/metropolitan-district-council/walsall,WC107-477,31/08/2019,Resources and Transformation,APSE 001,12/08/2019,506.25,64500-PUBLICATIONS/ORGANISATIONS-SUBSCRIPTIONS,Supplies & Services,Subscriptions,Revenue
Walsall Council,http://opendatacommunities.org/id/metropolitan-district-council/walsall,WC107-478,31/08/2019,Economy & Environment,APSE 001,12/08/2019,"1,012.50",64500-PUBLICATIONS/ORGANISATIONS-SUBSCRIPTIONS,Supplies & Services,Subscriptions,Revenue
Walsall Council,http://opendatacommunities.org/id/metropolitan-district-council/walsall,WC107-479,31/08/2019,Economy & Environment,APSE 001,12/08/2019,"1,012.50",64500-PUBLICATIONS/ORGANISATIONS-SUBSCRIPTIONS,Supplies & Services,Subscriptions,Revenue
Walsall Council,http://opendatacommunities.org/id/metropolitan-district-council/walsall,WC107-480,31/08/2019,Resources and Transformation,APSE 001,12/08/2019,"1,012.50",64500-PUBLICATIONS/ORGANISATIONS-SUBSCRIPTIONS,Supplies & Services,Subscriptions,Revenue
Walsall Council,http://opendatacommunities.org/id/metropolitan-district-council/walsall,WC107-481,31/08/2019,Economy & Environment,APSE 001,12/08/2019,"3,037.50",64500-PUBLICATIONS/ORGANISATIONS-SUBSCRIPTIONS,Supplies & Services,Subscriptions,Revenue
Walsall Council,http://opendatacommunities.org/id/metropolitan-district-council/walsall,WC107-482,31/08/2019,Adult Social Care,ARBORETUM NURSING HOME.,20/08/2019,507.13,73504-SHORT STAY RESIDENTIAL,Third Party Payments,Private Contractor Fees,Revenue
Walsall Council,http://opendatacommunities.org/id/metropolitan-district-council/walsall,WC107-483,31/08/2019,Adult Social Care,ARBORETUM NURSING HOME.,20/08/2019,822.75,73502-NURSING,Third Party Payments,Private Contractor Fees,Revenue
Walsall Council,http://opendatacommunities.org/id/metropolitan-district-council/walsall,WC107-484,31/08/2019,Adult Social Care,ARBORETUM NURSING HOME.,20/08/2019,987.31,73502-NURSING,Third Party Payments,Private Contractor Fees,Revenue
Walsall Council,http://opendatacommunities.org/id/metropolitan-district-council/walsall,WC107-485,31/08/2019,Adult Social Care,ARBORETUM NURSING HOME.,20/08/2019,"1,778.64",73502-NURSING,Third Party Payments,Private Contractor Fees,Revenue
Walsall Council,http://opendatacommunities.org/id/metropolitan-district-council/walsall,WC107-486,31/08/2019,Adult Social Care,ARBORETUM NURSING HOME.,20/08/2019,"2,143.72",73502-NURSING,Third Party Payments,Private Contractor Fees,Revenue
Walsall Council,http://opendatacommunities.org/id/metropolitan-district-council/walsall,WC107-487,31/08/2019,Adult Social Care,ARBORETUM NURSING HOME.,20/08/2019,"2,143.72",73502-NURSING,Third Party Payments,Private Contractor Fees,Revenue
Walsall Council,http://opendatacommunities.org/id/metropolitan-district-council/walsall,WC107-488,31/08/2019,Adult Social Care,ARBORETUM NURSING HOME.,20/08/2019,"2,143.72",73502-NURSING,Third Party Payments,Private Contractor Fees,Revenue
Walsall Council,http://opendatacommunities.org/id/metropolitan-district-council/walsall,WC107-489,31/08/2019,Adult Social Care,ARBORETUM NURSING HOME.,20/08/2019,"2,143.72",73502-NURSING,Third Party Payments,Private Contractor Fees,Revenue
Walsall Council,http://opendatacommunities.org/id/metropolitan-district-council/walsall,WC107-490,31/08/2019,Adult Social Care,ARBORETUM NURSING HOME.,20/08/2019,"2,223.72",73502-NURSING,Third Party Payments,Private Contractor Fees,Revenue
Walsall Council,http://opendatacommunities.org/id/metropolitan-district-council/walsall,WC107-491,31/08/2019,Adult Social Care,ARBORETUM NURSING HOME.,20/08/2019,"2,243.72",73502-NURSING,Third Party Payments,Private Contractor Fees,Revenue
Walsall Council,http://opendatacommunities.org/id/metropolitan-district-council/walsall,WC107-492,31/08/2019,Adult Social Care,ARBORETUM NURSING HOME.,20/08/2019,"2,263.72",73502-NURSING,Third Party Payments,Private Contractor Fees,Revenue
Walsall Council,http://opendatacommunities.org/id/metropolitan-district-council/walsall,WC107-493,31/08/2019,Adult Social Care,ARBORETUM NURSING HOME.,20/08/2019,"2,263.72",73502-NURSING,Third Party Payments,Private Contractor Fees,Revenue
Walsall Council,http://opendatacommunities.org/id/metropolitan-district-council/walsall,WC107-494,31/08/2019,Adult Social Care,ARBORETUM NURSING HOME.,20/08/2019,"2,263.72",73502-NURSING,Third Party Payments,Private Contractor Fees,Revenue
Walsall Council,http://opendatacommunities.org/id/metropolitan-district-council/walsall,WC107-495,31/08/2019,Adult Social Care,ARBORETUM NURSING HOME.,20/08/2019,"2,263.72",73502-NURSING,Third Party Payments,Private Contractor Fees,Revenue
Walsall Council,http://opendatacommunities.org/id/metropolitan-district-council/walsall,WC107-496,31/08/2019,Adult Social Care,ARBORETUM NURSING HOME.,20/08/2019,"2,303.72",73502-NURSING,Third Party Payments,Private Contractor Fees,Revenue
Walsall Council,http://opendatacommunities.org/id/metropolitan-district-council/walsall,WC107-497,31/08/2019,Adult Social Care,ARBORETUM NURSING HOME.,20/08/2019,"2,478.08",73503-NURSING EMI,Third Party Payments,Private Contractor Fees,Revenue
Walsall Council,http://opendatacommunities.org/id/metropolitan-district-council/walsall,WC107-498,31/08/2019,Adult Social Care,ARBORETUM NURSING HOME.,16/08/2019,"23,840.00",73025-PROFESSIONAL SERVICES-PRIV CONTRACTOR & OTHER AGENCIES,Third Party Payments,Private Contractor Fees,Revenue
Walsall Council,http://opendatacommunities.org/id/metropolitan-district-council/walsall,WC107-499,31/08/2019,Economy & Environment,ARCADIS,02/08/2019,"6,989.95",63000-PROFESSIONAL FEES AND SERVICES,Supplies & Services,Services,Revenue
Walsall Council,http://opendatacommunities.org/id/metropolitan-district-council/walsall,WC107-500,31/08/2019,Economy & Environment,ARCADIS,01/08/2019,"11,250.00",63000-PROFESSIONAL FEES AND SERVICES,Supplies & Services,Services,Revenue
Walsall Council,http://opendatacommunities.org/id/metropolitan-district-council/walsall,WC107-501,31/08/2019,Economy & Environment,ARCADIS,01/08/2019,"19,000.00",63000-PROFESSIONAL FEES AND SERVICES,Supplies & Services,Services,Revenue
Walsall Council,http://opendatacommunities.org/id/metropolitan-district-council/walsall,WC107-502,31/08/2019,Economy & Environment,ARCADIS,01/08/2019,"31,125.00",63000-PROFESSIONAL FEES AND SERVICES,Supplies & Services,Services,Revenue
Walsall Council,http://opendatacommunities.org/id/metropolitan-district-council/walsall,WC107-503,31/08/2019,Economy & Environment,ARCO GROUP,01/08/2019,228.33,60006-NEW-FURNITURE & EQUIPMENT,Supplies & Services,"Equip,Furniture & Materials",Revenue
Walsall Council,http://opendatacommunities.org/id/metropolitan-district-council/walsall,WC107-504,31/08/2019,Childrens,ARMSTRONG YORK ASBESTOS ENVIRONMENTAL LIMITED,01/08/2019,300,01006-SITE WORKS MAIN CONTRACTORS,Capital,Capital,Capital
Walsall Council,http://opendatacommunities.org/id/metropolitan-district-council/walsall,WC107-505,31/08/2019,Childrens,ARMSTRONG YORK ASBESTOS ENVIRONMENTAL LIMITED,22/08/2019,320,01006-SITE WORKS MAIN CONTRACTORS,Capital,Capital,Capital
Walsall Council,http://opendatacommunities.org/id/metropolitan-district-council/walsall,WC107-506,31/08/2019,Economy & Environment,ARMSTRONG YORK ASBESTOS ENVIRONMENTAL LIMITED,01/08/2019,600,01006-SITE WORKS MAIN CONTRACTORS,Capital,Capital,Capital
Walsall Council,http://opendatacommunities.org/id/metropolitan-district-council/walsall,WC107-507,31/08/2019,Resources and Transformation,ARMSTRONG YORK ASBESTOS ENVIRONMENTAL LIMITED,22/08/2019,"6,080.00",01006-SITE WORKS MAIN CONTRACTORS,Capital,Capital,Capital
Walsall Council,http://opendatacommunities.org/id/metropolitan-district-council/walsall,WC107-508,31/08/2019,Childrens,ART PRACTITIONER & PSYCHOTHERAPY SERVICES JACQUELINE MARLOW,27/08/2019,"3,150.00",63000-PROFESSIONAL FEES AND SERVICES,Supplies & Services,Services,Revenue
Walsall Council,http://opendatacommunities.org/id/metropolitan-district-council/walsall,WC107-509,31/08/2019,Childrens,ASBESTOS ABATEMENT SERVICES,20/08/2019,500,01006-SITE WORKS MAIN CONTRACTORS,Capital,Capital,Capital
Walsall Council,http://opendatacommunities.org/id/metropolitan-district-council/walsall,WC107-510,31/08/2019,Childrens,ASBESTOS ABATEMENT SERVICES,21/08/2019,500,01006-SITE WORKS MAIN CONTRACTORS,Capital,Capital,Capital
Walsall Council,http://opendatacommunities.org/id/metropolitan-district-council/walsall,WC107-511,31/08/2019,Childrens,ASBESTOS ABATEMENT SERVICES,21/08/2019,500,01006-SITE WORKS MAIN CONTRACTORS,Capital,Capital,Capital
Walsall Council,http://opendatacommunities.org/id/metropolitan-district-council/walsall,WC107-512,31/08/2019,Childrens,ASBESTOS ABATEMENT SERVICES,21/08/2019,500,01006-SITE WORKS MAIN CONTRACTORS,Capital,Capital,Capital
Walsall Council,http://opendatacommunities.org/id/metropolitan-district-council/walsall,WC107-513,31/08/2019,Childrens,ASBESTOS ABATEMENT SERVICES,21/08/2019,500,01006-SITE WORKS MAIN CONTRACTORS,Capital,Capital,Capital
Walsall Council,http://opendatacommunities.org/id/metropolitan-district-council/walsall,WC107-514,31/08/2019,Childrens,ASBESTOS ABATEMENT SERVICES,21/08/2019,500,01006-SITE WORKS MAIN CONTRACTORS,Capital,Capital,Capital
Walsall Council,http://opendatacommunities.org/id/metropolitan-district-council/walsall,WC107-515,31/08/2019,Childrens,ASBESTOS ABATEMENT SERVICES,12/08/2019,"4,943.00",01006-SITE WORKS MAIN CONTRACTORS,Capital,Capital,Capital
Walsall Council,http://opendatacommunities.org/id/metropolitan-district-council/walsall,WC107-516,31/08/2019,Childrens,ASBESTOS ABATEMENT SERVICES,12/08/2019,"6,313.00",01006-SITE WORKS MAIN CONTRACTORS,Capital,Capital,Capital
Walsall Council,http://opendatacommunities.org/id/metropolitan-district-council/walsall,WC107-517,31/08/2019,Adult Social Care,ASH GRANGE CARE HOME,20/08/2019,502.23,73502-NURSING,Third Party Payments,Private Contractor Fees,Revenue
Walsall Council,http://opendatacommunities.org/id/metropolitan-district-council/walsall,WC107-518,31/08/2019,Adult Social Care,ASH GRANGE CARE HOME,20/08/2019,575.93,73502-NURSING,Third Party Payments,Private Contractor Fees,Revenue
Walsall Council,http://opendatacommunities.org/id/metropolitan-district-council/walsall,WC107-519,31/08/2019,Adult Social Care,ASH GRANGE CARE HOME,20/08/2019,575.93,73502-NURSING,Third Party Payments,Private Contractor Fees,Revenue
Walsall Council,http://opendatacommunities.org/id/metropolitan-district-council/walsall,WC107-520,31/08/2019,Adult Social Care,ASH GRANGE CARE HOME,16/08/2019,"1,178.57",73025-PROFESSIONAL SERVICES-PRIV CONTRACTOR & OTHER AGENCIES,Third Party Payments,Private Contractor Fees,Revenue
Walsall Council,http://opendatacommunities.org/id/metropolitan-district-council/walsall,WC107-521,31/08/2019,Adult Social Care,ASH GRANGE CARE HOME,20/08/2019,"1,774.96",73500-RESIDENTIAL,Third Party Payments,Private Contractor Fees,Revenue
Walsall Council,http://opendatacommunities.org/id/metropolitan-district-council/walsall,WC107-522,31/08/2019,Adult Social Care,ASH GRANGE CARE HOME,20/08/2019,"1,774.96",73500-RESIDENTIAL,Third Party Payments,Private Contractor Fees,Revenue
Walsall Council,http://opendatacommunities.org/id/metropolitan-district-council/walsall,WC107-523,31/08/2019,Adult Social Care,ASH GRANGE CARE HOME,20/08/2019,"1,837.47",73502-NURSING,Third Party Payments,Private Contractor Fees,Revenue
Walsall Council,http://opendatacommunities.org/id/metropolitan-district-council/walsall,WC107-524,31/08/2019,Adult Social Care,ASH GRANGE CARE HOME,20/08/2019,"1,990.60",73502-NURSING,Third Party Payments,Private Contractor Fees,Revenue
Walsall Council,http://opendatacommunities.org/id/metropolitan-district-council/walsall,WC107-525,31/08/2019,Adult Social Care,ASH GRANGE CARE HOME,20/08/2019,"2,143.72",73502-NURSING,Third Party Payments,Private Contractor Fees,Revenue
Walsall Council,http://opendatacommunities.org/id/metropolitan-district-council/walsall,WC107-526,31/08/2019,Adult Social Care,ASH GRANGE CARE HOME,20/08/2019,"2,143.72",73502-NURSING,Third Party Payments,Private Contractor Fees,Revenue
Walsall Council,http://opendatacommunities.org/id/metropolitan-district-council/walsall,WC107-527,31/08/2019,Adult Social Care,ASH GRANGE CARE HOME,20/08/2019,"2,143.72",73502-NURSING,Third Party Payments,Private Contractor Fees,Revenue
Walsall Council,http://opendatacommunities.org/id/metropolitan-district-council/walsall,WC107-528,31/08/2019,Adult Social Care,ASH GRANGE CARE HOME,20/08/2019,"2,143.72",73502-NURSING,Third Party Payments,Private Contractor Fees,Revenue
Walsall Council,http://opendatacommunities.org/id/metropolitan-district-council/walsall,WC107-529,31/08/2019,Adult Social Care,ASH GRANGE CARE HOME,20/08/2019,"2,143.72",73502-NURSING,Third Party Payments,Private Contractor Fees,Revenue
Walsall Council,http://opendatacommunities.org/id/metropolitan-district-council/walsall,WC107-530,31/08/2019,Adult Social Care,ASH GRANGE CARE HOME,20/08/2019,"2,143.72",73502-NURSING,Third Party Payments,Private Contractor Fees,Revenue
Walsall Council,http://opendatacommunities.org/id/metropolitan-district-council/walsall,WC107-531,31/08/2019,Adult Social Care,ASH GRANGE CARE HOME,20/08/2019,"2,143.72",73502-NURSING,Third Party Payments,Private Contractor Fees,Revenue
Walsall Council,http://opendatacommunities.org/id/metropolitan-district-council/walsall,WC107-532,31/08/2019,Adult Social Care,ASH GRANGE CARE HOME,20/08/2019,"2,143.72",73502-NURSING,Third Party Payments,Private Contractor Fees,Revenue
Walsall Council,http://opendatacommunities.org/id/metropolitan-district-council/walsall,WC107-533,31/08/2019,Adult Social Care,ASH GRANGE CARE HOME,20/08/2019,"2,143.72",73502-NURSING,Third Party Payments,Private Contractor Fees,Revenue
Walsall Council,http://opendatacommunities.org/id/metropolitan-district-council/walsall,WC107-534,31/08/2019,Adult Social Care,ASH GRANGE CARE HOME,20/08/2019,"2,143.72",73502-NURSING,Third Party Payments,Private Contractor Fees,Revenue
Walsall Council,http://opendatacommunities.org/id/metropolitan-district-council/walsall,WC107-535,31/08/2019,Adult Social Care,ASH GRANGE CARE HOME,20/08/2019,"2,143.72",73502-NURSING,Third Party Payments,Private Contractor Fees,Revenue
Walsall Council,http://opendatacommunities.org/id/metropolitan-district-council/walsall,WC107-536,31/08/2019,Adult Social Care,ASH GRANGE CARE HOME,20/08/2019,"2,143.72",73502-NURSING,Third Party Payments,Private Contractor Fees,Revenue
Walsall Council,http://opendatacommunities.org/id/metropolitan-district-council/walsall,WC107-537,31/08/2019,Adult Social Care,ASH GRANGE CARE HOME,20/08/2019,"2,143.72",73502-NURSING,Third Party Payments,Private Contractor Fees,Revenue
Walsall Council,http://opendatacommunities.org/id/metropolitan-district-council/walsall,WC107-538,31/08/2019,Adult Social Care,ASH GRANGE CARE HOME,20/08/2019,"2,143.72",73502-NURSING,Third Party Payments,Private Contractor Fees,Revenue
Walsall Council,http://opendatacommunities.org/id/metropolitan-district-council/walsall,WC107-539,31/08/2019,Adult Social Care,ASH GRANGE CARE HOME,20/08/2019,"2,263.72",73502-NURSING,Third Party Payments,Private Contractor Fees,Revenue
Walsall Council,http://opendatacommunities.org/id/metropolitan-district-council/walsall,WC107-540,31/08/2019,Adult Social Care,ASH GRANGE CARE HOME,20/08/2019,"2,343.72",73502-NURSING,Third Party Payments,Private Contractor Fees,Revenue
Walsall Council,http://opendatacommunities.org/id/metropolitan-district-council/walsall,WC107-541,31/08/2019,Adult Social Care,ASH GRANGE CARE HOME,20/08/2019,"2,358.08",73503-NURSING EMI,Third Party Payments,Private Contractor Fees,Revenue
Walsall Council,http://opendatacommunities.org/id/metropolitan-district-council/walsall,WC107-542,31/08/2019,Adult Social Care,ASH GRANGE CARE HOME,20/08/2019,"2,358.08",73503-NURSING EMI,Third Party Payments,Private Contractor Fees,Revenue
Walsall Council,http://opendatacommunities.org/id/metropolitan-district-council/walsall,WC107-543,31/08/2019,Adult Social Care,ASH GRANGE CARE HOME,20/08/2019,"2,423.72",73502-NURSING,Third Party Payments,Private Contractor Fees,Revenue
Walsall Council,http://opendatacommunities.org/id/metropolitan-district-council/walsall,WC107-544,31/08/2019,Adult Social Care,ASH GRANGE CARE HOME,20/08/2019,"2,423.72",73502-NURSING,Third Party Payments,Private Contractor Fees,Revenue
Walsall Council,http://opendatacommunities.org/id/metropolitan-district-council/walsall,WC107-545,31/08/2019,Adult Social Care,ASH GRANGE CARE HOME,20/08/2019,"2,463.72",73502-NURSING,Third Party Payments,Private Contractor Fees,Revenue
Walsall Council,http://opendatacommunities.org/id/metropolitan-district-council/walsall,WC107-546,31/08/2019,Adult Social Care,ASH GRANGE CARE HOME,20/08/2019,"2,520.68",73500-RESIDENTIAL,Third Party Payments,Private Contractor Fees,Revenue
Walsall Council,http://opendatacommunities.org/id/metropolitan-district-council/walsall,WC107-547,31/08/2019,Adult Social Care,ASH GRANGE CARE HOME,20/08/2019,"2,594.44",73503-NURSING EMI,Third Party Payments,Private Contractor Fees,Revenue
Walsall Council,http://opendatacommunities.org/id/metropolitan-district-council/walsall,WC107-548,31/08/2019,Adult Social Care,ASH GRANGE CARE HOME,20/08/2019,"2,752.04",73502-NURSING,Third Party Payments,Private Contractor Fees,Revenue
Walsall Council,http://opendatacommunities.org/id/metropolitan-district-council/walsall,WC107-549,31/08/2019,Economy & Environment,ASHDOWN SUPPLIES,02/08/2019,293.76,60500-GENERAL MATERIALS,Supplies & Services,"Equip,Furniture & Materials",Revenue
Walsall Council,http://opendatacommunities.org/id/metropolitan-district-council/walsall,WC107-550,31/08/2019,Adult Social Care,REDACTED,06/08/2019,"1,221.60",73506-DIRECT PAYMENT,Third Party Payments,Private Contractor Fees,Revenue
Walsall Council,http://opendatacommunities.org/id/metropolitan-district-council/walsall,WC107-551,31/08/2019,Economy & Environment,ASKEWS AND HOLTS LIBRARY SERVICES LTD,14/08/2019,"1,776.45",60501-LIBRARY BOOKS,Supplies & Services,"Equip,Furniture & Materials",Revenue
Walsall Council,http://opendatacommunities.org/id/metropolitan-district-council/walsall,WC107-552,31/08/2019,Economy & Environment,ASKEWS AND HOLTS LIBRARY SERVICES LTD,22/08/2019,"1,812.64",60501-LIBRARY BOOKS,Supplies & Services,"Equip,Furniture & Materials",Revenue
Walsall Council,http://opendatacommunities.org/id/metropolitan-district-council/walsall,WC107-553,31/08/2019,Economy & Environment,ASKEWS AND HOLTS LIBRARY SERVICES LTD,06/08/2019,"2,399.37",60501-LIBRARY BOOKS,Supplies & Services,"Equip,Furniture & Materials",Revenue
Walsall Council,http://opendatacommunities.org/id/metropolitan-district-council/walsall,WC107-554,31/08/2019,Adult Social Care,REDACTED,06/08/2019,775.2,73506-DIRECT PAYMENT,Third Party Payments,Private Contractor Fees,Revenue
Walsall Council,http://opendatacommunities.org/id/metropolitan-district-council/walsall,WC107-555,31/08/2019,Childrens,ASPIRE4U CIC,06/08/2019,750,73025-PROFESSIONAL SERVICES-PRIV CONTRACTOR & OTHER AGENCIES,Third Party Payments,Private Contractor Fees,Revenue
Walsall Council,http://opendatacommunities.org/id/metropolitan-district-council/walsall,WC107-556,31/08/2019,Economy & Environment,ASSOCIATION OF DIRECTORS OF PUBLIC HEALTH,13/08/2019,"3,250.00",63102-CONSULTANTS FEES - CORPORATE,Supplies & Services,Services,Revenue
Walsall Council,http://opendatacommunities.org/id/metropolitan-district-council/walsall,WC107-557,31/08/2019,Adult Social Care,ASSURED HEALTHCARE SOLUTIONS (PARK FARM LODGE),20/08/2019,"2,034.44",73500-RESIDENTIAL,Third Party Payments,Private Contractor Fees,Revenue
Walsall Council,http://opendatacommunities.org/id/metropolitan-district-council/walsall,WC107-558,31/08/2019,Economy & Environment,ATHWAL NEWS LTD,01/08/2019,287.19,60501-LIBRARY BOOKS,Supplies & Services,"Equip,Furniture & Materials",Revenue
Walsall Council,http://opendatacommunities.org/id/metropolitan-district-council/walsall,WC107-559,31/08/2019,Economy & Environment,ATKINS LIMITED,12/08/2019,885,01002-PROJECT FEES,Capital,Capital,Capital
Walsall Council,http://opendatacommunities.org/id/metropolitan-district-council/walsall,WC107-560,31/08/2019,Economy & Environment,ATKINS LIMITED,28/08/2019,"2,010.80",73025-PROFESSIONAL SERVICES-PRIV CONTRACTOR & OTHER AGENCIES,Third Party Payments,Private Contractor Fees,Revenue
Walsall Council,http://opendatacommunities.org/id/metropolitan-district-council/walsall,WC107-561,31/08/2019,Economy & Environment,ATKINS LIMITED,01/08/2019,"2,718.12",01003-ENGINEERS ASSISTANTS TIME - DESIGN,Capital,Capital,Capital
Walsall Council,http://opendatacommunities.org/id/metropolitan-district-council/walsall,WC107-562,31/08/2019,Economy & Environment,ATKINS LIMITED,05/08/2019,"5,000.00",01002-PROJECT FEES,Capital,Capital,Capital
Walsall Council,http://opendatacommunities.org/id/metropolitan-district-council/walsall,WC107-563,31/08/2019,Economy & Environment,ATKINS LIMITED,14/08/2019,"7,389.69",73025-PROFESSIONAL SERVICES-PRIV CONTRACTOR & OTHER AGENCIES,Third Party Payments,Private Contractor Fees,Revenue
Walsall Council,http://opendatacommunities.org/id/metropolitan-district-council/walsall,WC107-564,31/08/2019,Economy & Environment,ATKINS LIMITED,12/08/2019,"10,725.00",01002-PROJECT FEES,Capital,Capital,Capital
Walsall Council,http://opendatacommunities.org/id/metropolitan-district-council/walsall,WC107-565,31/08/2019,Adult Social Care,AUTISM WEST MIDLANDS,20/08/2019,"7,172.48",73500-RESIDENTIAL,Third Party Payments,Private Contractor Fees,Revenue
Walsall Council,http://opendatacommunities.org/id/metropolitan-district-council/walsall,WC107-566,31/08/2019,Adult Social Care,AUTISM WEST MIDLANDS 001,20/08/2019,"4,794.44",73500-RESIDENTIAL,Third Party Payments,Private Contractor Fees,Revenue
Walsall Council,http://opendatacommunities.org/id/metropolitan-district-council/walsall,WC107-567,31/08/2019,Economy & Environment,AXIELL LIMITED,01/08/2019,832.8,63800-COMPUTER EQUIPMENT AND SUPPLIES,Supplies & Services,Communications & Computing,Revenue
Walsall Council,http://opendatacommunities.org/id/metropolitan-district-council/walsall,WC107-568,31/08/2019,Economy & Environment,AXIELL LIMITED,01/08/2019,"3,071.28",63800-COMPUTER EQUIPMENT AND SUPPLIES,Supplies & Services,Communications & Computing,Revenue
Walsall Council,http://opendatacommunities.org/id/metropolitan-district-council/walsall,WC107-569,31/08/2019,Adult Social Care,REDACTED,06/08/2019,"3,182.40",73506-DIRECT PAYMENT,Third Party Payments,Private Contractor Fees,Revenue
Walsall Council,http://opendatacommunities.org/id/metropolitan-district-council/walsall,WC107-570,31/08/2019,Resources and Transformation,B E FURNITURE LTD T/A B E EVENTHIRE,16/08/2019,240,60009-LEASING/HIRE/RENTAL-EQUIPMENT,Supplies & Services,"Equip,Furniture & Materials",Revenue
Walsall Council,http://opendatacommunities.org/id/metropolitan-district-council/walsall,WC107-571,31/08/2019,Childrens,REDACTED,14/08/2019,464,76000-TRANSFER PAYMENTS - SOCIAL SERVICES CLIENTS,Transfer Payments,Transfer Payments,Revenue
Walsall Council,http://opendatacommunities.org/id/metropolitan-district-council/walsall,WC107-572,31/08/2019,Childrens,REDACTED,28/08/2019,464,76000-TRANSFER PAYMENTS - SOCIAL SERVICES CLIENTS,Transfer Payments,Transfer Payments,Revenue
Walsall Council,http://opendatacommunities.org/id/metropolitan-district-council/walsall,WC107-573,31/08/2019,Economy & Environment,BAART HARRIES NEWALL,14/08/2019,"1,800.00",63000-PROFESSIONAL FEES AND SERVICES,Supplies & Services,Services,Revenue
Walsall Council,http://opendatacommunities.org/id/metropolitan-district-council/walsall,WC107-574,31/08/2019,Childrens,BACK CARE SOLUTIONS LTD,14/08/2019,415.5,62001-STATIONERY & GENERAL SUPPLIES-OFFICE EXP,Supplies & Services,"Printing, Stationery & Office Exp",Revenue
Walsall Council,http://opendatacommunities.org/id/metropolitan-district-council/walsall,WC107-575,31/08/2019,Childrens,BACK CARE SOLUTIONS LTD,12/08/2019,452.9,60006-NEW-FURNITURE & EQUIPMENT,Supplies & Services,"Equip,Furniture & Materials",Revenue
Walsall Council,http://opendatacommunities.org/id/metropolitan-district-council/walsall,WC107-576,31/08/2019,Economy & Environment,BAKER HALL PARTNERSHIP,22/08/2019,"1,436.50",63000-PROFESSIONAL FEES AND SERVICES,Supplies & Services,Services,Revenue
Walsall Council,http://opendatacommunities.org/id/metropolitan-district-council/walsall,WC107-577,31/08/2019,Adult Social Care,REDACTED,06/08/2019,"3,585.24",73506-DIRECT PAYMENT,Third Party Payments,Private Contractor Fees,Revenue
Walsall Council,http://opendatacommunities.org/id/metropolitan-district-council/walsall,WC107-578,31/08/2019,Childrens,BALTIMORE CONSULTING LTD,09/08/2019,"2,281.50",34305-AGENCY STAFF-EMPLOYEES,Employees,Agency,Revenue
Walsall Council,http://opendatacommunities.org/id/metropolitan-district-council/walsall,WC107-579,31/08/2019,Childrens,BALTIMORE CONSULTING LTD,15/08/2019,"2,281.50",34305-AGENCY STAFF-EMPLOYEES,Employees,Agency,Revenue
Walsall Council,http://opendatacommunities.org/id/metropolitan-district-council/walsall,WC107-580,31/08/2019,Childrens,BALTIMORE CONSULTING LTD,22/08/2019,"2,281.50",34305-AGENCY STAFF-EMPLOYEES,Employees,Agency,Revenue
Walsall Council,http://opendatacommunities.org/id/metropolitan-district-council/walsall,WC107-581,31/08/2019,Adult Social Care,BALTIMORE CONSULTING LTD,07/08/2019,"4,107.50",63102-CONSULTANTS FEES - CORPORATE,Supplies & Services,Services,Revenue
Walsall Council,http://opendatacommunities.org/id/metropolitan-district-council/walsall,WC107-582,31/08/2019,Adult Social Care,BALTIMORE CONSULTING LTD,07/08/2019,"4,107.50",63102-CONSULTANTS FEES - CORPORATE,Supplies & Services,Services,Revenue
Walsall Council,http://opendatacommunities.org/id/metropolitan-district-council/walsall,WC107-583,31/08/2019,Adult Social Care,BALTIMORE CONSULTING LTD,12/08/2019,"4,107.50",63102-CONSULTANTS FEES - CORPORATE,Supplies & Services,Services,Revenue
Walsall Council,http://opendatacommunities.org/id/metropolitan-district-council/walsall,WC107-584,31/08/2019,Adult Social Care,BALTIMORE CONSULTING LTD,16/08/2019,"4,107.50",63102-CONSULTANTS FEES - CORPORATE,Supplies & Services,Services,Revenue
Walsall Council,http://opendatacommunities.org/id/metropolitan-district-council/walsall,WC107-585,31/08/2019,Adult Social Care,REDACTED,06/08/2019,"1,582.88",73506-DIRECT PAYMENT,Third Party Payments,Private Contractor Fees,Revenue
Walsall Council,http://opendatacommunities.org/id/metropolitan-district-council/walsall,WC107-586,31/08/2019,Childrens,REDACTED,27/08/2019,340,74508-INTERNAL FOSTER CARERS-CARER FEES,Transfer Payments,Transfer Payments,Revenue
Walsall Council,http://opendatacommunities.org/id/metropolitan-district-council/walsall,WC107-587,31/08/2019,Childrens,REDACTED,27/08/2019,540,74501-MAINTENANCE ALLOWANCE-FOSTER CARERS,Transfer Payments,Transfer Payments,Revenue
Walsall Council,http://opendatacommunities.org/id/metropolitan-district-council/walsall,WC107-588,31/08/2019,Childrens,BARNARDOS SERVICES LTD,12/08/2019,"3,116.40",74037-INDEPENDENT FOSTER CARE-OTH AGENCY PROVISION,Third Party Payments,Private Contractor Fees,Revenue
Walsall Council,http://opendatacommunities.org/id/metropolitan-district-council/walsall,WC107-589,31/08/2019,Childrens,BARNARDOS SERVICES LTD,16/08/2019,"3,828.33",63000-PROFESSIONAL FEES AND SERVICES,Supplies & Services,Services,Revenue
Walsall Council,http://opendatacommunities.org/id/metropolitan-district-council/walsall,WC107-590,31/08/2019,Economy & Environment,BARON FAMAIN LIMITED,19/08/2019,"70,945.45",01045-PRIVATE GRANTS,Capital,Capital,Capital
Walsall Council,http://opendatacommunities.org/id/metropolitan-district-council/walsall,WC107-591,31/08/2019,Childrens,BARR BEACON SCHOOL TRUST,01/09/2019,627.72,66502-TOP UP FUNDING -GRANTS TO SCHOOLS,Third Party Payments,Grants to Other Orgs,Revenue
Walsall Council,http://opendatacommunities.org/id/metropolitan-district-council/walsall,WC107-592,31/08/2019,Adult Social Care,BARTHOLAMEW LODGE CARE HOME,20/08/2019,"2,937.88",73503-NURSING EMI,Third Party Payments,Private Contractor Fees,Revenue
Walsall Council,http://opendatacommunities.org/id/metropolitan-district-council/walsall,WC107-593,31/08/2019,Childrens,BAT FABRICATIONS LTD,15/08/2019,"11,500.00",01006-SITE WORKS MAIN CONTRACTORS,Capital,Capital,Capital
Walsall Council,http://opendatacommunities.org/id/metropolitan-district-council/walsall,WC107-594,31/08/2019,Childrens,BAT FABRICATIONS LTD,27/08/2019,"14,375.00",01006-SITE WORKS MAIN CONTRACTORS,Capital,Capital,Capital
Walsall Council,http://opendatacommunities.org/id/metropolitan-district-council/walsall,WC107-595,31/08/2019,Economy & Environment,BAUER CORPORATE SERVICES - BAUER RADIO LTD,01/08/2019,"13,000.00",63253-PAYMENT TO CONTRACTOR,Third Party Payments,Private Contractor Fees,Revenue
Walsall Council,http://opendatacommunities.org/id/metropolitan-district-council/walsall,WC107-596,31/08/2019,Childrens,BEADEN POWERLEC LIMITED,27/08/2019,380,01006-SITE WORKS MAIN CONTRACTORS,Capital,Capital,Capital
Walsall Council,http://opendatacommunities.org/id/metropolitan-district-council/walsall,WC107-597,31/08/2019,Adult Social Care,BELVIDERE COURT,20/08/2019,"2,104.04",73502-NURSING,Third Party Payments,Private Contractor Fees,Revenue
Walsall Council,http://opendatacommunities.org/id/metropolitan-district-council/walsall,WC107-598,31/08/2019,Adult Social Care,BELVIDERE COURT,20/08/2019,"2,143.72",73502-NURSING,Third Party Payments,Private Contractor Fees,Revenue
Walsall Council,http://opendatacommunities.org/id/metropolitan-district-council/walsall,WC107-599,31/08/2019,Adult Social Care,BELVIDERE COURT,20/08/2019,"2,314.44",73503-NURSING EMI,Third Party Payments,Private Contractor Fees,Revenue
Walsall Council,http://opendatacommunities.org/id/metropolitan-district-council/walsall,WC107-600,31/08/2019,Adult Social Care,BELVIDERE COURT,20/08/2019,"2,314.44",73503-NURSING EMI,Third Party Payments,Private Contractor Fees,Revenue
Walsall Council,http://opendatacommunities.org/id/metropolitan-district-council/walsall,WC107-601,31/08/2019,Economy & Environment,BEN BIDDLE T/A BAR TRAINING ACADEMY,01/08/2019,105,30031-EXTERNAL TRAINING-OTHER,Employees,Training,Revenue
Walsall Council,http://opendatacommunities.org/id/metropolitan-district-council/walsall,WC107-602,31/08/2019,Economy & Environment,BEN BIDDLE T/A BAR TRAINING ACADEMY,01/08/2019,105,30031-EXTERNAL TRAINING-OTHER,Employees,Training,Revenue
Walsall Council,http://opendatacommunities.org/id/metropolitan-district-council/walsall,WC107-603,31/08/2019,Economy & Environment,BEN BIDDLE T/A BAR TRAINING ACADEMY,01/08/2019,105,30031-EXTERNAL TRAINING-OTHER,Employees,Training,Revenue
Walsall Council,http://opendatacommunities.org/id/metropolitan-district-council/walsall,WC107-604,31/08/2019,Economy & Environment,BEN BIDDLE T/A BAR TRAINING ACADEMY,01/08/2019,105,30031-EXTERNAL TRAINING-OTHER,Employees,Training,Revenue
Walsall Council,http://opendatacommunities.org/id/metropolitan-district-council/walsall,WC107-605,31/08/2019,Adult Social Care,REDACTED,06/08/2019,"2,569.64",73506-DIRECT PAYMENT,Third Party Payments,Private Contractor Fees,Revenue
Walsall Council,http://opendatacommunities.org/id/metropolitan-district-council/walsall,WC107-606,31/08/2019,Adult Social Care,BENTLEY COURT PRIORY,20/08/2019,"2,143.72",73502-NURSING,Third Party Payments,Private Contractor Fees,Revenue
Walsall Council,http://opendatacommunities.org/id/metropolitan-district-council/walsall,WC107-607,31/08/2019,Adult Social Care,BENTLEY COURT PRIORY,20/08/2019,"2,358.08",73503-NURSING EMI,Third Party Payments,Private Contractor Fees,Revenue
Walsall Council,http://opendatacommunities.org/id/metropolitan-district-council/walsall,WC107-608,31/08/2019,Adult Social Care,BENTLEY COURT PRIORY,20/08/2019,"2,358.08",73503-NURSING EMI,Third Party Payments,Private Contractor Fees,Revenue
Walsall Council,http://opendatacommunities.org/id/metropolitan-district-council/walsall,WC107-609,31/08/2019,Adult Social Care,BENTLEY COURT PRIORY,20/08/2019,"2,358.08",73503-NURSING EMI,Third Party Payments,Private Contractor Fees,Revenue
Walsall Council,http://opendatacommunities.org/id/metropolitan-district-council/walsall,WC107-610,31/08/2019,Adult Social Care,BENTLEY COURT PRIORY,20/08/2019,"2,358.08",73503-NURSING EMI,Third Party Payments,Private Contractor Fees,Revenue
Walsall Council,http://opendatacommunities.org/id/metropolitan-district-council/walsall,WC107-611,31/08/2019,Adult Social Care,BENTLEY COURT PRIORY,20/08/2019,"2,358.08",73503-NURSING EMI,Third Party Payments,Private Contractor Fees,Revenue
Walsall Council,http://opendatacommunities.org/id/metropolitan-district-council/walsall,WC107-612,31/08/2019,Adult Social Care,BENTLEY COURT PRIORY,20/08/2019,"2,358.08",73503-NURSING EMI,Third Party Payments,Private Contractor Fees,Revenue
Walsall Council,http://opendatacommunities.org/id/metropolitan-district-council/walsall,WC107-613,31/08/2019,Adult Social Care,BENTLEY COURT PRIORY,20/08/2019,"2,358.08",73503-NURSING EMI,Third Party Payments,Private Contractor Fees,Revenue
Walsall Council,http://opendatacommunities.org/id/metropolitan-district-council/walsall,WC107-614,31/08/2019,Adult Social Care,BENTLEY COURT PRIORY,20/08/2019,"2,358.08",73503-NURSING EMI,Third Party Payments,Private Contractor Fees,Revenue
Walsall Council,http://opendatacommunities.org/id/metropolitan-district-council/walsall,WC107-615,31/08/2019,Adult Social Care,BENTLEY COURT PRIORY,20/08/2019,"2,358.08",73503-NURSING EMI,Third Party Payments,Private Contractor Fees,Revenue
Walsall Council,http://opendatacommunities.org/id/metropolitan-district-council/walsall,WC107-616,31/08/2019,Holding Accounts,BERRYMANS LACE MAWER LLP,28/08/2019,"1,023.50",67001-MISC INSURANCES - PAYMENT OF CLAIMS,Supplies & Services,Other Supplies & Services,Revenue
Walsall Council,http://opendatacommunities.org/id/metropolitan-district-council/walsall,WC107-617,31/08/2019,Holding Accounts,BERRYMANS LACE MAWER LLP,14/08/2019,"1,046.50",67001-MISC INSURANCES - PAYMENT OF CLAIMS,Supplies & Services,Other Supplies & Services,Revenue
Walsall Council,http://opendatacommunities.org/id/metropolitan-district-council/walsall,WC107-618,31/08/2019,Adult Social Care,REDACTED,06/08/2019,"1,777.92",73506-DIRECT PAYMENT,Third Party Payments,Private Contractor Fees,Revenue
Walsall Council,http://opendatacommunities.org/id/metropolitan-district-council/walsall,WC107-619,31/08/2019,Adult Social Care,REDACTED,06/08/2019,"1,974.00",73506-DIRECT PAYMENT,Third Party Payments,Private Contractor Fees,Revenue
Walsall Council,http://opendatacommunities.org/id/metropolitan-district-council/walsall,WC107-620,31/08/2019,Adult Social Care,BETHPHAGE.,20/08/2019,616.2,73507-DOMICILIARY CARE,Third Party Payments,Private Contractor Fees,Revenue
Walsall Council,http://opendatacommunities.org/id/metropolitan-district-council/walsall,WC107-621,31/08/2019,Adult Social Care,BETHPHAGE.,20/08/2019,900.88,73508-COMMUNITY SUPPORTED LIVING/SUPPORTED ACCOMMODATION,Third Party Payments,Private Contractor Fees,Revenue
Walsall Council,http://opendatacommunities.org/id/metropolitan-district-council/walsall,WC107-622,31/08/2019,Adult Social Care,BETHPHAGE.,20/08/2019,"1,322.24",73507-DOMICILIARY CARE,Third Party Payments,Private Contractor Fees,Revenue
Walsall Council,http://opendatacommunities.org/id/metropolitan-district-council/walsall,WC107-623,31/08/2019,Adult Social Care,BETHPHAGE.,20/08/2019,"1,336.76",73507-DOMICILIARY CARE,Third Party Payments,Private Contractor Fees,Revenue
Walsall Council,http://opendatacommunities.org/id/metropolitan-district-council/walsall,WC107-624,31/08/2019,Adult Social Care,BETHPHAGE.,20/08/2019,"3,109.44",73507-DOMICILIARY CARE,Third Party Payments,Private Contractor Fees,Revenue
Walsall Council,http://opendatacommunities.org/id/metropolitan-district-council/walsall,WC107-625,31/08/2019,Adult Social Care,BETHPHAGE.,20/08/2019,"5,805.64",73508-COMMUNITY SUPPORTED LIVING/SUPPORTED ACCOMMODATION,Third Party Payments,Private Contractor Fees,Revenue
Walsall Council,http://opendatacommunities.org/id/metropolitan-district-council/walsall,WC107-626,31/08/2019,Adult Social Care,BETHPHAGE.,20/08/2019,"5,805.64",73508-COMMUNITY SUPPORTED LIVING/SUPPORTED ACCOMMODATION,Third Party Payments,Private Contractor Fees,Revenue
Walsall Council,http://opendatacommunities.org/id/metropolitan-district-council/walsall,WC107-627,31/08/2019,Adult Social Care,REDACTED,06/08/2019,949.52,73506-DIRECT PAYMENT,Third Party Payments,Private Contractor Fees,Revenue
Walsall Council,http://opendatacommunities.org/id/metropolitan-district-council/walsall,WC107-628,31/08/2019,Childrens,BEVERLEY HOTEL,14/08/2019,329.99,63000-PROFESSIONAL FEES AND SERVICES,Supplies & Services,Services,Revenue
Walsall Council,http://opendatacommunities.org/id/metropolitan-district-council/walsall,WC107-629,31/08/2019,Economy & Environment,BIFFA WASTE SERVICES LTD,01/08/2019,139,73029-HAZARDOUS WASTE REMOVAL/DISPOSAL-PRIV CONTRACTOR FEES,Third Party Payments,Private Contractor Fees,Revenue
Walsall Council,http://opendatacommunities.org/id/metropolitan-district-council/walsall,WC107-630,31/08/2019,Economy & Environment,BIFFA WASTE SERVICES LTD,01/08/2019,208.28,73039-LANDFILL TAX-PRIV CONTRACTOR FEES,Third Party Payments,Private Contractor Fees,Revenue
Walsall Council,http://opendatacommunities.org/id/metropolitan-district-council/walsall,WC107-631,31/08/2019,Economy & Environment,BIFFA WASTE SERVICES LTD,27/08/2019,228,73029-HAZARDOUS WASTE REMOVAL/DISPOSAL-PRIV CONTRACTOR FEES,Third Party Payments,Private Contractor Fees,Revenue
Walsall Council,http://opendatacommunities.org/id/metropolitan-district-council/walsall,WC107-632,31/08/2019,Economy & Environment,BIFFA WASTE SERVICES LTD,27/08/2019,370.88,73039-LANDFILL TAX-PRIV CONTRACTOR FEES,Third Party Payments,Private Contractor Fees,Revenue
Walsall Council,http://opendatacommunities.org/id/metropolitan-district-council/walsall,WC107-633,31/08/2019,Childrens,BIG YELLOW SELF STORAGE COMPANY LTD,01/08/2019,230,63000-PROFESSIONAL FEES AND SERVICES,Supplies & Services,Services,Revenue
Walsall Council,http://opendatacommunities.org/id/metropolitan-district-council/walsall,WC107-634,31/08/2019,Childrens,BIG YELLOW SELF STORAGE COMPANY LTD,08/08/2019,230,63000-PROFESSIONAL FEES AND SERVICES,Supplies & Services,Services,Revenue
Walsall Council,http://opendatacommunities.org/id/metropolitan-district-council/walsall,WC107-635,31/08/2019,Childrens,REDACTED,05/08/2019,"1,282.28",73506-DIRECT PAYMENT,Third Party Payments,Private Contractor Fees,Revenue
Walsall Council,http://opendatacommunities.org/id/metropolitan-district-council/walsall,WC107-636,31/08/2019,Economy & Environment,BIOGAS TECHNOLOGY LIMITED,14/08/2019,"1,011.34",60500-GENERAL MATERIALS,Supplies & Services,"Equip,Furniture & Materials",Revenue
Walsall Council,http://opendatacommunities.org/id/metropolitan-district-council/walsall,WC107-637,31/08/2019,Childrens,BIRCHILLS C OF E COMMUNITY ACADEMY,08/08/2019,"1,446.90",77300-ISB-FORMULA ALLOCATION,Transfer Payments,Transfer Payments,Revenue
Walsall Council,http://opendatacommunities.org/id/metropolitan-district-council/walsall,WC107-638,31/08/2019,Economy & Environment,BIRMINGHAM CHILDRENS HOSPITAL,16/08/2019,-595.9,74000-OTHER AGENCY FEES,Third Party Payments,Private Contractor Fees,Revenue
Walsall Council,http://opendatacommunities.org/id/metropolitan-district-council/walsall,WC107-639,31/08/2019,Childrens,BIRMINGHAM CITY COUNCIL,12/08/2019,"1,956.16",74037-INDEPENDENT FOSTER CARE-OTH AGENCY PROVISION,Third Party Payments,Private Contractor Fees,Revenue
Walsall Council,http://opendatacommunities.org/id/metropolitan-district-council/walsall,WC107-640,31/08/2019,Childrens,BIRMINGHAM CITY COUNCIL,08/08/2019,"2,000.00",63000-PROFESSIONAL FEES AND SERVICES,Supplies & Services,Services,Revenue
Walsall Council,http://opendatacommunities.org/id/metropolitan-district-council/walsall,WC107-641,31/08/2019,Resources and Transformation,BIRMINGHAM CITY UNIVERSITY,27/08/2019,640,30030-EXTERNAL TRAINING,Employees,Training,Revenue
Walsall Council,http://opendatacommunities.org/id/metropolitan-district-council/walsall,WC107-642,31/08/2019,Resources and Transformation,BIRMINGHAM COUNTY FA,06/08/2019,970,66500-GRANTS TO OTHER ORGS,Third Party Payments,Grants to Other Orgs,Revenue
Walsall Council,http://opendatacommunities.org/id/metropolitan-district-council/walsall,WC107-643,31/08/2019,Economy & Environment,BLACK COUNTRY BIG BAND,01/08/2019,250,62523-EVENTS AND VISUAL ARTS,Supplies & Services,Other Supplies & Services,Revenue
Walsall Council,http://opendatacommunities.org/id/metropolitan-district-council/walsall,WC107-644,31/08/2019,Economy & Environment,BLACK COUNTRY CONSORTIUM LIMITED,29/08/2019,"40,621.60",01045-PRIVATE GRANTS,Capital,Capital,Capital
Walsall Council,http://opendatacommunities.org/id/metropolitan-district-council/walsall,WC107-645,31/08/2019,Childrens,BLOSSOMS ON THE COMMON DAY NURSERY LTD,16/08/2019,640,77200-TRANSFER PAYMENTS-OTHER SCHOOLCHILDREN/STUDENT RELATED ITEMS,Transfer Payments,Transfer Payments,Revenue
Walsall Council,http://opendatacommunities.org/id/metropolitan-district-council/walsall,WC107-646,31/08/2019,Childrens,BLOSSOMS ON THE COMMON DAY NURSERY LTD,08/08/2019,723.45,77300-ISB-FORMULA ALLOCATION,Transfer Payments,Transfer Payments,Revenue
Walsall Council,http://opendatacommunities.org/id/metropolitan-district-council/walsall,WC107-647,31/08/2019,Childrens,BLOXWICH ACADEMY,08/08/2019,"1,033.50",77300-ISB-FORMULA ALLOCATION,Transfer Payments,Transfer Payments,Revenue
Walsall Council,http://opendatacommunities.org/id/metropolitan-district-council/walsall,WC107-648,31/08/2019,Childrens,BLOXWICH ACADEMY,16/08/2019,"3,393.00",66505-OTHER-GRANTS TO OTHER ORGS,Third Party Payments,Grants to Other Orgs,Revenue
Walsall Council,http://opendatacommunities.org/id/metropolitan-district-council/walsall,WC107-649,31/08/2019,Childrens,BLOXWICH ACADEMY,01/09/2019,"8,269.33",66502-TOP UP FUNDING -GRANTS TO SCHOOLS,Third Party Payments,Grants to Other Orgs,Revenue
Walsall Council,http://opendatacommunities.org/id/metropolitan-district-council/walsall,WC107-650,31/08/2019,Resources and Transformation,BLOXWICH COMMUNITY PARTNERSHIP.,20/08/2019,295,61002-DRY FOODS-PROVISIONS,Supplies & Services,Provisions,Revenue
Walsall Council,http://opendatacommunities.org/id/metropolitan-district-council/walsall,WC107-651,31/08/2019,Resources and Transformation,BLOXWICH COMMUNITY PARTNERSHIP.,20/08/2019,472.51,61002-DRY FOODS-PROVISIONS,Supplies & Services,Provisions,Revenue
Walsall Council,http://opendatacommunities.org/id/metropolitan-district-council/walsall,WC107-652,31/08/2019,Resources and Transformation,BLOXWICH COMMUNITY PARTNERSHIP.,09/08/2019,596.25,61002-DRY FOODS-PROVISIONS,Supplies & Services,Provisions,Revenue
Walsall Council,http://opendatacommunities.org/id/metropolitan-district-council/walsall,WC107-653,31/08/2019,Economy & Environment,BME UNITED LTD,16/08/2019,"14,680.40",63253-PAYMENT TO CONTRACTOR,Third Party Payments,Private Contractor Fees,Revenue
Walsall Council,http://opendatacommunities.org/id/metropolitan-district-council/walsall,WC107-654,31/08/2019,Childrens,BODRIGGY ACADEMY,06/08/2019,310.8,77300-ISB-FORMULA ALLOCATION,Transfer Payments,Transfer Payments,Revenue
Walsall Council,http://opendatacommunities.org/id/metropolitan-district-council/walsall,WC107-655,31/08/2019,Childrens,BODRIGGY ACADEMY,06/08/2019,494.52,77300-ISB-FORMULA ALLOCATION,Transfer Payments,Transfer Payments,Revenue
Walsall Council,http://opendatacommunities.org/id/metropolitan-district-council/walsall,WC107-656,31/08/2019,Childrens,BODRIGGY ACADEMY,06/08/2019,"1,417.80",77300-ISB-FORMULA ALLOCATION,Transfer Payments,Transfer Payments,Revenue
Walsall Council,http://opendatacommunities.org/id/metropolitan-district-council/walsall,WC107-657,31/08/2019,Childrens,BOOSTERS OUT OF SCHOOL CLUB,01/08/2019,488,63120-CRECHE FACILITIES-SERVICES-FEES,Supplies & Services,Other Supplies & Services,Revenue
Walsall Council,http://opendatacommunities.org/id/metropolitan-district-council/walsall,WC107-658,31/08/2019,Resources and Transformation,BORSHCH LTD,14/08/2019,208.34,60000-FURNITURE & EQUIPMENT,Supplies & Services,"Equip,Furniture & Materials",Revenue
Walsall Council,http://opendatacommunities.org/id/metropolitan-district-council/walsall,WC107-659,31/08/2019,Resources and Transformation,BORSHCH LTD,14/08/2019,229.16,60000-FURNITURE & EQUIPMENT,Supplies & Services,"Equip,Furniture & Materials",Revenue
Walsall Council,http://opendatacommunities.org/id/metropolitan-district-council/walsall,WC107-660,31/08/2019,Resources and Transformation,BORSHCH LTD,01/08/2019,237.49,60000-FURNITURE & EQUIPMENT,Supplies & Services,"Equip,Furniture & Materials",Revenue
Walsall Council,http://opendatacommunities.org/id/metropolitan-district-council/walsall,WC107-661,31/08/2019,Resources and Transformation,BORSHCH LTD,05/08/2019,237.49,60000-FURNITURE & EQUIPMENT,Supplies & Services,"Equip,Furniture & Materials",Revenue
Walsall Council,http://opendatacommunities.org/id/metropolitan-district-council/walsall,WC107-662,31/08/2019,Resources and Transformation,BORSHCH LTD,09/08/2019,237.49,60000-FURNITURE & EQUIPMENT,Supplies & Services,"Equip,Furniture & Materials",Revenue
Walsall Council,http://opendatacommunities.org/id/metropolitan-district-council/walsall,WC107-663,31/08/2019,Resources and Transformation,BORSHCH LTD,12/08/2019,237.49,60000-FURNITURE & EQUIPMENT,Supplies & Services,"Equip,Furniture & Materials",Revenue
Walsall Council,http://opendatacommunities.org/id/metropolitan-district-council/walsall,WC107-664,31/08/2019,Resources and Transformation,BORSHCH LTD,27/08/2019,279.17,60000-FURNITURE & EQUIPMENT,Supplies & Services,"Equip,Furniture & Materials",Revenue
Walsall Council,http://opendatacommunities.org/id/metropolitan-district-council/walsall,WC107-665,31/08/2019,Resources and Transformation,BORSHCH LTD,22/08/2019,287.5,60000-FURNITURE & EQUIPMENT,Supplies & Services,"Equip,Furniture & Materials",Revenue
Walsall Council,http://opendatacommunities.org/id/metropolitan-district-council/walsall,WC107-666,31/08/2019,Resources and Transformation,BORSHCH LTD,01/08/2019,291.66,60000-FURNITURE & EQUIPMENT,Supplies & Services,"Equip,Furniture & Materials",Revenue
Walsall Council,http://opendatacommunities.org/id/metropolitan-district-council/walsall,WC107-667,31/08/2019,Resources and Transformation,BORSHCH LTD,01/08/2019,291.66,60000-FURNITURE & EQUIPMENT,Supplies & Services,"Equip,Furniture & Materials",Revenue
Walsall Council,http://opendatacommunities.org/id/metropolitan-district-council/walsall,WC107-668,31/08/2019,Resources and Transformation,BORSHCH LTD,01/08/2019,291.66,60000-FURNITURE & EQUIPMENT,Supplies & Services,"Equip,Furniture & Materials",Revenue
Walsall Council,http://opendatacommunities.org/id/metropolitan-district-council/walsall,WC107-669,31/08/2019,Resources and Transformation,BORSHCH LTD,02/08/2019,291.66,60000-FURNITURE & EQUIPMENT,Supplies & Services,"Equip,Furniture & Materials",Revenue
Walsall Council,http://opendatacommunities.org/id/metropolitan-district-council/walsall,WC107-670,31/08/2019,Resources and Transformation,BORSHCH LTD,08/08/2019,291.66,60000-FURNITURE & EQUIPMENT,Supplies & Services,"Equip,Furniture & Materials",Revenue
Walsall Council,http://opendatacommunities.org/id/metropolitan-district-council/walsall,WC107-671,31/08/2019,Resources and Transformation,BORSHCH LTD,08/08/2019,291.66,60000-FURNITURE & EQUIPMENT,Supplies & Services,"Equip,Furniture & Materials",Revenue
Walsall Council,http://opendatacommunities.org/id/metropolitan-district-council/walsall,WC107-672,31/08/2019,Resources and Transformation,BORSHCH LTD,12/08/2019,291.66,60000-FURNITURE & EQUIPMENT,Supplies & Services,"Equip,Furniture & Materials",Revenue
Walsall Council,http://opendatacommunities.org/id/metropolitan-district-council/walsall,WC107-673,31/08/2019,Resources and Transformation,BORSHCH LTD,22/08/2019,291.66,60000-FURNITURE & EQUIPMENT,Supplies & Services,"Equip,Furniture & Materials",Revenue
Walsall Council,http://opendatacommunities.org/id/metropolitan-district-council/walsall,WC107-674,31/08/2019,Resources and Transformation,BORSHCH LTD,22/08/2019,291.66,60000-FURNITURE & EQUIPMENT,Supplies & Services,"Equip,Furniture & Materials",Revenue
Walsall Council,http://opendatacommunities.org/id/metropolitan-district-council/walsall,WC107-675,31/08/2019,Resources and Transformation,BORSHCH LTD,08/08/2019,295.83,60000-FURNITURE & EQUIPMENT,Supplies & Services,"Equip,Furniture & Materials",Revenue
Walsall Council,http://opendatacommunities.org/id/metropolitan-district-council/walsall,WC107-676,31/08/2019,Resources and Transformation,BORSHCH LTD,09/08/2019,295.83,60000-FURNITURE & EQUIPMENT,Supplies & Services,"Equip,Furniture & Materials",Revenue
Walsall Council,http://opendatacommunities.org/id/metropolitan-district-council/walsall,WC107-677,31/08/2019,Resources and Transformation,BORSHCH LTD,05/08/2019,299.99,60000-FURNITURE & EQUIPMENT,Supplies & Services,"Equip,Furniture & Materials",Revenue
Walsall Council,http://opendatacommunities.org/id/metropolitan-district-council/walsall,WC107-678,31/08/2019,Resources and Transformation,BORSHCH LTD,05/08/2019,354.16,60000-FURNITURE & EQUIPMENT,Supplies & Services,"Equip,Furniture & Materials",Revenue
Walsall Council,http://opendatacommunities.org/id/metropolitan-district-council/walsall,WC107-679,31/08/2019,Resources and Transformation,BORSHCH LTD,05/08/2019,354.16,60000-FURNITURE & EQUIPMENT,Supplies & Services,"Equip,Furniture & Materials",Revenue
Walsall Council,http://opendatacommunities.org/id/metropolitan-district-council/walsall,WC107-680,31/08/2019,Resources and Transformation,BORSHCH LTD,13/08/2019,354.16,60000-FURNITURE & EQUIPMENT,Supplies & Services,"Equip,Furniture & Materials",Revenue
Walsall Council,http://opendatacommunities.org/id/metropolitan-district-council/walsall,WC107-681,31/08/2019,Resources and Transformation,BORSHCH LTD,22/08/2019,358.33,60000-FURNITURE & EQUIPMENT,Supplies & Services,"Equip,Furniture & Materials",Revenue
Walsall Council,http://opendatacommunities.org/id/metropolitan-district-council/walsall,WC107-682,31/08/2019,Resources and Transformation,BORSHCH LTD,02/08/2019,425,60000-FURNITURE & EQUIPMENT,Supplies & Services,"Equip,Furniture & Materials",Revenue
Walsall Council,http://opendatacommunities.org/id/metropolitan-district-council/walsall,WC107-683,31/08/2019,Resources and Transformation,BORSHCH LTD,01/08/2019,429.17,60000-FURNITURE & EQUIPMENT,Supplies & Services,"Equip,Furniture & Materials",Revenue
Walsall Council,http://opendatacommunities.org/id/metropolitan-district-council/walsall,WC107-684,31/08/2019,Resources and Transformation,BORSHCH LTD,01/08/2019,433.33,60000-FURNITURE & EQUIPMENT,Supplies & Services,"Equip,Furniture & Materials",Revenue
Walsall Council,http://opendatacommunities.org/id/metropolitan-district-council/walsall,WC107-685,31/08/2019,Resources and Transformation,BORSHCH LTD,01/08/2019,433.33,60000-FURNITURE & EQUIPMENT,Supplies & Services,"Equip,Furniture & Materials",Revenue
Walsall Council,http://opendatacommunities.org/id/metropolitan-district-council/walsall,WC107-686,31/08/2019,Resources and Transformation,BORSHCH LTD,05/08/2019,433.33,60000-FURNITURE & EQUIPMENT,Supplies & Services,"Equip,Furniture & Materials",Revenue
Walsall Council,http://opendatacommunities.org/id/metropolitan-district-council/walsall,WC107-687,31/08/2019,Resources and Transformation,BORSHCH LTD,05/08/2019,433.33,60000-FURNITURE & EQUIPMENT,Supplies & Services,"Equip,Furniture & Materials",Revenue
Walsall Council,http://opendatacommunities.org/id/metropolitan-district-council/walsall,WC107-688,31/08/2019,Resources and Transformation,BORSHCH LTD,05/08/2019,433.33,60000-FURNITURE & EQUIPMENT,Supplies & Services,"Equip,Furniture & Materials",Revenue
Walsall Council,http://opendatacommunities.org/id/metropolitan-district-council/walsall,WC107-689,31/08/2019,Resources and Transformation,BORSHCH LTD,05/08/2019,433.33,60000-FURNITURE & EQUIPMENT,Supplies & Services,"Equip,Furniture & Materials",Revenue
Walsall Council,http://opendatacommunities.org/id/metropolitan-district-council/walsall,WC107-690,31/08/2019,Resources and Transformation,BORSHCH LTD,06/08/2019,433.33,60000-FURNITURE & EQUIPMENT,Supplies & Services,"Equip,Furniture & Materials",Revenue
Walsall Council,http://opendatacommunities.org/id/metropolitan-district-council/walsall,WC107-691,31/08/2019,Resources and Transformation,BORSHCH LTD,09/08/2019,433.33,60000-FURNITURE & EQUIPMENT,Supplies & Services,"Equip,Furniture & Materials",Revenue
Walsall Council,http://opendatacommunities.org/id/metropolitan-district-council/walsall,WC107-692,31/08/2019,Resources and Transformation,BORSHCH LTD,12/08/2019,433.33,60000-FURNITURE & EQUIPMENT,Supplies & Services,"Equip,Furniture & Materials",Revenue
Walsall Council,http://opendatacommunities.org/id/metropolitan-district-council/walsall,WC107-693,31/08/2019,Resources and Transformation,BORSHCH LTD,12/08/2019,433.33,60000-FURNITURE & EQUIPMENT,Supplies & Services,"Equip,Furniture & Materials",Revenue
Walsall Council,http://opendatacommunities.org/id/metropolitan-district-council/walsall,WC107-694,31/08/2019,Resources and Transformation,BORSHCH LTD,14/08/2019,433.33,60000-FURNITURE & EQUIPMENT,Supplies & Services,"Equip,Furniture & Materials",Revenue
Walsall Council,http://opendatacommunities.org/id/metropolitan-district-council/walsall,WC107-695,31/08/2019,Resources and Transformation,BORSHCH LTD,14/08/2019,433.33,60000-FURNITURE & EQUIPMENT,Supplies & Services,"Equip,Furniture & Materials",Revenue
Walsall Council,http://opendatacommunities.org/id/metropolitan-district-council/walsall,WC107-696,31/08/2019,Resources and Transformation,BORSHCH LTD,22/08/2019,433.33,60000-FURNITURE & EQUIPMENT,Supplies & Services,"Equip,Furniture & Materials",Revenue
Walsall Council,http://opendatacommunities.org/id/metropolitan-district-council/walsall,WC107-697,31/08/2019,Resources and Transformation,BORSHCH LTD,22/08/2019,433.33,60000-FURNITURE & EQUIPMENT,Supplies & Services,"Equip,Furniture & Materials",Revenue
Walsall Council,http://opendatacommunities.org/id/metropolitan-district-council/walsall,WC107-698,31/08/2019,Resources and Transformation,BORSHCH LTD,27/08/2019,433.33,60000-FURNITURE & EQUIPMENT,Supplies & Services,"Equip,Furniture & Materials",Revenue
Walsall Council,http://opendatacommunities.org/id/metropolitan-district-council/walsall,WC107-699,31/08/2019,Resources and Transformation,BORSHCH LTD,09/08/2019,441.66,60000-FURNITURE & EQUIPMENT,Supplies & Services,"Equip,Furniture & Materials",Revenue
Walsall Council,http://opendatacommunities.org/id/metropolitan-district-council/walsall,WC107-700,31/08/2019,Resources and Transformation,BORSHCH LTD,09/08/2019,495.83,60000-FURNITURE & EQUIPMENT,Supplies & Services,"Equip,Furniture & Materials",Revenue
Walsall Council,http://opendatacommunities.org/id/metropolitan-district-council/walsall,WC107-701,31/08/2019,Resources and Transformation,BORSHCH LTD,09/08/2019,495.83,60000-FURNITURE & EQUIPMENT,Supplies & Services,"Equip,Furniture & Materials",Revenue
Walsall Council,http://opendatacommunities.org/id/metropolitan-district-council/walsall,WC107-702,31/08/2019,Resources and Transformation,BORSHCH LTD,09/08/2019,495.83,60000-FURNITURE & EQUIPMENT,Supplies & Services,"Equip,Furniture & Materials",Revenue
Walsall Council,http://opendatacommunities.org/id/metropolitan-district-council/walsall,WC107-703,31/08/2019,Economy & Environment,BOS BUSINESS OFFICE SOLUTIONS CIC,02/08/2019,"5,000.00",66500-GRANTS TO OTHER ORGS,Third Party Payments,Grants to Other Orgs,Revenue
Walsall Council,http://opendatacommunities.org/id/metropolitan-district-council/walsall,WC107-704,31/08/2019,Adult Social Care,BOWDEN DERRA PARK,20/08/2019,"11,151.52",73500-RESIDENTIAL,Third Party Payments,Private Contractor Fees,Revenue
Walsall Council,http://opendatacommunities.org/id/metropolitan-district-council/walsall,WC107-705,31/08/2019,Economy & Environment,BRADVALE LTD T/A INSPIRE HEALTHCARE SERVICES,01/08/2019,288.88,60008-REPAIR & MAINTENANCE OF FURNITURE & EQUIPMENT,Supplies & Services,"Equip,Furniture & Materials",Revenue
Walsall Council,http://opendatacommunities.org/id/metropolitan-district-council/walsall,WC107-706,31/08/2019,Economy & Environment,BRADVALE LTD T/A INSPIRE HEALTHCARE SERVICES,28/08/2019,336.98,60008-REPAIR & MAINTENANCE OF FURNITURE & EQUIPMENT,Supplies & Services,"Equip,Furniture & Materials",Revenue
Walsall Council,http://opendatacommunities.org/id/metropolitan-district-council/walsall,WC107-707,31/08/2019,Economy & Environment,BRADVALE LTD T/A INSPIRE HEALTHCARE SERVICES,02/08/2019,438.51,60008-REPAIR & MAINTENANCE OF FURNITURE & EQUIPMENT,Supplies & Services,"Equip,Furniture & Materials",Revenue
Walsall Council,http://opendatacommunities.org/id/metropolitan-district-council/walsall,WC107-708,31/08/2019,Adult Social Care,BRAIN INJURY REHABILITATION TRUST,28/08/2019,"1,260.00",73373-RESIDENTIAL & NURSING CARE PLACEMENTS,Third Party Payments,Private Contractor Fees,Revenue
Walsall Council,http://opendatacommunities.org/id/metropolitan-district-council/walsall,WC107-709,31/08/2019,Adult Social Care,BRAIN INJURY REHABILITATION TRUST,28/08/2019,"1,610.00",73373-RESIDENTIAL & NURSING CARE PLACEMENTS,Third Party Payments,Private Contractor Fees,Revenue
Walsall Council,http://opendatacommunities.org/id/metropolitan-district-council/walsall,WC107-710,31/08/2019,Resources and Transformation,BRELMAYNE LTD,14/08/2019,233.44,60007-REPAIR OF EQUIPMENT-EQUIPMENT,Supplies & Services,"Equip,Furniture & Materials",Revenue
Walsall Council,http://opendatacommunities.org/id/metropolitan-district-council/walsall,WC107-711,31/08/2019,Resources and Transformation,BRELMAYNE LTD,01/08/2019,315,60008-REPAIR & MAINTENANCE OF FURNITURE & EQUIPMENT,Supplies & Services,"Equip,Furniture & Materials",Revenue
Walsall Council,http://opendatacommunities.org/id/metropolitan-district-council/walsall,WC107-712,31/08/2019,Resources and Transformation,BRELMAYNE LTD,13/08/2019,315,60008-REPAIR & MAINTENANCE OF FURNITURE & EQUIPMENT,Supplies & Services,"Equip,Furniture & Materials",Revenue
Walsall Council,http://opendatacommunities.org/id/metropolitan-district-council/walsall,WC107-713,31/08/2019,Resources and Transformation,BRELMAYNE LTD,14/08/2019,353.18,60007-REPAIR OF EQUIPMENT-EQUIPMENT,Supplies & Services,"Equip,Furniture & Materials",Revenue
Walsall Council,http://opendatacommunities.org/id/metropolitan-district-council/walsall,WC107-714,31/08/2019,Resources and Transformation,BRELMAYNE LTD,08/08/2019,700,01044-PURCHASE OF FURNITURE & EQUIPMENT,Capital,Capital,Capital
Walsall Council,http://opendatacommunities.org/id/metropolitan-district-council/walsall,WC107-715,31/08/2019,Resources and Transformation,BRELMAYNE LTD,14/08/2019,996.74,60007-REPAIR OF EQUIPMENT-EQUIPMENT,Supplies & Services,"Equip,Furniture & Materials",Revenue
Walsall Council,http://opendatacommunities.org/id/metropolitan-district-council/walsall,WC107-716,31/08/2019,Childrens,BRELMAYNE LTD,21/08/2019,"26,983.00",01006-SITE WORKS MAIN CONTRACTORS,Capital,Capital,Capital
Walsall Council,http://opendatacommunities.org/id/metropolitan-district-council/walsall,WC107-717,31/08/2019,Adult Social Care,REDACTED,06/08/2019,440,73506-DIRECT PAYMENT,Third Party Payments,Private Contractor Fees,Revenue
Walsall Council,http://opendatacommunities.org/id/metropolitan-district-council/walsall,WC107-718,31/08/2019,Childrens,REDACTED,12/08/2019,720,74501-MAINTENANCE ALLOWANCE-FOSTER CARERS,Transfer Payments,Transfer Payments,Revenue
Walsall Council,http://opendatacommunities.org/id/metropolitan-district-council/walsall,WC107-719,31/08/2019,Childrens,REDACTED,12/08/2019,720,74501-MAINTENANCE ALLOWANCE-FOSTER CARERS,Transfer Payments,Transfer Payments,Revenue
Walsall Council,http://opendatacommunities.org/id/metropolitan-district-council/walsall,WC107-720,31/08/2019,Childrens,REDACTED,12/08/2019,"1,600.00",74508-INTERNAL FOSTER CARERS-CARER FEES,Transfer Payments,Transfer Payments,Revenue
Walsall Council,http://opendatacommunities.org/id/metropolitan-district-council/walsall,WC107-721,31/08/2019,Economy & Environment,BRENNTAG UK LIMITED,09/08/2019,413.89,60503-CHEMICALS & SCIENTIFIC MATS-MATERIALS,Supplies & Services,"Equip,Furniture & Materials",Revenue
Walsall Council,http://opendatacommunities.org/id/metropolitan-district-council/walsall,WC107-722,31/08/2019,Economy & Environment,BRENNTAG UK LIMITED,09/08/2019,468.76,60503-CHEMICALS & SCIENTIFIC MATS-MATERIALS,Supplies & Services,"Equip,Furniture & Materials",Revenue
Walsall Council,http://opendatacommunities.org/id/metropolitan-district-council/walsall,WC107-723,31/08/2019,Economy & Environment,BRENNTAG UK LIMITED,01/08/2019,656.24,50301-FUEL FOR VEHICLES,Transport,Other Transport,Revenue
Walsall Council,http://opendatacommunities.org/id/metropolitan-district-council/walsall,WC107-724,31/08/2019,Adult Social Care,REDACTED,05/08/2019,974.57,73510-SHARED LIVES,Third Party Payments,Private Contractor Fees,Revenue
Walsall Council,http://opendatacommunities.org/id/metropolitan-district-council/walsall,WC107-725,31/08/2019,Adult Social Care,REDACTED,05/08/2019,"1,370.28",73510-SHARED LIVES,Third Party Payments,Private Contractor Fees,Revenue
Walsall Council,http://opendatacommunities.org/id/metropolitan-district-council/walsall,WC107-726,31/08/2019,Adult Social Care,REDACTED,06/08/2019,"1,806.56",73506-DIRECT PAYMENT,Third Party Payments,Private Contractor Fees,Revenue
Walsall Council,http://opendatacommunities.org/id/metropolitan-district-council/walsall,WC107-727,31/08/2019,Adult Social Care,REDACTED,06/08/2019,836.4,73506-DIRECT PAYMENT,Third Party Payments,Private Contractor Fees,Revenue
Walsall Council,http://opendatacommunities.org/id/metropolitan-district-council/walsall,WC107-728,31/08/2019,Economy & Environment,BRIAR ASSOCIATES,13/08/2019,350,63000-PROFESSIONAL FEES AND SERVICES,Supplies & Services,Services,Revenue
Walsall Council,http://opendatacommunities.org/id/metropolitan-district-council/walsall,WC107-729,31/08/2019,Adult Social Care,BRIDGEWOOD HEALTH CARE LTD,20/08/2019,"2,536.75",73503-NURSING EMI,Third Party Payments,Private Contractor Fees,Revenue
Walsall Council,http://opendatacommunities.org/id/metropolitan-district-council/walsall,WC107-730,31/08/2019,Adult Social Care,BRIDGEWOOD HEALTH CARE LTD,20/08/2019,"5,854.28",73500-RESIDENTIAL,Third Party Payments,Private Contractor Fees,Revenue
Walsall Council,http://opendatacommunities.org/id/metropolitan-district-council/walsall,WC107-731,31/08/2019,Resources and Transformation,BRISTOW & SUTOR,02/08/2019,375,73014-LEGAL FEES-PRIV CONTRACTOR FEES,Third Party Payments,Private Contractor Fees,Revenue
Walsall Council,http://opendatacommunities.org/id/metropolitan-district-council/walsall,WC107-732,31/08/2019,Resources and Transformation,BRITANNIA HOTELS LTD T/A BRITANNIA HOTEL WOLVERHAMPTON,01/08/2019,220,75501-BED & BREAKFAST PAYMENTS,Third Party Payments,Private Contractor Fees,Revenue
Walsall Council,http://opendatacommunities.org/id/metropolitan-district-council/walsall,WC107-733,31/08/2019,Resources and Transformation,BRITANNIA HOTELS LTD T/A BRITANNIA HOTEL WOLVERHAMPTON,01/08/2019,236.25,75501-BED & BREAKFAST PAYMENTS,Third Party Payments,Private Contractor Fees,Revenue
Walsall Council,http://opendatacommunities.org/id/metropolitan-district-council/walsall,WC107-734,31/08/2019,Resources and Transformation,BRITANNIA HOTELS LTD T/A BRITANNIA HOTEL WOLVERHAMPTON,01/08/2019,259.25,75501-BED & BREAKFAST PAYMENTS,Third Party Payments,Private Contractor Fees,Revenue
Walsall Council,http://opendatacommunities.org/id/metropolitan-district-council/walsall,WC107-735,31/08/2019,Resources and Transformation,BRITANNIA HOTELS LTD T/A BRITANNIA HOTEL WOLVERHAMPTON,23/08/2019,263.75,75501-BED & BREAKFAST PAYMENTS,Third Party Payments,Private Contractor Fees,Revenue
Walsall Council,http://opendatacommunities.org/id/metropolitan-district-council/walsall,WC107-736,31/08/2019,Resources and Transformation,BRITANNIA HOTELS LTD T/A BRITANNIA HOTEL WOLVERHAMPTON,01/08/2019,267,75501-BED & BREAKFAST PAYMENTS,Third Party Payments,Private Contractor Fees,Revenue
Walsall Council,http://opendatacommunities.org/id/metropolitan-district-council/walsall,WC107-737,31/08/2019,Resources and Transformation,BRITANNIA HOTELS LTD T/A BRITANNIA HOTEL WOLVERHAMPTON,15/08/2019,292.25,75501-BED & BREAKFAST PAYMENTS,Third Party Payments,Private Contractor Fees,Revenue
Walsall Council,http://opendatacommunities.org/id/metropolitan-district-council/walsall,WC107-738,31/08/2019,Resources and Transformation,BRITANNIA HOTELS LTD T/A BRITANNIA HOTEL WOLVERHAMPTON,12/08/2019,293,75501-BED & BREAKFAST PAYMENTS,Third Party Payments,Private Contractor Fees,Revenue
Walsall Council,http://opendatacommunities.org/id/metropolitan-district-council/walsall,WC107-739,31/08/2019,Resources and Transformation,BRITANNIA HOTELS LTD T/A BRITANNIA HOTEL WOLVERHAMPTON,07/08/2019,306.5,75501-BED & BREAKFAST PAYMENTS,Third Party Payments,Private Contractor Fees,Revenue
Walsall Council,http://opendatacommunities.org/id/metropolitan-district-council/walsall,WC107-740,31/08/2019,Resources and Transformation,BRITANNIA HOTELS LTD T/A BRITANNIA HOTEL WOLVERHAMPTON,22/08/2019,313.25,75501-BED & BREAKFAST PAYMENTS,Third Party Payments,Private Contractor Fees,Revenue
Walsall Council,http://opendatacommunities.org/id/metropolitan-district-council/walsall,WC107-741,31/08/2019,Resources and Transformation,BRITANNIA HOTELS LTD T/A BRITANNIA HOTEL WOLVERHAMPTON,01/08/2019,314.75,75501-BED & BREAKFAST PAYMENTS,Third Party Payments,Private Contractor Fees,Revenue
Walsall Council,http://opendatacommunities.org/id/metropolitan-district-council/walsall,WC107-742,31/08/2019,Resources and Transformation,BRITANNIA HOTELS LTD T/A BRITANNIA HOTEL WOLVERHAMPTON,28/08/2019,323.75,75501-BED & BREAKFAST PAYMENTS,Third Party Payments,Private Contractor Fees,Revenue
Walsall Council,http://opendatacommunities.org/id/metropolitan-district-council/walsall,WC107-743,31/08/2019,Resources and Transformation,BRITANNIA HOTELS LTD T/A BRITANNIA HOTEL WOLVERHAMPTON,28/08/2019,351.5,75501-BED & BREAKFAST PAYMENTS,Third Party Payments,Private Contractor Fees,Revenue
Walsall Council,http://opendatacommunities.org/id/metropolitan-district-council/walsall,WC107-744,31/08/2019,Resources and Transformation,BRITANNIA HOTELS LTD T/A BRITANNIA HOTEL WOLVERHAMPTON,09/08/2019,361.09,75501-BED & BREAKFAST PAYMENTS,Third Party Payments,Private Contractor Fees,Revenue
Walsall Council,http://opendatacommunities.org/id/metropolitan-district-council/walsall,WC107-745,31/08/2019,Resources and Transformation,BRITANNIA HOTELS LTD T/A BRITANNIA HOTEL WOLVERHAMPTON,13/08/2019,378,75501-BED & BREAKFAST PAYMENTS,Third Party Payments,Private Contractor Fees,Revenue
Walsall Council,http://opendatacommunities.org/id/metropolitan-district-council/walsall,WC107-746,31/08/2019,Resources and Transformation,BRITANNIA HOTELS LTD T/A BRITANNIA HOTEL WOLVERHAMPTON,01/08/2019,385.75,75501-BED & BREAKFAST PAYMENTS,Third Party Payments,Private Contractor Fees,Revenue
Walsall Council,http://opendatacommunities.org/id/metropolitan-district-council/walsall,WC107-747,31/08/2019,Resources and Transformation,BRITANNIA HOTELS LTD T/A BRITANNIA HOTEL WOLVERHAMPTON,15/08/2019,449.75,75501-BED & BREAKFAST PAYMENTS,Third Party Payments,Private Contractor Fees,Revenue
Walsall Council,http://opendatacommunities.org/id/metropolitan-district-council/walsall,WC107-748,31/08/2019,Resources and Transformation,BRITANNIA HOTELS LTD T/A BRITANNIA HOTEL WOLVERHAMPTON,07/08/2019,461.75,75501-BED & BREAKFAST PAYMENTS,Third Party Payments,Private Contractor Fees,Revenue
Walsall Council,http://opendatacommunities.org/id/metropolitan-district-council/walsall,WC107-749,31/08/2019,Resources and Transformation,BRITANNIA HOTELS LTD T/A BRITANNIA HOTEL WOLVERHAMPTON,22/08/2019,465.5,75501-BED & BREAKFAST PAYMENTS,Third Party Payments,Private Contractor Fees,Revenue
Walsall Council,http://opendatacommunities.org/id/metropolitan-district-council/walsall,WC107-750,31/08/2019,Resources and Transformation,BRITANNIA HOTELS LTD T/A BRITANNIA HOTEL WOLVERHAMPTON,07/08/2019,469.25,75501-BED & BREAKFAST PAYMENTS,Third Party Payments,Private Contractor Fees,Revenue
Walsall Council,http://opendatacommunities.org/id/metropolitan-district-council/walsall,WC107-751,31/08/2019,Resources and Transformation,BRITANNIA HOTELS LTD T/A BRITANNIA HOTEL WOLVERHAMPTON,01/08/2019,470.75,75501-BED & BREAKFAST PAYMENTS,Third Party Payments,Private Contractor Fees,Revenue
Walsall Council,http://opendatacommunities.org/id/metropolitan-district-council/walsall,WC107-752,31/08/2019,Resources and Transformation,BRITANNIA HOTELS LTD T/A BRITANNIA HOTEL WOLVERHAMPTON,01/08/2019,472.25,75501-BED & BREAKFAST PAYMENTS,Third Party Payments,Private Contractor Fees,Revenue
Walsall Council,http://opendatacommunities.org/id/metropolitan-district-council/walsall,WC107-753,31/08/2019,Resources and Transformation,BRITISH MUSLIM YOUTH GROUP,01/08/2019,"8,000.00",70004-GRANTS TO VOLUNTARY BODIES,Third Party Payments,Grants to Other Orgs,Revenue
Walsall Council,http://opendatacommunities.org/id/metropolitan-district-council/walsall,WC107-754,31/08/2019,Resources and Transformation,BRITISH TELECOMMUNICATIONS LTD,19/08/2019,816,63603-COST OF CALLS-TELEPHONES,Supplies & Services,Communications & Computing,Revenue
Walsall Council,http://opendatacommunities.org/id/metropolitan-district-council/walsall,WC107-755,31/08/2019,Adult Social Care,BROADWAY HALLS CARE HOME,20/08/2019,"1,972.24",73501-RESIDENTIAL EMI,Third Party Payments,Private Contractor Fees,Revenue
Walsall Council,http://opendatacommunities.org/id/metropolitan-district-council/walsall,WC107-756,31/08/2019,Holding Accounts,BROWNE JACOBSON SOLICITORS,14/08/2019,568,67001-MISC INSURANCES - PAYMENT OF CLAIMS,Supplies & Services,Other Supplies & Services,Revenue
Walsall Council,http://opendatacommunities.org/id/metropolitan-district-council/walsall,WC107-757,31/08/2019,Holding Accounts,BROWNE JACOBSON SOLICITORS,21/08/2019,"2,210.50",67001-MISC INSURANCES - PAYMENT OF CLAIMS,Supplies & Services,Other Supplies & Services,Revenue
Walsall Council,http://opendatacommunities.org/id/metropolitan-district-council/walsall,WC107-758,31/08/2019,Holding Accounts,BROWNE JACOBSON SOLICITORS,19/08/2019,"6,428.00",67001-MISC INSURANCES - PAYMENT OF CLAIMS,Supplies & Services,Other Supplies & Services,Revenue
Walsall Council,http://opendatacommunities.org/id/metropolitan-district-council/walsall,WC107-759,31/08/2019,Economy & Environment,BROWNHILLS COMMUNITY ASSOCIATION,21/08/2019,"1,167.00",63253-PAYMENT TO CONTRACTOR,Third Party Payments,Private Contractor Fees,Revenue
Walsall Council,http://opendatacommunities.org/id/metropolitan-district-council/walsall,WC107-760,31/08/2019,Childrens,BROWNHILLS COMMUNITY ASSOCIATION,12/08/2019,"3,657.50",63120-CRECHE FACILITIES-SERVICES-FEES,Supplies & Services,Other Supplies & Services,Revenue
Walsall Council,http://opendatacommunities.org/id/metropolitan-district-council/walsall,WC107-761,31/08/2019,Adult Social Care,REDACTED,06/08/2019,"1,387.20",73506-DIRECT PAYMENT,Third Party Payments,Private Contractor Fees,Revenue
Walsall Council,http://opendatacommunities.org/id/metropolitan-district-council/walsall,WC107-762,31/08/2019,Economy & Environment,BT,19/08/2019,323.17,63601-LANDLINE PHONES,Supplies & Services,Communications & Computing,Revenue
Walsall Council,http://opendatacommunities.org/id/metropolitan-district-council/walsall,WC107-763,31/08/2019,Childrens,BT PLC,27/08/2019,459.18,63601-LANDLINE PHONES,Supplies & Services,Communications & Computing,Revenue
Walsall Council,http://opendatacommunities.org/id/metropolitan-district-council/walsall,WC107-764,31/08/2019,Resources and Transformation,BT PLC,01/08/2019,"1,306.80",63800-COMPUTER EQUIPMENT AND SUPPLIES,Supplies & Services,Communications & Computing,Revenue
Walsall Council,http://opendatacommunities.org/id/metropolitan-district-council/walsall,WC107-765,31/08/2019,Resources and Transformation,BT PLC,01/08/2019,"1,996.91",63807-COMMS LINKS-COMPUTER,Supplies & Services,Communications & Computing,Revenue
Walsall Council,http://opendatacommunities.org/id/metropolitan-district-council/walsall,WC107-766,31/08/2019,Resources and Transformation,BT PLC,08/08/2019,"2,593.22",63601-LANDLINE PHONES,Supplies & Services,Communications & Computing,Revenue
Walsall Council,http://opendatacommunities.org/id/metropolitan-district-council/walsall,WC107-767,31/08/2019,Resources and Transformation,BT PLC,08/08/2019,"12,272.61",63601-LANDLINE PHONES,Supplies & Services,Communications & Computing,Revenue
Walsall Council,http://opendatacommunities.org/id/metropolitan-district-council/walsall,WC107-768,31/08/2019,Resources and Transformation,BT PLC,02/08/2019,"48,791.83",63807-COMMS LINKS-COMPUTER,Supplies & Services,Communications & Computing,Revenue
Walsall Council,http://opendatacommunities.org/id/metropolitan-district-council/walsall,WC107-769,31/08/2019,Economy & Environment,BUFFET EXPRESS LTD,01/08/2019,791.5,61009-BEVERAGES-PROVISIONS,Supplies & Services,Provisions,Revenue
Walsall Council,http://opendatacommunities.org/id/metropolitan-district-council/walsall,WC107-770,31/08/2019,Adult Social Care,BUPA NURSING HOMES ASTON COURT,20/08/2019,"1,774.96",73500-RESIDENTIAL,Third Party Payments,Private Contractor Fees,Revenue
Walsall Council,http://opendatacommunities.org/id/metropolitan-district-council/walsall,WC107-771,31/08/2019,Economy & Environment,BUREAU VAN DIJK ELECTRONIC PUBLISHING LTD,08/08/2019,850,63000-PROFESSIONAL FEES AND SERVICES,Supplies & Services,Services,Revenue
Walsall Council,http://opendatacommunities.org/id/metropolitan-district-council/walsall,WC107-772,31/08/2019,Resources and Transformation,BURNTWOOD COMPRESSORS LTD,16/08/2019,"1,167.97",40000-OPERATIONAL MAINTENANCE,Premises,Premises-Repairs & Maintenance,Revenue
Walsall Council,http://opendatacommunities.org/id/metropolitan-district-council/walsall,WC107-773,31/08/2019,Adult Social Care,BUSH HOME LTD,20/08/2019,570.52,73504-SHORT STAY RESIDENTIAL,Third Party Payments,Private Contractor Fees,Revenue
Walsall Council,http://opendatacommunities.org/id/metropolitan-district-council/walsall,WC107-774,31/08/2019,Adult Social Care,BUSH HOME LTD,20/08/2019,"1,774.96",73500-RESIDENTIAL,Third Party Payments,Private Contractor Fees,Revenue
Walsall Council,http://opendatacommunities.org/id/metropolitan-district-council/walsall,WC107-775,31/08/2019,Adult Social Care,BUSH HOME LTD,20/08/2019,"1,774.96",73500-RESIDENTIAL,Third Party Payments,Private Contractor Fees,Revenue
Walsall Council,http://opendatacommunities.org/id/metropolitan-district-council/walsall,WC107-776,31/08/2019,Adult Social Care,BUSH HOME LTD,20/08/2019,"1,774.96",73500-RESIDENTIAL,Third Party Payments,Private Contractor Fees,Revenue
Walsall Council,http://opendatacommunities.org/id/metropolitan-district-council/walsall,WC107-777,31/08/2019,Adult Social Care,BUSH HOME LTD,20/08/2019,"1,774.96",73500-RESIDENTIAL,Third Party Payments,Private Contractor Fees,Revenue
Walsall Council,http://opendatacommunities.org/id/metropolitan-district-council/walsall,WC107-778,31/08/2019,Adult Social Care,BUSH HOME LTD,20/08/2019,"1,774.96",73500-RESIDENTIAL,Third Party Payments,Private Contractor Fees,Revenue
Walsall Council,http://opendatacommunities.org/id/metropolitan-district-council/walsall,WC107-779,31/08/2019,Adult Social Care,BUSH HOME LTD,20/08/2019,"1,972.24",73501-RESIDENTIAL EMI,Third Party Payments,Private Contractor Fees,Revenue
Walsall Council,http://opendatacommunities.org/id/metropolitan-district-council/walsall,WC107-780,31/08/2019,Adult Social Care,BUSH HOME LTD,20/08/2019,"1,972.24",73501-RESIDENTIAL EMI,Third Party Payments,Private Contractor Fees,Revenue
Walsall Council,http://opendatacommunities.org/id/metropolitan-district-council/walsall,WC107-781,31/08/2019,Adult Social Care,BUSH HOME LTD,20/08/2019,"1,972.24",73501-RESIDENTIAL EMI,Third Party Payments,Private Contractor Fees,Revenue
Walsall Council,http://opendatacommunities.org/id/metropolitan-district-council/walsall,WC107-782,31/08/2019,Adult Social Care,BUSH HOME LTD,20/08/2019,"1,972.24",73501-RESIDENTIAL EMI,Third Party Payments,Private Contractor Fees,Revenue
Walsall Council,http://opendatacommunities.org/id/metropolitan-district-council/walsall,WC107-783,31/08/2019,Adult Social Care,BUSH HOME LTD,20/08/2019,"1,972.24",73501-RESIDENTIAL EMI,Third Party Payments,Private Contractor Fees,Revenue
Walsall Council,http://opendatacommunities.org/id/metropolitan-district-council/walsall,WC107-784,31/08/2019,Adult Social Care,BUSH HOME LTD,20/08/2019,"1,972.24",73501-RESIDENTIAL EMI,Third Party Payments,Private Contractor Fees,Revenue
Walsall Council,http://opendatacommunities.org/id/metropolitan-district-council/walsall,WC107-785,31/08/2019,Adult Social Care,BUSH HOME LTD,20/08/2019,"1,972.24",73501-RESIDENTIAL EMI,Third Party Payments,Private Contractor Fees,Revenue
Walsall Council,http://opendatacommunities.org/id/metropolitan-district-council/walsall,WC107-786,31/08/2019,Childrens,BUSY BEES CHILDCARE LTD,16/08/2019,640,77200-TRANSFER PAYMENTS-OTHER SCHOOLCHILDREN/STUDENT RELATED ITEMS,Transfer Payments,Transfer Payments,Revenue
Walsall Council,http://opendatacommunities.org/id/metropolitan-district-council/walsall,WC107-787,31/08/2019,Childrens,BY THE BRIDGE,12/08/2019,"3,996.00",74037-INDEPENDENT FOSTER CARE-OTH AGENCY PROVISION,Third Party Payments,Private Contractor Fees,Revenue
Walsall Council,http://opendatacommunities.org/id/metropolitan-district-council/walsall,WC107-788,31/08/2019,Resources and Transformation,BYTES SOFTWARE SERVICES,21/08/2019,"4,000.00",63800-COMPUTER EQUIPMENT AND SUPPLIES,Supplies & Services,Communications & Computing,Revenue
Walsall Council,http://opendatacommunities.org/id/metropolitan-district-council/walsall,WC107-789,31/08/2019,Economy & Environment,C & W UK LLP,21/08/2019,"3,500.00",63000-PROFESSIONAL FEES AND SERVICES,Supplies & Services,Services,Revenue
Walsall Council,http://opendatacommunities.org/id/metropolitan-district-council/walsall,WC107-790,31/08/2019,Economy & Environment,C & W UK LLP,21/08/2019,"10,345.00",63000-PROFESSIONAL FEES AND SERVICES,Supplies & Services,Services,Revenue
Walsall Council,http://opendatacommunities.org/id/metropolitan-district-council/walsall,WC107-791,31/08/2019,Economy & Environment,C & W UK LLP,21/08/2019,"14,390.00",63000-PROFESSIONAL FEES AND SERVICES,Supplies & Services,Services,Revenue
Walsall Council,http://opendatacommunities.org/id/metropolitan-district-council/walsall,WC107-792,31/08/2019,Economy & Environment,C ART ART TRANSPORT LTD,19/08/2019,565,73032-TRANSPORTATION-PRIV CONTRACTOR FEES,Third Party Payments,Private Contractor Fees,Revenue
Walsall Council,http://opendatacommunities.org/id/metropolitan-district-council/walsall,WC107-793,31/08/2019,Economy & Environment,C ART ART TRANSPORT LTD,19/08/2019,840,73032-TRANSPORTATION-PRIV CONTRACTOR FEES,Third Party Payments,Private Contractor Fees,Revenue
Walsall Council,http://opendatacommunities.org/id/metropolitan-district-council/walsall,WC107-794,31/08/2019,Economy & Environment,C ART ART TRANSPORT LTD,19/08/2019,846,73032-TRANSPORTATION-PRIV CONTRACTOR FEES,Third Party Payments,Private Contractor Fees,Revenue
Walsall Council,http://opendatacommunities.org/id/metropolitan-district-council/walsall,WC107-795,31/08/2019,Economy & Environment,C ART ART TRANSPORT LTD,19/08/2019,"1,889.00",73032-TRANSPORTATION-PRIV CONTRACTOR FEES,Third Party Payments,Private Contractor Fees,Revenue
Walsall Council,http://opendatacommunities.org/id/metropolitan-district-council/walsall,WC107-796,31/08/2019,Childrens,REDACTED,12/08/2019,720,74501-MAINTENANCE ALLOWANCE-FOSTER CARERS,Transfer Payments,Transfer Payments,Revenue
